Workbook

Sheet LDC Info
Z3: 1 | AA3: Alectra Utilities Corporation
Z4: 2 | AA4: Alectra Utilities Corporation - Brampton service territory
Z5: 3 | AA5: Alectra Utilities Corporation - Horizon Utilities service territory
Z6: 4 | AA6: Alectra Utilities Corporation - Mississauga service territory
Z7: 5 | AA7: Alectra Utilities Corporation - PowerStream service territory
Z8: 6 | AA8: Algoma Power Inc.
Z9: 7 | AA9: Atikokan Hydro Inc.
Z10: 8 | AA10: Attawapiskat Power Corporation
Z11: 9 | AA11: Bluewater Power Distribution Corporation
Z12: 10 | AA12: Brantford Power Inc.
Z13: 11 | AA13: Burlington Hydro Inc.
D14: Utility Name | E14: Energy + Inc. | Z14: 12 | AA14: Canadian Niagara Power Inc. (Eastern Ontario Power/Fort Erie/Port Colborne)
Z15: 13 | AA15: Centre Wellington Hydro Ltd.
D16: Assigned EB Number | E16: EB-2018-0028 | Z16: 14 | AA16: Chapleau Public Utilities Corporation
Z17: 15 | AA17: COLLUS PowerStream Corp.
D18: Name of Contact and Title | E18: Sarah Hughes, Chief Financial Officer | Z18: 16 | AA18: Cooperative Hydro Embrun Inc.
Z19: 17 | AA19: E.L.K. Energy Inc.
D20: Phone Number | E20: 519-621-8405 | Z20: 18 | AA20: Energy + Inc.
Z21: 19 | AA21: Enersource Hydro Mississauga Inc.
D22: Email Address | E22: shughes@energyplus.ca | Z22: 20 | AA22: Entegrus Powerlines Inc.
Z23: 21 | AA23: ENWIN Utilities Ltd.
D24: Test Year | E24: 2019 | Z24: 22 | AA24: Erie Thames Powerlines Corporation
Z25: 23 | AA25: Espanola Regional Hydro Distribution Corporation
D26: Bridge Year | E26: =IF(ISBLANK(E24), "", E24-1) -> 2018 | Z26: 24 | AA26: Essex Powerlines Corporation
Z27: 25 | AA27: Festival Hydro Inc.
D28: Last Rebasing Year | E28: 2014 | Z28: 26 | AA28: Fort Albany Power Corporation
Z29: 27 | AA29: Fort Frances Power Corporation
A30: Identify the accounting standard used for the test year | Z30: 28 | AA30: Greater Sudbury Hydro Inc.
E31: MIFRS | Z31: 29 | AA31: Grimsby Power Inc.
Z32: 30 | AA32: Guelph Hydro Electric Systems Inc.
A33: Did you update your depreciation and capitalization policies and reflect the changes in policies in a prior rebasing application? | Z33: 31 | AA33: Halton Hills Hydro Inc.
E34: Yes | Z34: 32 | AA34: Hearst Power Distribution Company Limited
Z35: 33 | AA35: Hydro 2000 Inc.
A36: When did you update your actual depreciation and capitalization policies? | Z36: 34 | AA36: Hydro Hawkesbury Inc.
E37: 2001-01-01 | F37: 2012 | Z37: 35 | AA37: Hydro One Networks Inc.
Z38: 36 | AA38: Hydro One Networks Inc. - Norfolk, Haldimand, Woodstock
A39: Identify the year the applicant adopted IFRS for financial reporting purposes | Z39: 37 | AA39: Hydro One Remote Communities Inc.
E40: 2015 | Z40: 38 | AA40: Hydro Ottawa Limited
Z41: 39 | AA41: Innpower Corporation
Z42: 40 | AA42: Kashechewan Power Corporation
A43: Are you applying for cost recovery for the test and/or future year(s) for Green Energy initiatives? | Z43: 41 | AA43: Kenora Hydro Electric Corporation Ltd.
E44: No | Z44: 42 | AA44: Kingston Hydro Corporation
Z45: 43 | AA45: Kitchener-Wilmot Hydro Inc.
A46: ="Is " & E14 & " an embedded distributor?" -> Is Energy + Inc. an embedded distributor? | E46: No | Z46: 44 | AA46: Lakefront Utilities Inc.
Z47: 45 | AA47: Lakeland Power Distribution Ltd.
Z48: 46 | AA48: London Hydro Inc.
B49: Notes | Z49: 47 | AA49: Midland Power Utility Corporation
Z50: 48 | AA50: Milton Hydro Distribution Inc.
C51: Pale green cells represent input cells. | Z51: 49 | AA51: Newmarket-Tay Power Distribution Ltd.
Z52: 50 | AA52: Niagara Peninsula Energy Inc.
C53: Pale blue cells represent drop-down lists. The applicant should select the appropriate item from the drop-down list. | Z53: 51 | AA53: Niagara-on-the-Lake Hydro Inc.
Z54: 52 | AA54: North Bay Hydro Distribution Limited
C55: White cells contain fixed values, automatically generated values or formulae. | N55: =IF(LEN($G55)>1, (SUMPRODUCT(--($C$78:$C$1000=$C55),--($A$78:$A$1000=$D55), --($B$78:$B$1000=$B55&"_TOTAL"), $L$78:$L$1000)), "") ->  | O55: =IF(LEN($G55)>1, (SUMPRODUCT(--($C$78:$C$1000=$C55),--($A$78:$A$1000=$D55), --($B$78:$B$1000=$B55&"_TOTAL"), $M$78:$M$1000)), "") ->  | Z55: 53 | AA55: Northern Ontario Wires Inc.
N56: =IF(LEN($G56)>1, (SUMPRODUCT(--($C$78:$C$1000=$C56),--($A$78:$A$1000=$D56), --($B$78:$B$1000=$B56&"_TOTAL"), $L$78:$L$1000)), "") ->  | O56: =IF(LEN($G56)>1, (SUMPRODUCT(--($C$78:$C$1000=$C56),--($A$78:$A$1000=$D56), --($B$78:$B$1000=$B56&"_TOTAL"), $M$78:$M$1000)), "") ->  | Z56: 54 | AA56: Oakville Hydro Electricity Distribution Inc.
Z57: 55 | AA57: Orangeville Hydro Limited
Z58: 56 | AA58: Orillia Power Distribution Corporation
Z59: 57 | AA59: Oshawa PUC Networks Inc.
Z60: 58 | AA60: Ottawa River Power Corporation
Z61: 59 | AA61: Peterborough Distribution Inc.
Z62: 60 | AA62: PUC Distribution Inc.
Z63: 61 | AA63: Renfrew Hydro Inc.
Z64: 62 | AA64: Rideau St. Lawrence Distribution Inc.
Z65: 63 | AA65: Sioux Lookout Hydro Inc.
Z66: 64 | AA66: St. Thomas Energy Inc.
Z67: 65 | AA67: Thunder Bay Hydro Electricity Distribution Inc.
Z68: 66 | AA68: Tillsonburg Hydro Inc.
Z69: 67 | AA69: Toronto Hydro-Electric System Limited
Z70: 68 | AA70: Veridian Connections Inc.
Z71: 69 | AA71: Wasaga Distribution Inc.
Z72: 70 | AA72: Waterloo North Hydro Inc.
Z73: 71 | AA73: Welland Hydro-Electric System Corp.
Z74: 72 | AA74: Wellington North Power Inc.
Z75: 73 | AA75: West Coast Huron Energy Inc.
Z76: 74 | AA76: Westario Power Inc.
Z77: 75 | AA77: Whitby Hydro Electric Corporation

Sheet Index
A15: 1 | B15: LDC Information Sheet | E15: 20 | F15: App.2-G: Service Reliability Indicators
A16: 2 | B16: Index | E16: 21 | F16: App.2-H: Other Operating Revenue
A17: 3 | B17: Cost of Service Application Flowchart | E17: 22 | F17: App.2-I: Load Forecast CDM Adjustment Workform
A18: 4 | B18: List of Key References | E18: 23 | F18: App.2-IA: Load Forecast Data Instructions
A19: 5 | B19: App.2-A: List of Requested Approvals | E19: 24 | F19: App.2-IB: Actual and Forecast Load and Customer Data
A20: 6 | B20: App.2-AA: Capital Projects Table | E20: 25 | F20: App.2-JA: OM&A Summary Analysis
A21: 7 | B21: App.2-AB: Capital Expenditures | E21: 26 | F21: App.2-JB: Recoverable OM&A Cost Driver Table
A22: 8 | B22: App. 2-AC: Customer Engagement Worksheet | E22: 27 | F22: App.2-JC: OM&A Programs Table
A23: 9 | B23: App.2-B: General Accounting Instructions | E23: 28 | F23: App.2-K: Employee Costs
A24: 10 | B24: App.2-BA: Fixed Asset Continuity Schedule | E24: 29 | F24: App.2-L: Recoverable OM&A Cost per Customer and per FTE
A25: 11 | B25: Appendix 2-BB: Service Life Comparison | E25: 30 | F25: App.2-M: Regulatory Costs Schedule
A26: 12 | B26: App.2-C_DepExp: Depreciation and Amortization Expense | E26: 31 | F26: App.2-N: Shared Services and Corporate Cost Allocation
A27: 13 | B27: App.2-D: Overhead Expenses | E27: 32 | F27: App.2-OA: Capital Structure and Cost of Capital
A28: 14 | B28: App.2-EA: Account 1575 PP&E Deferral Account (2015 IFRS Adopters) | E28: 33 | F28: App.2-OB: Debt Instruments
A29: 15 | B29: App.2-EB: Account 1576 - Accounting Changes Under CGAAP (2012 Changes) | E29: 34 | F29: App.2-Q: Cost of Serving Embedded Distributor(s)
A30: 16 | B30: App.2-EC: Account 1576 - Accounting Changes Under CGAAP (2013 Changes) | E30: 35 | F30: App.2-R: Loss Factors
A31: 17 | B31: App.2-FA: Renewable Generation Connection Investment Summary | E31: 36 | F31: App.2-S: Stranded Meter Treatment
A32: 18 | B32: App.2-FB: Calculation of Renewable Generation Connection Direct Benefits/Provincial Amount: Renewable Enabling Improvement Investments | E32: 37 | F32: App.2-Y: Transition to MIFRS Summary Impact
A33: 19 | B33: App.2-FC: Calculation of Renewable Generation Connection Direct Benefits/Provincial Amount: Renewable Expansion Investments | E33: 38 | F33: App.2-YA: One-Time Incremental IFRS Transition Costs
A42: Note: | B42: Appendices for the Tariff of Rates and Charges at Current and Proposed Rates, and for the Bill Impacts are now in a separate spreadsheet model. These appendices were formerly 2-Z and 2-W.

Sheet COS Flowchart
B4: Cost of Service Rate Application Schematic
B6: The Cost of Service Rate Application Schematic is a flowchart that is included as a guide for the components of an application. The schematic demonstrates how demand and costs interrelate to derive the revenue requirement and how the revenue requirement is allocated between classes and through fixed/variable splits to derive rates that will be compensatory for the annual revenue requirement, based on the the forecasted demand. There is no form to be filled out; therefore, this Schedule is not required to be filed.

Sheet List of Key References
B3: List of Key References
A5: A list of key references for understanding the Filing Requirements has been embedded in the document below. To access the list of references and associated hyperlinks double-click the icon below.

Sheet App.2-A_Requested_Approvals
G1: File Number: | H1: =EBNUMBER -> EB-2018-0028
G2: Exhibit: | H2: 1
G3: Tab: | H3: Section 1.1
G4: Schedule:
G5: Page: | H5: 6
G7: Date: | H7: 2018-04-27
B9: Appendix 2-A
B10: List of Requested Approvals
B12: The distributor must fill out the following sheet with the complete list of specific approvals requested and relevant section(s) of the legislation must be provided. All approvals, including accounting orders (deferral and variance accounts) new rate classes, revised specific service charges or retail service charges which the applicant is seeking, must be separately identified, as well being clearly documented in the appropriate sections of the application.
B14: Additional requests may be added by copying and pasting blank input rows, as needed.
B16: If additional requests arise, or requested approvals are removed, during the processing of the application, the distributor should update this list.
B18: =CONCATENATE('LDC Info'!E14," is seeking the following approvals in this application:") -> Energy + Inc. is seeking the following approvals in this application:
B20: 1 | F20: Approval to change the rate year to January 1 to December 31 from May 1 to April 30, in order to align with financial and other reporting as set out in Exhibit 8.
B22: 2 | F22: Approval to charge distribution rates effective January 1, 2019 to recover a service revenue requirement of $36,825,314 which includes a revenue deficiency of $1,543,390 as detailed in Exhibit 6. The schedule of proposed rates is set out in Exhibit 8.
B24: 3 | F24: Approval to harmonize distribution rates and Specific Service Charges for the Cambridge and North Dumfries (“CND”) and Brant County (“Brant”) service areas. This is described in Exhibit 8.
B26: 4 | F26: Approval to extend the General Service 50 to 999 kW customer class, existing for the CND service area, to the applicable customers in the Brant service area as discussed in Exhibit 8.
B28: 5 | F28: Approval to implement a Standby Charge for the Large Use, General Service 1,000 to 4,999 kW and General Service 50 to 999 kW customer classes with load displacement. This is described in Exhibit 7.
B30: 6 | F30: Approval for an Advanced Capital Model (“ACM”) to fund a portion for the Land and Facilities Plan, as described in Exhibit 2.
B32: 7 | F32: Approval to adjust the Retail Transmission Rates – Network and Connection as detailed in Exhibit 8.
B34: 8 | F34: Approval of the proposed loss factors as detailed in Exhibit 8.
B36: 9 | F36: Approval to continue to use the Transformer Allowance and Primary Metering Allowance for transformer losses most recently approved as part of Energy+’s Tariff of Rates and Charges approved by the Board in Energy+’s last Cost of Service Application for 2014 distribution rates for the former Cambridge and North Dumfries Hydro Inc. (EB-2013-0116) and the former Brant County Power Inc. (EB-2010-0125) for 2011 distribution rates. This is described in Exhibit 8.
B38: 10 | F38: Approval of the rate riders for disposition of the Group 1 and Group 2 and Other Deferral and Variance Accounts as detailed in Exhibit 9. Included in the Deferral and Variance Accounts to be approved are accounts that are either new accounts or specifically directed by the OEB to be established by Energy+.
B40: 11 | F40: Approval to charge the Board’s updated Pole Attachment Charge, effective January 1, 2019.
B42: 12 | F42: Approval to use gross load billing for Retail Transmission Rates – Network and Connection charges for customers who have load displacement generation as detailed in Exhibit 8.
B44: 13 | F44: Approval of the rate rider for a one year disposition of the Lost Revenue Adjustment Mechanism Variance Account (“LRAMVA”) for lost revenue as presented in Exhibits 4 and 9 of this Application.
B46: 14 | F46: Approval of the rate rider for a one year disposition of Stranded Meter assets in relation to the smart metering initiative, as presented in Exhibit 9 of this Application.

Sheet App.2-AA_Capital Projects
G1: File Number: | H1: =EBNUMBER -> EB-2018-0028
G2: Exhibit: | H2: 1
G3: Tab:
G4: Schedule:
G5: Page:
G7: Date: | H7: 2018-04-27
A9: Appendix 2-AA
A10: Capital Projects Table
A11: Consolidated Former CND and BCP (2014-2015) and Energy+ Inc. (2016-2019)
A13: Projects | B13: =C13-1 -> 2014 | C13: =D13-1 -> 2015 | D13: =E13-1 -> 2016 | E13: =BridgeYear - 1 -> 2017 | F13: =BridgeYear & " Bridge Year" -> 2018 Bridge Year | G13: =TestYear & " Test Year" -> 2019 Test Year
A14: Reporting Basis | B14: CGAAP | C14: MIFRS | D14: MIFRS | E14: MIFRS | F14: MIFRS | G14: MIFRS
A15: System Access
A16: Servicing Industrial (Underground) | B16: 1009050 | C16: 519325 | D16: 1145929 | E16: 757000 | F16: 1193500 | G16: 1193500
A17: Subdivision Capital Investment (by developer) | B17: 923206 | C17: 2843915 | D17: 1172571 | E17: 957159 | F17: 935115 | G17: 935115
A18: Franklin Boulevard Roundabouts - Year 1 | B18: 238094.77 | C18: 1792761.11
A19: Franklin Boulevard Roundabouts - Year 2 | B19: 173303.56 | C19: 107324 | D19: 127897.22 | E19: 1685000
A20: Relocations - Fountain St. (Cherry Blossom to Kossuth) (Region of Waterloo) | F20: 1170000
A21: Meters (Included in General Plant prior to 2019 to align to previous DSP) | G21: 421092
A22: Meters (MIST Program) | G22: 330000
A23: Powerline Road from Rest Acres Rd to Mile Hill Road - 0.6KM OH to UG Conversion | F23: 695000
A24: Grand River Street from St. Patrick to North Limits of Paris (1.6km) - 6 FFA Poles | F24: 0 | G24: 322950
A25: Creekside Corporate Campus (adjacent to Highway #8) | F25: 300000
A26: Relocations - Adam/Queen/Guelph Intersection | F26: 201000
A27: Brant 403 Business Park Phase 2 | G27: 297900
A28: Connection from end of Intermarket Road (Creekside Corporate Campus Phase 2) and Boychuk Drive (Creekside Corporate Campus Phase 1) - 0.7km - North West Industrial Area - City of Cambridge - CND Area | G28: 180000
A29: Relocations - Elgin St.. N. (Glamis Rd. to CP Rail Bridge) - (City of Cambridge) - CND Area | G29: 172600
A30: Servicing Industrial (Overhead) | C30: 210748 | D30: 135986 | E30: 155000 | F30: 139600 | G30: 155000
A31: Relocations - Various City/Township/Region Projects | C31: 223212 | D31: 144007 | E31: 141000 | F31: 143900 | G31: 167400
A32: Relocation/rebuild of existing 4.8kV line at LaFarge Gravel Pit | F32: 153600
A33: Relocations - Elliott St. - Henry St. to East St. (City of Cambridge) - CND Area (0 FFA Poles) | F33: 129720
A34: East West Arterial Road (Intermarket Road - Creekside Corporate Campus Phase 2) [adjacent to Highway #8 in Cambridge) - CP Rail (East of King Street) to 0.6km East - North West Industrial Area - City of Cambridge - CND Area | G34: 105000
A35: Servicing Residential (Overhead) | D35: 50768 | E35: 61500 | F35: 70000 | G35: 70000
A36: Servicing Residential (Underground) | D36: 86546 | E36: 46000 | F36: 70000 | G36: 70000
A37: Relocations - Shantz Hill Road (Region of Waterloo) | E37: 75200 | F37: 80000
A38: Relocations - South Boundary Road (SBR) - Water St. S./SBR, Cheese Factory Rd./SBR | D38: 448252 | E38: 163000 | F38: 67680
A39: Relocations - St. Andrews St. (Region of Waterloo) | E39: 230000
A40: Relocations - Swan St./Northumberland St. (Region of Waterloo) | E40: 394800
A41: Double Circuit Existing 27.6kV Line - Fountain St (Shantz Hill to Dickie Settlement Road) - 2.8km | C41: 800327 | D41: 205594
A42: Relocations - Fountain St./King St. (Region of Waterloo) | D42: 384608
A43: PM5 from Station | D43: 261561
A44: Rest Acres Bethel Rd. M11 to Robinson | D44: 235931
A45: Speedsville Relocations | B45: 334393
A46: Fountain St. Relocations (Ministry of Transportation) | B46: 227179
A47: Fountain St. Rebuild - Ph2 | D47: 205594
A48: Highway 401 Widening and Bridge Replacements | C48: 288286 | D48: 74014
A49: Relocations - 12.5 Water St. S (City of Cambridge) | C49: 238848
A50: Pole Upgrade Powerline Rd. (Brantford Power Inc.) | C50: 209502
A51: Munch Ave Relocations | C51: 204702.15
A52: Double Circuit Existing 27.6kV Line - Bishop St. (Conestoga Blvd. to Collier MacMillan Dr.) - 0.3km | B52: 159804
A53: Rest Acres Bethel Rd. to MS#5 | B53: 158948
A54: Relocations - Shettleston Dr. | C54: 135191
A55: Relocations - Sheffield St. | D55: 134746
A56: Miscellaneous-System Access | B56: 556842.67 | C56: 490162.66 | D56: 671525.08 | E56: 78999 | F56: 73900 | G56: 103650
A57: Sub-Total | B57: =SUM(B16:B56) -> 3780821 | C57: =SUM(C16:C56) -> 8064303.92 | D57: =SUM(D16:D56) -> 5485529.3 | E57: 4744658 | F57: =SUM(F16:F56) -> 5423015 | G57: =SUM(G16:G56) -> 4524207
A58: System Renewal
A59: Rebuild existing 16kV underground primary - Forest Drive, Columbine Crescent, Magnolia Drive, Larkspur Lane, Abeles Avenue, Clover Court (Paris) - approx.200 customers (1973) - 2.2KM Brant Area | G59: 1080400
A60: Rebuild and Convert Overhead Line from 8.32/4.8kV to 27.6/16kV - Cockshutt Road from Sour Springs Road to River Road & McGill Road from Cockshutt Road to 2km West of Cockshutt Road (72 Poles Removed)- 3.3km - Brant Area | F60: 964000
A61: Rebuild and Convert Overhead Line from 4.8kV to 27.6/16kV - Powerline Road from Rest Acres Road to Bishopsgate Road - 3.5km (50 Poles FFA Removed) | G61: 750000
A62: Grand Ridge Drive Area Underground Rebuild (1977-1979) - (presently 27.6kV) | E62: 482400 | F62: 713300 | G62: 0
A63: Rebuild and Convert Overhead Line from 4.8kV to 16kV - Langford Church Rd from Colborne Street East to North of County Rd 8 - 4km (26 Poles FFA ) - Brant Area | G63: 600000
A64: Pole Replacements | B64: 619925 | C64: 557400.85 | D64: 642503 | E64: 1360892 | F64: 833200 | G64: 548100
A65: Rebuild and Convert Overhead Line from 8.32/4.8kV to 27.6/16kV - Burtch Road from West of Biggars Lane to Cockshutt Road (53 Poles Removed) - 2.7km - Brant Area | F65: 611000
A66: Rebuild and Convert Overhead Line from 8.32/4.8kV to 27.6/16kV - Cockshutt Road from Burtch Road to Sour Springs Road (43 Poles Removed) - 2.2km - Brant Area | F66: 635800
A67: Rebuild and Convert Overhead Line from 8.32/4.8kV to 27.6/16kV - Colborne Street East from East of McBay Road to Maden Road - 1.8km - 30 Poles FFA - Brant Area | G67: 502000
A68: Line Transformers (Various Projects) | B68: 467247 | C68: 306845.06 | D68: 679308 | E68: 390000 | F68: 450000 | G68: 450000
A69: Rebuild and Convert Overhead Line from Single Phase to Three Phase (4.8kV to 27.6kV/16kV)- Park Road North from Powerline Road to Governors Road East - 2.1km (15 Poles FFA Removed) | G69: 442000
A70: Underground Rebuild - Bluerock Crescent (1979) - 60 customers (presently 27.6kV) - CND Area - 0.8km | G70: 392700
A71: Rebuild existing 27.6kV line on and behind Queen Street West from Shepherd Avenue to Guelph Avenue (20 Poles Removed) - CND Area - 1.6km | F71: 328250
A72: Porcelain Insulator Replacements with Polymer | B72: 110684 | C72: 113498 | D72: 86683 | E72: 70975 | F72: 317000 | G72: 362000
A73: Rebuild and Convert Overhead Line from 4.8kV to 27.6/16kV - Cockshutt Road from River Road to Tutela Heights Road - 1.6km (11 Poles FFA Removed) | G73: 334000
A74: Cindy Avenue (1977) - 52 customers (presently 27.6kV) | F74: 281000
A75: Brant UG Rebuild existing 4.8kV primary - Isabel Dr. and August Ave. Approx. 50 customers (1976), - 0.7KM | G75: 275000
A76: Rebuild and Convert Overhead 4.8kV to 16kV Line - Governors Rd East from King George Rd to Park Road - 1.6KM (8 Poles FFA) | G76: 240000
A77: Rebuild and Convert Overhead 4.8kV to 16kV Line - River Road from Cockshutt Rd to Newport Rd - 1.2KM (15 Poles FFA) | G77: 180000
A78: Galt Core Area Upgrades | B78: 221647.54 | C78: 167075 | D78: 318816.51 | E78: 244700 | F78: 132000 | G78: 132000
A79: Rebuild and Convert Overhead Line from 4.8kV to 16kV - Robinson Road from Mill Street to 0.7km West of Mill Street & Convert Tx's on Bishopsgate Rd (11 Poles Removed)- 0.7km - Brant Area | F79: 123000
A80: Porcelain SMD-20 Replacements with Polymer - CND Area | B80: 56387 | C80: 82370 | D80: 242425 | E80: 44000 | F80: 110500 | G80: 110500
A81: PMH Switching Unit Replacements | C81: 82823 | D81: 116334 | E81: 168000 | F81: 85000 | G81: 85000
A82: Concrete Pole Replacement - Colborne Street East - Part 1 of 2 - Brant Area | E82: 109000 | F82: 85650
A83: Powerline Rd. Rebuild - Brant Area | D83: 363705 | E83: 1000774
A84: Rebuild and Convert Overhead Line from 8.32/4.8kV to 27.6/16kV - McMillan Road from Powerline Road to Lynden Road - 2.2km | E84: 751170
A85: 4kV Underground Conversion in South part of Paris - Old Mill Street, Gilston Parkway, Race Street, Hillside Avenue - approx. 120 customers (1960's) | E85: 706700
A86: Avonlea/Earlwood/Briarwood Area Underground Rebuild (1974) - 122 customers (presently 27.6kV) | E86: 658250
A87: Rebuild and Convert Overhead Line from 8.32/4.8kV to 27.6/16kV - King George Road from North of Powerline Road to Governors Road East - 1.8km | E87: 614629
A88: Rebuild and Convert Overhead Line from 4.8kV to 27.6/16kV - Cleaver Road from Bethel Road to Robinson Road - 2.1km | E88: 430700
A89: Lang's Circle (1978) - 63 customers (presently 27.6kV) | E89: 340400
A90: Welsh Dr./Trussler Rd. Underground Rebuild (mid 1970's) - 14 customers (presently 4.8kV) | E90: 257900
A91: Rebuild and Convert Overhead Line from 8.32/4.8kV to 27.6/16kV - Robinson Road from Highland Drive to Mill Street - 1km | E91: 205100
A92: Replacement of Rusted Mini-Pad Transformers (Various Areas not included in rebuilds) - Brant Area | E92: 170750
A93: Rebuild and Convert Overhead Line from 8.32/4.8kV to 27.6/16kV - Mill Street from Robinson Road to 0.7km South of Robinson Road - 0.7km | E93: 143500
A94: Avenue Road near Grandy Lane (1967+) (8kV) - 0.4km | E94: 74400
A95: Rebuild and Convert Glengarry Court from Underground 4.8kV to Underground 16kV - 1 Mini Pad Transformer (1973) | E95: 74000
A96: Cambrian Hills Area (1975/76) - Winston/Gunn/Randall/Ashwood/Westbury/Grey Abbey/Rideau/Thomas/Erindale/Ivanhoe/Woodgate/Cottontail/Kribs Area - (presently 27.6kV ) | C96: 556997.66 | D96: 1733324.72
A97: Robinson Rd to Green Rd 8kV conversion M25 | D97: 761269
A98: Part of Spragues Road and Part of Alps Road (1950's to 1990's) (8kV ) - 4.1km - Started in 2015 and to be finished in 2016. | D98: 547334.36
A99: Byton Lane, part of Grand Ridge Drive, Mark Crescent, Johanna Drive, Duchess Drive, Angela Crescent, part of Wedgewood Drive, part of Delavan Drive, part of Birchlawn Avenue (1977-1979) - 328 customers (presently 27.6kV) - Part 1 of 2 | D99: 455864.8
A100: Speedsville Road from Maple Grove Road to South of Kossuth Rd (couple poles dating back to 1939, mostly 1965) (8kV ) - 3.1km | D100: 361892.09
A101: Middle Block Road from Fountain Street to Speedsville Road (1950's) (8kV ) - 2km | D101: 283926
A102: Hespeler Road Rebuild (Kossuth Rd and Black Ridge Rd. 1950 8kV 2.5km) | C102: 290146.93 | D102: 252540
A103: 8kV to 27.6kV Conversion Powerline Rd. (MS#2, MS#4, MS#6) | D103: 244319
A104: Pleasant Ridge Rd - Rebuild | D104: 185103
A105: Blair Road near Langdon Hall (1960's to 1990's) (8kV ) - 1.7km | D105: 191686
A106: West River Road Rebuild 16kv | C106: 208167.57 | D106: 165996
A107: Fallbrook Lane/Langdon Drive - 0.8km | D107: 162469
A108: Cheese Factory 16kV Rebuild | B108: 180003.42
A109: Greenfield Road from Dumfries Rd. to East of Spragues Rd./parts of Edworthy Rd. and Alps Rd. - 10.1km | B109: 20447 | C109: 1668640.3
A110: Northview Acres Area Underground Rebuild | B110: 889090.2 | C110: 878405.66 | D110: 19886
A111: Muncipal Station #4 Removal; Convert Burtch Rd. between Mount Pleasant and Pleasant Ridge. Rd. | C111: 202299
A112: Willow St. Upgrade | C112: 197185
A113: Shellard Road - Morrison Road to Gore Road - 5.1km | B113: 653840
A114: Beke Road - Spragues Road to End - 0.8km | B114: 264114.11
A115: Colborne St. W Conversion | B115: 178355
A116: Shellard Road - Morrison Road to Gore Road (Phase 3) | C116: 153439.23
A117: Miscellaneous-System Renewal | B117: 699651.73 | C117: 603524.49 | D117: 377639.6 | E117: 731769 | F117: 149000 | G117: 169000
A118: Sub-Total | B118: =SUM(B59:B117) -> 4361392 | C118: 6068817.75 | D118: 8193024.08 | E118: 9030009 | F118: 5818700 | G118: 6652700
A119: System Service
A120: Scada-Mate Switches | F120: 240000 | G120: 240000
A121: Load break Switches | B121: 282456 | D121: 410875.57 | E121: 77000 | F121: 132000 | G121: 62000
A122: SCADA Switch Controllers/Reclosures | C122: 462247.32 | D122: 164416
A123: Capacitor Banks (1/3 Ownership Brantford/Brant TS) | C123: 387395
A124: Engineering/Environmental Studies for MTS#2 | E124: 200000 | F124: 100000
A125: Hydro One AACE Class 3 Estimate for MTS # 2 | F125: 276000
A126: Purchase of Land for new Transformer Station (MTS#2) | F126: 1650000
A127: Improve fault isolation (Brant) | C127: 122144
A128: PM5 Feeder from King George Rd. to Municipal Station #2 (Brant) | C128: 141553
A129: Miscellaneous-System Service | B129: 298853 | C129: 285451.76 | D129: 143167.43 | E129: 141089 | F129: 133100 | G129: 65000
A130: Sub-Total | B130: =SUM(B120:B129) -> 581309 | C130: 1398791.08 | D130: 718459 | E130: 418089 | F130: 2531100 | G130: 367000
A131: General Plant
A132: Shared Operations Centre - Capital Lease with Brantford Power Inc. | G132: 4400000
A133: Meters (Reallocated to System Access commencing in 2019); General Plant 2014-2018 to be consistent with DSP | B133: 295527 | C133: 109975 | D133: 257549 | E133: 682390 | F133: 408242
A134: Meters (MIST Program) | E134: 98098 | F134: 416000
A135: Primary Metering Upgrade | C135: 86547 | D135: 62541
A136: Computer Software - OMS Implementation (2014/2015); OMS Upgrade - End of Life (2019) | B136: 652637 | C136: 449324 | D136: 43950 | G136: 100000
A137: Computer Software - CIS Northstar 6.4 Upgrade | E137: 83580
A138: Computer Software - GIS Conversion | D138: 84066 | E138: 120000
A139: Computer Software - Prism (SCADA) Upgrade | F139: 138000
A140: Computer Software - ERP Upgrade - End of Life | C140: 50980 | F140: 90000
A141: Computer Software - RNI Upgrade | B141: 69312
A142: Computer Software - Other - Ugrades/Renewals | B142: 342384 | C142: 142451 | E142: 399426 | F142: 384200 | G142: 426500
A143: Computer Software Integrations (CIS) | C143: 376779 | D143: 105391
A144: Computer Software Integrations (ERP) | C144: 109715 | D144: 133547
A145: Computer Software- Intranet Upgrade | D145: 50991
A146: Computer Software/Hardware - Disaster Recovery & Cyber Security | C146: 98296 | D146: 99229
A147: Computer Hardware - Asset Replacement Program - End of Life | B147: 191149 | C147: 155164 | D147: 118506 | E147: 167966 | F147: 168000 | G147: 240700
A148: Computer Hardware - Storage Upgrade | B148: 215324
A149: Computer Hardware - Core Switch Upgrade - End of Life | E149: 100000
A150: Computer Hardware - Truck Radio Upgrade - End of Life | D150: 15942 | E150: 75000
A151: Transportation - Larger Vehicle Replacements | B151: 652927 | C151: 429400 | E151: 240000
A152: Transportation - Stringing Machines | C152: 0 | D152: 293363
A153: Transportation - Small Vehicle Replacements - End of Life | B153: 195146 | C153: 181419 | D153: 174394 | E153: 119000 | F153: 100000 | G153: 105000
A154: Tools and Equipment | B154: 67871 | C154: 45884 | D154: 79707 | E154: 159500 | F154: 108500 | G154: 66700
A155: Building - Replace Roof | B155: 79400
A156: Miscellaneous-General Plant | B156: 275262 | C156: 247369 | D156: 266886 | E156: 160502 | F156: 67400 | G156: 3601
A157: Sub-Total | B157: =SUM(B132:B156) -> 3036939 | C157: 2483303 | D157: =SUM(D132:D156) -> 1786062 | E157: 2405462 | F157: 1880342 | G157: 5342501
A158: Miscellaneous
A159: Total | B159: =SUMPRODUCT(--($A15:$A158="Sub-Total"), B$15:B$158)+B158 -> 11760461 | C159: 18015215.75 | D159: 16183074.38 | E159: 16598218 | F159: 15653157 | G159: 16886408
A160: Less Renewable Generation Facility Assets and Other Non-Rate-Regulated Utility Assets (input as negative) | C160: -145715
A161: Total | B161: =B159+B160 -> 11760461 | C161: 17869500.75 | D161: 16183074.38 | E161: 16598218 | F161: 15653157 | G161: 16886408
A163: Notes:
A165: 1 Please provide a breakdown of the major components of each capital project undertaken in each year. Please ensure that all projects below the materiality threshold are included in the miscellaneous line. Add more projects as required.
A166: 2 The applicant should group projects appropriately and avoid presentations that result in classification of significant components of the capital budget in the miscellaneous category.
A167: Assumptions or Additional Notes:
A168: 1. Total Capital Project additions represent total expenditures by project in each fiscal year, including expenditures included in Work in Progress. Projects that are not complete and/or energized by year-end are included in Work in Progress. Therefore, total expenditures will be equal to the Fixed Assets Additions as per the Fixed Asset Continuity Schedules plus or minus the change in Work in Progress.
A169: 2. Capital Project additions are based on gross capital expenditures before capital contributions.
A170: 3. Energy+ has used a best efforts to allocate the former Brant County Power Inc. capital projects to the appropriate categories for 2014. In 2015, subsequent to the acquisition, detailed project accounting was implemented to allow for categorization of expenditures from 2015 onwards.

Sheet App.2-AB_Capital Expenditures
S1: File Number: | U1: =EBNUMBER -> EB-2018-0028
S2: Exhibit: | U2: 1
S3: Tab:
S4: Schedule:
S5: Page:
S7: Date: | U7: 2018-04-27
A9: Appendix 2-AB
A10: Table 2 - Capital Expenditure Summary from Chapter 5 Consolidated Distribution System Plan Filing Requirements
A11: Consolidated Former CND and BCP (2014-2015) and Energy+ Inc. (2016-2023)
A12: First year of Forecast Period: | B12: =TestYear -> 2019
A13: CATEGORY | B13: Historical Period (previous plan1 & actual) | Q13: Forecast Period (planned)
B14: =E14-1 -> 2014 | E14: =H14-1 -> 2015 | H14: =K14-1 -> 2016 | K14: =N14-1 -> 2017 | N14: =Q14-1 -> 2018 | Q14: =B12 -> 2019 | R14: =Q14+1 -> 2020 | S14: =R14+1 -> 2021 | T14: 2022 | U14: 2023
B15: Plan | C15: Actual | D15: Var | E15: Plan | F15: Actual | G15: Var | H15: Plan | I15: Actual | J15: Var | K15: Plan | L15: Forecast | M15: Var | N15: Plan | O15: Forecast | P15: Var
B16: $ '000 | D16: % | E16: $ '000 | G16: % | H16: $ '000 | J16: % | K16: $ '000 | M16: % | N16: $ '000 | P16: % | Q16: $ '000
A17: System Access | B17: 9038 | C17: 3781 | D17: =IF(ISERROR((C17-B17)/B17),"--",(C17-B17)/B17) -> -0.5816552335 | E17: 11749 | F17: 8064 | G17: =IF(ISERROR((F17-E17)/E17),"--",(F17-E17)/E17) -> -0.3136437144 | H17: 4355 | I17: 5486 | J17: =IF(ISERROR((I17-H17)/H17),"--",(I17-H17)/H17) -> 0.2597014925 | K17: 4867 | L17: 4745 | M17: =IF(ISERROR((L17-K17)/K17),"--",(L17-K17)/K17) -> -0.02506677625 | N17: 5423 | O17: 5423 | P17: =IF(ISERROR((O17-N17)/N17),"--",(O17-N17)/N17) -> 0 | Q17: 4524 | R17: 4007 | S17: 4352 | T17: 3934 | U17: 4129
A18: System Renewal | B18: 5921 | C18: 4361 | D18: =IF(ISERROR((C18-B18)/B18),"--",(C18-B18)/B18) -> -0.2634690086 | E18: 5925 | F18: 6069 | G18: =IF(ISERROR((F18-E18)/E18),"--",(F18-E18)/E18) -> 0.02430379747 | H18: 6700 | I18: 8193 | J18: =IF(ISERROR((I18-H18)/H18),"--",(I18-H18)/H18) -> 0.2228358209 | K18: 9064 | L18: 9030 | M18: =IF(ISERROR((L18-K18)/K18),"--",(L18-K18)/K18) -> -0.003751103266 | N18: 5819 | O18: 5819 | P18: =IF(ISERROR((O18-N18)/N18),"--",(O18-N18)/N18) -> 0 | Q18: 6653 | R18: 8591 | S18: 8007 | T18: 8849 | U18: 8672
A19: System Service | B19: 862 | C19: 581 | D19: -0.3259860789 | E19: 745 | F19: 1399 | G19: 0.877852349 | H19: 840 | I19: 718 | J19: -0.1452380952 | K19: 1984 | L19: 418 | M19: -0.7893145161 | N19: 2531 | O19: 2531 | P19: 0 | Q19: 367 | R19: 591 | S19: 954 | T19: 422 | U19: 422
A20: General Plant | B20: 4306 | C20: 3037 | D20: -0.2947050627 | E20: 2476 | F20: 2337 | G20: -0.05613893376 | H20: 2182 | I20: 1786 | J20: -0.1814848763 | K20: 3016 | L20: 2405 | M20: -0.2025862069 | N20: 1880 | O20: 1880 | P20: 0 | Q20: 5343 | R20: 6156 | S20: 1668 | T20: 3538 | U20: 1765
A21: Deferred Revenue (Capital Contributions) | B21: -2436 | C21: -756 | D21: -0.6896551724 | E21: -4082 | F21: -4496 | G21: 0.1014208721 | H21: -1279 | I21: -2763 | J21: 1.16028147 | K21: -1429 | L21: -1182 | M21: -0.1728481456 | N21: -2133 | O21: -2133 | P21: 0 | Q21: -817 | R21: -769 | S21: -886 | T21: -772 | U21: -782
A22: TOTAL EXPENDITURE | B22: =SUM(B17:B21) -> 17691 | C22: =SUM(C17:C21) -> 11004 | D22: -0.3779888079 | E22: =SUM(E17:E21) -> 16813 | F22: =SUM(F17:F21) -> 13373 | G22: -0.2046035806 | H22: =SUM(H17:H21) -> 12798 | I22: =SUM(I17:I21) -> 13420 | J22: 0.04860134396 | K22: =SUM(K17:K21) -> 17502 | L22: =SUM(L17:L21) -> 15416 | M22: -0.1191863787 | N22: =SUM(N17:N21) -> 13520 | O22: =SUM(O17:O21) -> 13520 | P22: 0 | Q22: =SUM(Q17:Q21) -> 16070 | R22: =SUM(R17:R21) -> 18576 | S22: =SUM(S17:S21) -> 14095 | T22: =SUM(T17:T21) -> 15971 | U22: =SUM(U17:U21) -> 14206
A23: System O&M | B23: 5805 | C23: 5857 | D23: 0.008957795004 | E23: 6136 | F23: 5636 | G23: -0.0814863103 | H23: 5721 | I23: 5606 | J23: -0.02010138088 | K23: 5661 | L23: 5567.244071 | M23: -0.01656172564 | N23: 5915.30766 | O23: 5915.30766 | P23: 0 | Q23: 5930.64145 | R23: 5975.64145 | S23: 6021.64145 | T23: 6068.64145 | U23: 6115.64145
A25: Total Net Expenditures | C25: 11004 | F25: 13373 | I25: 13420 | L25: 15416 | O25: 13520 | Q25: 16070
A26: Change in Work in Progress | C26: -806 | F26: -2156 | I26: -72 | L26: 0 | O26: 0 | Q26: 0
A27: Assets Not In Use | L27: -200 | O27: -2026
A28: Asset Transfer on FA Continuity Schedule - Not an Addition | C28: 631
A29: Total Net Expenditures, as per Fixed Asset Continuity Schedules | C29: =SUM(C25:C28) -> 10829 | F29: =SUM(F25:F28) -> 11217 | I29: =SUM(I25:I28) -> 13348 | L29: =SUM(L25:L28) -> 15216 | O29: =SUM(O25:O28) -> 11494 | Q29: =SUM(Q25:Q28) -> 16070
A31: Notes to the Table:
A32: 1. Historical “previous plan” data is not required unless a plan has previously been filed. However, use the last Board-approved, at least on a Total (Capital) Expenditure basis for the last cost of service rebasing year, and the applicant should include their planned budget in each subsequent historical year up to and including the Bridge Year.
A33: 2. Indicate the number of months of 'actual' data included in the last year of the Historical Period (normally a 'bridge' year): | J33: 11
A35: Explanatory Notes on Variances (complete only if applicable)
A36: Notes on shifts in forecast vs. historical budgets by category
A37: Please refer to Exhibit 2.
A39: Notes on year over year Plan vs. Actual variances for Total Expenditures
A40: Please refer to Exhibit 2.
A42: Notes on Plan vs. Actual variance trends for individual expenditure categories
A43: Please refer to Exhibit 2.

Sheet App.2-AC_Customer Engagement
B1: File Number: | C1: =EBNUMBER -> EB-2018-0028
B2: Exhibit: | C2: 1
B3: Tab:
B4: Schedule:
B5: Page:
B7: Date: | C7: 2018-04-27
A9: Appendix 2-AC
A10: Customer Engagement Activities Summary
A12: Provide a list of customer engagement activities | B12: Provide a list of customer needs and preferences identified through each engagement activity | C12: Actions taken to respond to identified needs and preferences. If no action was taken, explain why.
A13: AUGMENTED CUSTOMER ENGAGEMENT - DISTRIBUTION SYSTEM PLAN & COST OF SERVICE RATE APPLICATION
A15: Energy+ Employee Interviews | B15: Energy+ customer-facing staff interviewed by consultants to assess thoughts on customer outcomes and criteria used for measuring these identified outcomes. Limited sample for direction only. FINDINGS: Confirmed that customer literacy on electrical distribution is low - a great deal of time is taken by employees to raise electricity literacy, providing information so the customer understands more of how the electricity distribution system works, why bills are high, rate increases, lead time required for connecting services. Large industrial customers see reliability of supply as a priority, momentary outages, length of outages, programs and technical solutions that empower customers to control costs and enhance reliability, voltage fluctuations. | C15: ACTIONS based on Energy+ staff feedback: Input received from customer-facing employee interviews helped guide the development of the Customer Engagement content, and was included in the development of the augmented customer engagement. For example, the Customer Workbook included information to help raise the level of energy literacy, how rates are set. Areas of importance to customers as relayed by internal employees and feedback received from their interactions with customers included, price of electricity, breakdown of bill, value added services, outage information.
A16: Testing Work Book Focus Groups (13) | B16: Two residential workbook testing focus groups were held on July 10, 2017; one group from the County of Brant and one group from the City of Cambridge and Township of North Dumfries customers. The purpose of the testing focus groups was to gauge whether the draft workbooks provided an appropriate amount and substance of information, in order for customers to provide an informed opinion of Energy+'s proposed capital and operating spends. The draft content was also used to capture what the customers stated needs and expectations were, and to ensure the informational content was understood. FINDINGS: The focus group were very engaged and forthright in their review and discussions as they walked through the initial draft workbook. Approximately two-thirds of the pages in the workbook were commented on for various reasons. Customer feedback included comments requiring improved clarity of information, increased transparency with respect to planned capital expenditures, rewording areas to simplify the information, addition of information, more data on outages and formatting to improve the customer's understanding of the overall workbook. Refer to IRG Customer Engagement Report: Priorities, Needs and Preferences Appendix 1-15 | C16: ACTIONS based on customer augmented feedback: All customer feedback to improve the original draft pages of content was captured and incorporated into a revised draft Workbook. Approximately two-thirds of all pages in the draft were revised based on customer feedback. The revisions and enhancements included additional content for better clarity, changes to some overall design pages and layout, increased transparency with respect to planned capital expenditures, rewording areas to simplify the information, addition of information, more data on outages and formatting to improve the customer's understanding of the overall workbook.
A17: Stakeholder Intervenor OEB Workshop | B17: A technical conference with key stakeholders, including Intervenors and Board Staff was held on July 13, 2017. At the workshop Energy+ presented their draft Augmented Customer Engagement Plan including the revised draft customer workbook, that incorporated the changes and feedback from the workbook focus groups. In addition an overall review of proposed Cost of Service Plan with timelines was presented, for feedback. FINDINGS: Energy+ considers two key outcomes from the meeting, to be (i) improved clarity and (ii) better transparency of information for our customers. The Consideration Document summarizes the discussions at the workshop. Refer to IRG Customer Engagement Report: Priorities, Needs and Preferences Appendix 1-15 | C17: ACTIONS based on OEB Staff and Intervenor feedback: Energy+ considered the discussions and specific recommendations from the stakeholder workshop to be extremely valuable. A Consideration Document was created identifying nineteen (19) specific recommendations made by the OEB staff and Intervenors, to improve clarity and transparency, reword questions that could be viewed as "leading questions" in the draft workbook. Energy+ adopted all 19 recommendations. Revisions were incorporated into the communication collateral. A revised Residential Customer Workbook was produced that reflected changes recommended at the stakeholder workshop. The changes and recommendations were incorporated into all customer engagement collateral throughout the augmented customer engagement initiative. Refer to IRG Customer Engagement Report: Priorities, Needs and Preferences Appendix 1-15
A18: Residential & Small Commercial Customer Focus Groups (34 customers) | B18: These Focus groups were an engagement activity designed to educate and inform customers about the utility, Energy+'s role as an electricity distributor, and to share proposed future operating and capital plans. The purpose was to listen and assess genuine customer stated preferences and priorities, gauge customer impacts on rate changes, and inform subsequent phases of the consultation, determine the range of views held by Energy+ customers regarding the proposed distribution system plan and overall business plan. Four separate (4) consultations were held (a Residential and Small Business) in each of Cambridge and Paris on August 15 & 16, 2017. Thirty-four (34) customers were randomly recruited to participate and received a financial incentive for their time commitment. A workbook (customized by geographic and customer class), was used to provide the participants with core information about the local electricity system, Energy+'s proposed capital investment and operating spend, as well as the resulting rate impact for each respective rate class. FINDINGS: 75% of customers indicated satisfaction with services provided by Energy+. Satisfaction with respect to number of outages, restoration times was rated higher than power quality as measured by momentary interruptions. No (0) customers in the County of Brant rated Energy+ as doing "a very good job" at providing information on outage restoration times". Customers overwhelmingly supported wise spending and that Energy+ staff have the tools and equipment needed to manage the system, safely and efficiently. High support from customers to replace aging infrastructure. Two thirds support automatic switches. Only 13% thought the overall proposed rate change was unreasonable. 71% of those that answered, agreed with the proposed rate harmonization. Low interest in signing up for Preauthorized payment plans, Strong interest, 87% that responded want energy conservation programs. Delivering reasonable distribution rates, providing dependable and responsive customer service and reliability are the customers over‐riding priorities. Refer to IRG Customer Engagement Report: Priorities, Needs and Preferences Appendix 1-15 | C18: ACTIONS based on customer augmented feedback: RELIABLE DAY-TO-DAY SERVICE: Will allocate funds in the Five Year Capital Plan to address outage prediction and maintenance prediction. Will Automate Facility Inspection and Line Patrol; Will accelerate program to install automated SCADA switches in the County of Brant to reduce exposure to momentaries and improve outage restoration times, faster response during outages; Will undertake planned maintenance projects; Will implement Forestry Pilot for tree removal on private property; Will focus tree trimming in County of Brant to bring up to better standard; Will improve County of Brant GIS data quality; Will use Aerial photography for GIS and Outage Management System integration; Will transition to 24/7 System Control Room which will result in faster response times during outages with real time onsite monitoring of Energy+ grid. Will increase investment in annual porcelain replacement program in CND from 2019 to 2023. Will make significant infrastructure investments in County of Brant to rebuild and convert both overhead and underground lines to 27.6kV in County of Brant. REASONABLE DISTRIBUTION RATES / CAPITAL INVESTMENTS / AUTOMATED SWITCHES: 2018 and 2019 OM&A budgets were reviewed and reduced before the Augmented Customer Engagements commenced, to align with customer expectations to strive to deliver reasonable distribution rates. For example Conferences, Seminars and Training budgets were reduced. Reduced Capital expenditures in 2019 rebase year by $1.0M, from the initial $17.1M presented to customers, to $16.0M. Re-organized some investment priorities and phasing of investments, made some fundamental changes to approach to managing assets and asset replacement (underground rebuild program will include additional asset testing of infrastructure prior to commencing a rebuild project, with the goal to get additional life out of the assets). Reduced General Plant expenses relating to spending on fleet vehicles. Will defer adding a third overhead feeder line into Town of Paris, and focus resources in rebuilding very old 8kV lines in Brant to 27.6kV. Will continue to pursue collaboration with other utilities through GridSmart City Co-operative to help find operational efficiencies, leverage buying power and best practices. Will work with the City of Cambridge to explore sharing future software and hardware upgrade costs of Sensus network to communicate with smart meters. Will work with Brantford Power Inc. for a shared operational facility with a commitment to continue to pursue other potential shared opportunities that could offer mutual operating efficiencies and/or improvements to the customer experience. DEPENDABLE & RESPONSIVE CUSTOMER SERVICE: Will make internal process improvements to help improve customers' experience including pre, during and post outage information. Will connect Automated Meter Interrogation (AMI) technology to the Outage Management System (OMS) so that Control Room is able to confirm outages and dispatch crews for faster restoration. Will continue to transition to 24/7 monitoring so that Control Room operators will monitor the system in real time. Will move Outage Map to the website homepage to improve visibility for customers. Will upload historical outage details on the Outage webpage. Will implement new, dedicated "PowerAssist" 1-800-POWER ON information line to further meet customer expectations for improved communication during power outage situations. Customers will call in 24/7/365 to report and receive timely outage, restoration and social media updates. In 2020, will introduce an Interactive Voice Recognition system, to enable customers who have signed up, to receive push notifications via text/email during outages. Will explore additional training for staff to equip them with the knowledge and skills to better assess and accommodate the needs of the customers. Will introduce Customer Service online training modules to help improve the level of service and responsiveness to customers. RATE HARMONIZATION: After customer feedback was received in augmented customer engagement, Energy+ revisited the rate harmonization model and considered the impact of phasing in the rate harmonization over two years, versus implementing in one year 2019. In the interest of operational efficiencies, and in light of information provided to customers at the time of purchase of Brant County Power in 2014, Energy+ will implement rate harmonization for all customers in 2019. HELP TO MANAGE ELECTRICITY CONSUMPTION: Will continue to help educate low-volume customers increase their energy conservation and billing literacy, using social media, web channels and increased face-to-face outreach. Will increase promotion of eServices solution, My Account Online portal for customers to view energy consumption data. Will deliver Affordability Fund to help customers improve energy efficiency of homes, while reducing electricity bills. Will launch free online energy audit tool - EnergyXPert. Will introduce new Save On Energy programs for low-volume customers. Will create and launch additional website videos explaining vital energy literacy concepts. In 2020 will add Live Chat feature to the website to help meet the needs of customers when accessing My Account Online and viewing their time-of-use consumption data. BUILDING RENOVATION: As a direct response to customers' desire for additional information regarding the building renovation, Energy+ will share more detailed information on the decision process and building selection at community consultation meetings.
A22: Online Workbook Survey (821 residential/small commercial customers) | B22: An Online Workbook Survey was created and accessible online for Energy+ low-volume customers. The portal was open from August 16 to September 17, 2017. FINDINGS: Online results indicated high satisfaction with services provided by Energy+. Satisfaction with system reliability was also high, with lower levels among small business customers in the County of Brant. Improvements needed in communication during outages with only 54% saying that Energy+ does a good job providing information about restoration time. Reasonable distribution rates, reliable day-to-day electricity service and helping customers reduce and better manage their electricity consumption are the top three priorities. Many saw a need to keep investment in infrastructure balanced, with maintaining cost efficiency operationally. Energy+ should be wise with its spending but it is important that its staff have the equipment and tools they need. Approximately two out of three customers indicated the cost of their electricity bill has a major impact on their finances. Two-thirds support the overall proposed plan outright or don’t like it, but think the proposed rate [change/increase] is necessary. Some 76% of the customers either supported or agreed the costs relating to the building renovation and move was necessary. Customers expect Energy+ to be wise with spending and find ways to reduce impacts on distribution rates. Majority either support or find the concept of rate harmonization necessary. Offering customers various auxiliary service offerings for an added cost on their bill was not well received. Customers are interested in Mobile Apps, Online Customer Service, Interactive Voice Response and Extended Call Centre Hours, but less than 50% are willing to pay more for these solutions. The customers believe this should be part of the core services delivered by Energy+ without additional costs. Enhanced online self-service options received the strongest support with over half of customers willing to pay an additional .10/month. Refer to IRG Customer Engagement Report: Priorities, Needs and Preferences Appendix 1-15 | C22: ACTIONS based on customer augmented feedback: RELIABLE DAY-TO-DAY SERVICE: Will allocate funds in the Five Year Capital Plan to address outage prediction and maintenance prediction. Will automate Facility Inspection and Line Patrol; Will accelerate program to install automated SCADA switches in the County of Brant to reduce exposure to momentaries and improve outage restoration times, faster response during outages; Will undertake planned maintenance projects; Will implement Forestry Pilot for tree removal on private property; Will focus tree trimming in County of Brant to bring up to better standard; Will improve County of Brant GIS data quality; Will use Aerial photography for GIS and Outage Management System integration; Will continue to transition to 24/7 System Control Room to provide real time onsite monitoring of distribution grid and quicker response. Will increase investment in annual porcelain replacement program in CND from 2019 to 2023. Will undertake significant investments in infrastructure in County of Brant to rebuild and convert both overhead and underground lines to 27.6kV. REASONABLE DISTRIBUTION RATES: 2018 and 2019 OM&A budgets were reviewed and reduced before the Augmented Customer Engagements commenced, to align with customer expectations to strive to deliver reasonable distribution rates. For example Conferences, Seminars and Training budgets were reduced. Based on feedback Energy+ will defer and/or not offer some auxiliary services, based on customer feedback. Reduced Capital expenditures in 2019 rebase year by $1.0M, from the initial $17.1M presented to customers, to $16.0M. Re-organized some investment priorities and phasing of investments, by making some fundamental changes to approach to managing assets and asset replacement. Underground rebuild program will include additional asset testing of infrastructure prior to commencing a rebuild project, with the goal to get additional life out of the assets, essential deferring some capital investments to future years. Reduced General Plant expenses relating to spending on fleet vehicles, to further reduce capital investments. Will defer adding a third overhead feeder line into Town of Paris, and instead focus resources in rebuilding very old 8kV lines in Brant to 27.6kV. Will continue to pursue collaboration with other utilities through GridSmart City Co-operative to help find operational efficiencies, leverage buying power and best practices. Will work with the City of Cambridge to explore sharing future software and hardware upgrade costs of Sensus network to communicate with smart meters. Will work with Brantford Power Inc. for a shared operational facility with a commitment to continue to pursue other potential shared opportunities that could offer mutual operating efficiencies and/or improvements to the customer experience. DEPENDABLE & RESPONSIVE CUSTOMER SERVICE: Will make internal process improvements to help improve customers' experience including pre, during and post outage information. Will connect Automated Meter Interrogation (AMI) technology to the Outage Management System (OMS) so that Control Room is able to confirm outages and dispatch crews for faster restoration. Will continue to transition to 24/7 monitoring so that Control Room operators are monitoring the system in real time, which will result in quicker response times, including outage verification for dispatching crews, providing timely updates to the public facing Outage Map. Will move Outage Map to the website hompage so it will be more visible to customers. Will upload historical outage details ( 30 days history) on the Outage webpage. Will launch new, dedicated "PowerAssist" 1-800-POWER ON outage information line to further meet customer expectations for improved communication during power outage situations and will allow customers to call in 24/7/365 to report and receive timely outage, restoration and social media updates. In 2020 will introduce an Interactive Voice Recognition system, to enable customers who have signed up, to receive push notifications via text/email during outages. Will explore additional training for staff to ensure staff are equipped with the knowledge and skills to accommodate the needs of its customers. Will introduce Customer Service online training modules to help improve the level of service and responsiveness that Energy+ staff deliver to customers in day-to-day interactions. RATE HARMONIZATION: Will implement rate harmonization in 2019 for all customers, after customer feedback was received in augmented customer engagement. HELP TO MANAGE ELECTRICITY CONSUMPTION: Will continue to help educate low-volume customers increase their energy conservation and billing literacy, availability of online tools such as Ministry of Energy's emPowerMe, IESO's Kilowatt Way, Green Button initiative and others, using social media, web channels and increased face-to-face outreach. Will increase promotion of eServices solution, My Account Online portal for customers to view energy consumption data. Will deliver Affordability Fund to help customers improve energy efficiency of homes, while reducing electricity bills. Will launch free online energy audit tool - EnergyXPert. Will introduce new Save On Energy programs for low-volume customers. Will create and launch additional website videos explaining vital energy literacy concepts. In 2020 will add Live Chat feature to the website to help meet the needs of customers when accessing My Account Online and viewing their time-of-use consumption data. BUILDING RENOVATION: Will share additional information about building renovation plans, at community consultation meetings including the decision process and basis for the building to be renovated. AUXILLARY SERVICES: Will look for efficiencies in the development and delivery of some auxiliary services, without impacting customer rates, based on customers' feedback in the augmented customer engagement. Will redesign corporate website in 2018 for improved customer navigation and ease of finding information more quickly. Will explore opportunities to work with post-secondary institutions and GridSmart City Co-operative to share in the development costs of a customized mobile application for customer use. Will defer adding a new Service Order module that is integrated with My Account Online.
A27: Residential & Small Commercial Customer Telephone Survey (699 customers) | B27: A representative sample of telephone surveys of residential and small commercial customers was conducted. FINDINGS: Customers indicated levels of high satisfaction with services provided by Energy+. Overall, customers indicated top three priorities that Energy+ should focus on: 1. Delivering reasonable distribution rates. 2. Ensuring reliable day-to day electrical service and 3. Continue to pursue collaboration with other utilities, or other innovative solutions to reduce costs. Satisfaction with system reliability was high, with lower levels among small business customers in the County of Brant. Residential customer results indicate low familiarity of programs available to help low income customers, including OESP and LEAP program. Customers generally agreed that spending to maintain the current number of outages was the preferred option. At the same time customer results indicate solid levels of acceptance (60%) for Energy+ to invest more in replacement of aging infrastructure even if it increases their monthly bill; and (63%) are in favour of more automated switches, with (74%) indicating that while Energy+ should be wise in its spending, it is important to provide staff with necessary tools and equipment to execute their duties safely and efficiently. Some (71%) of customers supported or at least agreed the proposed move of administration staff and resulting monthly increase was necessary. Some (69%) of customers support the transition to a 24/7 System Control Room. Customers across the service territory agreed to the concept of rate harmonization, with stronger support from the Brant Customers. Customers fundamentally understand the rational of rate harmonization and agree with the concept. Cambridge and North Dumfries customers viewed the rate impacts from rate harmonization to be a penalty to this part of the service territory. Some (65%) of customers supported the overall proposed plan. Only (44%) of customers indicated an interest in switching to paperless billing if given a monthly credit as an incentive. Very low number of suggestions on how Energy+ can improve services. Refer to IRG Customer Engagement Report: Priorities, Needs and Preferences Appendix 1-15 | C27: ACTIONS based on customer augmented feedback: RELIABLE DAY-TO-DAY SERVICE: See previous section above. RATE HARMONIZATION: See previous section above. REASONABLE DISTRIBUTION RATES: See previous section above. CONTINUE TO PURSUE COLLABORATION WITH OTHER UTILITIES, OR OTHER INNOVATIVE SOLUTIONS: Will be an active participant as a member of the GridSmart City Co-operative. Partnering with 13 like-minded electric utilities and leveraging intelligence with shared innovation projects, purchasing, pooling employee benefits. GridSmart Co-operative is currently in partnership with McMaster University on ICE-Harvest ( Integrated Community Energy and Harvesting Systems) a community thermal energy storage project. Will continue membership in USF (Utilities Standards Forum) to share best practices with respect to standards, templates and recommended practices. Will participate on the Engineering, Regulatory and IT Forum to embrace best practices and find efficiencies. Will work with Brantford Power Inc. for a shared operational facility with a commitment to continue to pursue other potential shared opportunities that would result in operating efficiencies and/or improvements to the customer experience. Based on customer feedback in November 2017, when Energy+ was notified by Hydro One they would be conducting routine maintenance on the supply line to St. George it meant a five hour outage for all of St. George (1250 Energy+ customers and 1666 Hydro One customers) Energy+ delivered an innovative proposal to Hydro One on how Energy+ could carry the load during the maintenance work, thereby reducing the customer outage impact, for the event and for similar planned maintenance work in the future. Will evaluate the feasibility of distributed generation pilot projects with battery technology - the purpose of the pilot is to understand the characteristics and impacts of emerging technologies on the distribution grid. LOW FAMILIARITY WITH AVAILABLE PROGRAMS (OESP/LEAP): Energy+ was disappointed with the low levels of familiarity by residential customers with respect to help available for low income customers having difficulty paying their bills. The OESP and LEAP programs are beneficial programs for low income customers. Will increase the number of bill inserts/on-bill messages that are being distributed to customers about low income support programs. Will increase social media messages with links to additional information. Will provide the Call Centre with scripts and will promote the programs with customers who call about high bills, payment arrangements or those expressing frustration they cannot pay their bills. Will continue to make copies of the OESP application forms and information packages so that they can mail the details to customers to help with the sign up process. Will replenish low-income support program information at public offices where customers frequent (City, Township, County, Libraries, LEAP providers, etc.). Will enhance the visibility of these programs on its website and elevate the availability of the programs on social media. E-BILLING INCENTIVE: Will not apply to the Ontario Energy Board for a Standard Miscellaneous Credit, in order to encourage customers to sign up for paperless billing, based on customer feedback in augmented customer engagement.
A30: Mid-Market Customer (GS>50-999 kW) Workshop (10 customers) | B30: Customers were randomly selected from the GS>50-999 kW customer list (537). Incentives were provided to customers who attended. Ten (10) customers attended the evening workshop on November 16, 2017. FINDINGS: Overall, customers are generally satisfied with the level of reliability and services received from Energy+. Most feel that Energy+ is relatively cost-effectively managed and does a good job of delivering services. Seven (7) out of ten (10) support the rate change or don't like it, but find it necessary. The top three customer stated priorities are 1. delivering reasonable distribution rates, 2. ensuring reliable day-to-day electrical service and 3. preventing or reducing the length of power outages caused by extreme weather. The electricity cost of their bill has a major impact on their bottom line. Customers want Energy+ to be their advocate with government on price (Global Adjustment), help save money through conservation and financial incentive programs. Key concerns were expressed relating to predictability and communication (advance notice of planned outages, as well as being able to obtain updated information on restoration times). Customers expressed a design for Energy+ to better use technology to enhance service offerings. Feel that Energy+ should spend what is needed to maintain the number of outages and spend what is need to maintain the current duration of outages. Rate harmonization makes sense and they support it. Customers supported the transition to a 24/7 System Control Room to monitor the grid. Customers were not clear on impact of a potential standby charge. Refer to IRG Customer Engagement Report: Priorities, Needs and Preferences Appendix 1-15 | C30: ACTIONS based on customer augmented feedback: REASONABLE DISTRIBUTION RATES / CAPITAL INVESTMENTS / AUTOMATED SWITCHES: See previous section above. RELIABLE DAY-TO-DAY ELECTRICITY SERVICE: See previous section above. DEPENDABLE & RESPONSIVE CUSTOMER SERVICE: Will review the Economic Evaluation Policy to see if flexible options for customers can be provided. In addition, customer deposits and window of the review period will also be evaluated, while at the same time upholding acceptable industry guidelines and practices, as outlined by the Ontario Energy Board. Will introduce a single point of contact for these customers, a Key Account Specialist role will be assigned to existing staff, and the details around the role and scope will be developed. Will introduce new Save On Energy programs for commercial customers including a new Business Refrigeration Program and a Compressed Air incentive program. Will make internal process improvements to help improve customers' experience including pre, during and post outage information. Will connect Automated Meter Interrogation (AMI) technology to the Outage Management System (OMS) so that Control Room is able to confirm outages and dispatch crews for faster restoration. Will continue to transition to 24/7 monitoring so that Control Room operators are monitoring the system in real time, which will result in quicker response times, including outage verification for dispatching crews, providing timely updates to the public facing Outage Map. Outage Map access will be moved to the website homepage so it will be more visible to customers. Historical details on outages (past 30 days) will be uploaded on the Outage webpage. Will launch a new, dedicated "PowerAssist" 1-800-POWER ON outage information line to further meet customer expectations for improved communication during power outage situations 24/7/365. In 2020 will introduce an Interactive Voice Recognition system, to enable customers who have signed up, to receive push notifications via text/email during outages. Will explore additional training for staff to ensure that staff are equipped with the knowledge and skills to accommodate the needs of its customers. Will continue to act as customer "champion" and provide feedback on various proposed governmental policies and initiatives that impact the customer. CONTINUE TO PURSUE COLLABORATION WITH OTHER UTILITIES, OR OTHER INNOVATIVE SOLUTIONS: See previous section above. BUILDING RENOVATION: As a direct response to customers' desire for additional information regarding the building renovation, Energy+ will share that information at community consultation meetings and provide details on the selection process and logic on the building to be renovated. PREDICTABILITY & OUTAGE COMMUNICATIONS: Energy+ appreciates the impact an outage has on commercial customers. Customer Care will make calls to commercial customers when an unexpected outage becomes known to Energy+. Customer Care will continue to issue telephone outage notifications to customers in advance of planned outages to inform the customers of the start, stop and alternate date for the outage. If necessary, alternative date for planned outage is made to lessen the impact on business customers. The online Power Outage Map will be relocated to the homepage, which will allow customers to find current outage information more quickly. Will continue to transition to a 24/7 System Control Room which will be monitored in real time, which will result in quicker response times, including outage verification and for dispatching crews, providing timely updates to the public facing Outage Map. STANDBY/CAPACITY CHARGE: At the time of the General Service > 50kW - 999kW, no customers in attendance at the workshops would be impacted by the introduction of a new Standby/Capacity Rate . Energy+ will proceed with the introduction of a Standby/Capacity Charge in the 2019 Cost of Service Rate Application for reasons outlined in Section 7.0 7.1.3.8 Standby Rates. Energy+ will consult with each customer that initiates load displacement facilities and requires continued connection with Energy+, in order to determine required contracted reserve values.
A34: Mid-Market Customer (General Service >1MW-4,999kW) Workshop (7 customers) | B34: Every customer in this rate classification ( 27) was invited by Energy+ to an information/dialogue session with Energy+ team, to be followed by a confidential workshop conducted by Innovative Research Group. Seven (7) customers participated in the morning workshop on November 16, 2017. In addition, hard copy workbooks were sent to four (4) customers who couldn't attend, but wanted to provide feedback. On February 9, 2018, Energy+ followed up and forwarded additional information regarding Standby/Capacity Charges and rate impacts to the original workshop participants. FINDINGS: For the most part, most say overall Energy+ is well managed and doing its best to help large use customers. Areas for improvement include better communications and information tools to manage electricity consumption. Some customers advised they would pay more on the distribution portion of the electricity bill if it would decrease the frequency of outages, or in some cases the impact of power quality issues. Most say that they receive reliable electrical service but would like improved communication during unplanned outages (direct line to System Control Room) for better estimated time of restoration. Concerns raised about potential Standby Charge and how this will impact their electricity bills. . Desire for Energy+ to be more innovative; be more flexible with customer service policies. Understood the need for building renovation and didn't have fundamental concerns. Full support for 24/7 System Control monitoring. Rate harmonization was supported by all customers in this segment who provided feedback. Refer to IRG Customer Engagement Report: Priorities, Needs and Preferences Appendix 1-15 | C34: ACTIONS based on customer augmented feedback: RELIABLE DAY-TO-DAY ELECTRICITY SERVICE: See section above. DEPENDABLE & RESPONSIVE CUSTOMER SERVICE: See section above. BETTER TOOLS MANAGE DATA CONSUMPTION: Will increase outreach to work proactively with customers to help meet their business objectives, by reducing energy use and ultimately costs. A Key Account Specialist role will be assigned from existing Energy+ resources and introduced, as a single point of contact for these customers. As a direct result of augmented customer feedback, Energy+ will create a Client Visit form to capture important details pertaining to any commercial customer visit, and share this information among /across the Energy+ team, in order to improve the customer experience. Energy+ will initiate meetings with third party vendors to identify potential customized energy data reports for customers to better understand their electricity usage and load patterns, so customers can reduce consumption and demand. This Data Report Pilot will be initiated for the top General Service >1MW+ customers, in order to deliver improved data analytics for energy consumption and load profile improvements, in a usable format. Will continue to advocate, on behalf of all customers, with the provincial government on electricity price and other issues of importance to customers. Will continue to be an active participant on a number of industry committees and advisory groups through the Electricity Distributor's Association and other associations. PREDICTABILITY & COMMUNICATION DURING OUTAGES: Energy+ will share a “Priority One” telephone line with key customers with time sensitive processes that require immediate information regarding outages and restoration times. Will make calls to large commercial customers when an unexpected outage becomes known to Energy+. Enrgy+ will continue to issue telephone outage notifications and/or hand delivered notices to customers in advance of planned outages to inform the customers of the start, stop and alternate date for the outage. If necessary, alternative date for planned outage is made to lessen the impact on business customers. Will relocate online Power Outage Map on the website homepage to enable customers to find current outage information more quickly. Will continue to transition to a 24/7 System Control Room for monitoring the distribution system in real time. Will implement a dedicated toll free line 1-877-POWER-ON for customers to report outages and to obtain outage updates 24/7. This burstable solution will be able to accommodate multiple customers and will leverage the use of the OMS Call Taker to increase the data points reporting an outage, for quicker outage validation by the System Control Operators, for the OMS GridVu Public Outage Map. STANDBY / CAPACITY CHARGE: Feedback from the November 16, 2017 feedback indicated customers needed concrete details on the rate impacts and proposed rate structure for the Standby/Capacity Charges. On February 1, 2018, Energy+ prepared additional information including the proposed rate structure of Standby/Capacity Charges and sent the additional information to all General Service >1MW customers that attended the original workshop in November. Energy+ invited the customers to ask additional questions based on the new information provided. Energy+ received responses back from two (2) of the seven (7) customers. In each case the customers asked how the proposed Standby/Capacity Charges would impact either current projects or upcoming proposed projects they were planning. Energy+ provided details to both customers. One customer responded favourably on receipt of the additional information, advising, " Thanks for the information about the standby/capacity charges, I think it is a fair charge, well justified in the document attached".
A37: Key Account Meetings (2 customers 5MW+) | B37: Energy+ has two customers in the customer class >5MW. Energy+ invited each customer to participate in one-on-one meetings with members of the Energy+ team to review the proposed operating and capital budget, the five year investment plan, discuss the introduction of Capacity/Standby charges, discuss Distribution System Plan. Innovative Research Group followed up after the Energy+ meetings with the customers regarding the consultation session to validate the process and to verify that Energy+ provided these customers with the information they needed to provide informed feedback on the proposed plans. FINDINGS: Very positive feedback relating to Energy+ Conservation team assistance on energy efficiency solutions. Momentary outages / power quality fluctuations greatly impact machinery (added costs of money and time). One of two customers stated that the potential impact of new Capacity/Standby Charges was more of a concern than the distribution charges. The customer requested time to evaluate the potential impact of gross load billing and Standby/Capacity Charges. One of two customers expressed support for the plan overall. Feedback was obtained from the second customer during the meeting, however no outright assessment of the plan was provided by the customer. Refer to IRG Customer Engagement Report: Priorities, Needs and Preferences Appendix 1-15 | C37: ACTIONS based on augmented customer engagement: REDUCE IMPACT OF UNPLANNED OUTAGES - Energy+ 's Energy Efficiency team will work closely with customers on opportunities for the customers to deploy solutions at the customer facility so that the effect of momentary outages are reduced. A "Priority One" customer line that provides direct access to System Control after regular business hours will be provided. Direct telephone contact will continue to be provided to provide advanced notice of planned outages to Key Account Customers. RESPONSIVE CUSTOMER SERVICE: A Key Account Specialist role will be assigned by Energy+ from existing resources, as a single point of contact for these customers. As a direct result of augmented customer feedback, Energy+ will create a Client Visit form to capture important details pertaining to any details pertaining to any commercial customer visit, and share this information among /across the Energy+ team, in order to improve the customer experience. Will continue to advocate, on behalf of all customers, with the provincial government on electricity price and other issues of importance to customers. Will continue to be an active participant on a number of industry committees and advisory groups through the Electricity Distributor's Association and other associations. STANDBY / CAPACITY CHARGE: Following the one-on-one meetings Energy+ held with these key account customers, one customer requested time to evaluate the presentation and proposed Standby/Capacity Charges. Additional details on the proposed rates for Standby/Capacity Charges for one Key Account customer was provided, once the methodology and rate impact was further refined. Additional questions were asked by the customer and Energy+ provided responses. Energy+ acknowledges one of the key account customers at the face to face meetings expressed concern regarding the proposed introduction of Standby/Capacity Charges and impact to the customer. Energy+ have in response committed to review the monthly peak load annually, and potentially adjust the contracted capacity reserve. Energy+ will however, proceed to request the introduction of Standby/Capacity Charges in the 2019 Cost of Service Rate Application, for reasons outlined in Exhibit 7.0 - Cost Allocation, Section 7.1.3.8.
A39: Embedded Distributors (3 customers) | B39: On March 22 & 23, 2018, Energy+ forwarded communication including proposed rate impacts to the three Embedded Distributors in its service territory. As part of the communication, Energy+ invited customer feedback and questions by April 2nd. Two (2) of the Embedded Distributors responded to Energy+. They indicated overall support for the proposed rate impacts. Refer to Embedded Distributor Augmented Customer Engagement in Exhibit 7.0 -7.1.3.5. | C39: ACTIONS based on augmented customer engagement: Customers responded indicating support for the proposed rate impacts. The methodology and impact is outlined in Exhibit 7 - 7.1.3.5 Embedded Distributor Class.
A40: Phase 2: Re-engagement Residential Telephone Survey (178 customers) | B40: In October 2017, IRG conducted random low-volume telephone surveys as part of the augmented customer engagement outreach. At that time 502 residential customers completed the telephone survey. In March 2018 Energy+ identified additional information and year end results, that impacted the proposed 2019 -2013 rates. The revised proposed rate impacts, resulted in increases to residential rates, from the original outreach. As a result, Energy+ engaged IRG to perform a follow up validation residential telephone survey targeting the original 502 customers interviewed in October 2017. In total, IRG successfully completed 178 residential customer surveys. FINDINGS: 86% of customers surveyed indicated they were very or somewhat satisfied with the services provided by Energy+. 95% of the customers agreed with the top three customer priorities. 80% of customers affirmed it was reasonable to continue to transition to 24/7 System Control Room monitoring. Overall 67% of customers stated that they trusted Energy+ will consider customer feedback in the Cost of Service application. 83% of customers supported the capital reduction of $1M for 2019, based on customer feedback, The majority of customers 78% confirmed they understood why Energy+ was updating its proposed plan. Some 62% of customers agreed it was somewhat/very reasonable to update rate forecasts based on decreased load. 69% of customers agreed it was somewhat/very reasonable to update budgets based on changed operating costs. Overall support for the rate changes only decreased by 5% in CND and 7% in Brant (not statistically significant change). Refer to IRG Customer Engagement Report: Priorities, Needs and Preferences Appendix 1-15 | C40: ACTIONS based on augmented customer engagement: Energy+ will continue to provide 24/7 System Control Monitoring. Energy+ will continue to apply for Rate Harmonization in 2019 across the service territory. Energy+ will continue to focus on the top priorities based on customer feedback. Energy+ will update the proposed rate impacts based on the new data and year end information.
A42: DAY-TO-DAY ONGOING CUSTOMER ENGAGEMENT
A44: ONLINE CUSTOMER ENGAGEMENT
A45: Corporate Website (energyplus.ca) | B45: The key online tool that customers use to interact and obtain information and engage with Energy+. Visitor engagement on Energy+ website has grown exponentially, year-over-year since the site was launched in December 2012, especially during power outages. From January to December 2017, visitors accessed the site more than 144,000 times. On average in 2017, the corporate website has 12,000 visits each month. Approximately, 35% of users accessed the site using a smart phone device. This increased online customer engagement is expected to increase, in particular with customers using mobile. Based on Google Analytics, visitors to the website in 2017 came in search of information about: My Account Online, Contact Us, Move In/Out, Pay Through Financial Institution, Power Outage, Causes of High Bills. Search terms most frequently used in 2017 were: My Account Online, Paperless billing, Power outage, Rates, Nest, Billing Cycle. Identified need to assist customers with energy literacy, information on ways to reduce hydro bill through Save On Energy programs. Identified need to provide more online information with regard to current outages, including displaying current outages by street, cause and estimated restoration times. To November 2017, a total of 2,858 customers (average 258/month) requested move in/out/ using the online web forms. | C45: Energy+ reviews and makes adjustments on an ongoing basis to its website platform, based on customer changing needs and preferences. Mobile optimized webpages were introduced in 2014, based on the increasing trend for users wanting to access the Internet using mobile devices. The Alert Banner is a customer-centric feature that allows the utility to respond and provide timely and urgent type messages (i.e. scam in the community, telephone system issue, outage restoration update). Rotating home page banners allow the utility to direct customer attention to programs and services that customers frequently ask for (i.e. how to manage electricity consumption, new Save On Energy programs, how to stay on track with bill payments). Quick Links on every webpage and a dynamic Menu Manager are updated as required, based on customer feedback and most frequently searched information. A real-time Power Outage Map was introduced in 2015 for customers in Cambridge and North Dumfries and further expanded to the County of Brant in 2017, based on customer feedback for online updates regarding power outage restorations. Based on customer feedback and identified need for more online self-serve options, future website enhancements to the website in 2018 will include: fully Responsive Web Design (RWD) and compliant with current accessibility standards (AODA WCAG 2.0 and Anti-Spam (CASL). Includes new calendar, Page Subscriptions (integrated with CASL: for any new sign ups), page feedback module, shared content, accordion widget to save scrolling and improve the customer experience. Feedback form enables visitor engagement from any page on the website. Page subscriptions will offer the end-user the opportunity to subscribe to be notified when a webpage has been updated (CASL compliant). Power Outage Map view will be relocated to the homepage, which will allow customers to find current outage information more quickly. Plans are underway to create and launch additional website videos explaining vital energy literacy concepts, how power is restored and how electricity is delivered in the community.
A46: Online Web Forms | B46: Through emails, telephone calls and completion of feedback surveys, customers expressed the need for ways to save time by completing online, self service transactions at their convenience. An average of 258 customers each month requested move in/out/ using the online web forms. Over 60 customers each month use an online form to sign up for Automatic Payment Plan. The Report a Problem online form is a convenient way for customers to report a power outage or streetlight out during business hours. Contact Us form allows customers to request and advise on a payment arrangement. | C46: Based on customer feedback for additional online e-service solutions, a number of online forms are now available through the corporate website, can be completed online and submitted to Energy+ in one simple step. Customers can Report a Problem, Report a Streetlight Out, Report Farm Stray Voltage, Contact Us, Arrange a Move In/Out, Stop and Start Service, Sign up for Automatic Payment. In 2017, mobile responsive, AODA compliant forms were created on the website, to gather customer feedback, added functionality for internal staff to build and launch web-based forms on the website. Based on customer preferences, new web-based forms can be created in the future and rolled out. Plans to relocate the Power Outage Map view to the homepage should make it more convenient for customers to view current outages, saving customers' time by reducing the need to submit Report a Problem form.
A47: My Account Online - Home Connect | B47: Through survey feedback, emails and phone calls, customers identified the need for self-service options to monitor and track their electricity usage, improve energy literacy, understand consumption habits, time of use periods, reduce their hydro bill and effectively self-manage their Energy+ account. | C47: Based on customer feedback and introduced in 2013, Home Connect provides customers with information about their Energy+ account and better understand their energy consumption. Customers can view their hourly, weekly or monthly usage, and also view and print their bills. It also includes a library of topics to help customers improve energy literacy, better understand Time-of-Use periods and the price of electricity during Off-peak, Mid-peak and On-peak times and learn more about low-income support programs. Enhancements have been made to improve accessibility for customers with disabilities.
A48: My Account Online - Bill Connect | B48: Through survey, phone calls and emails, customers identified the need for paperless billing and also to simplify the billing experience. Customers have requested an online link to financial institutions to facilitate a secure bill payment. In line with customers preference for additional self-serve options, customers are looking for a direct link to make a bill payment directly in My Account Online and arrange a move online. Customers have requested a .PDF of the eBill attached to the notification, to save time in logging in. eBill customers requested actual balance due on bill notification email. | C48: Based on customer feedback, since Spring 2014, Bill Connect was launched on the My Account Online platform. Paperless billing offers many customer benefits including the convenience of 24/7 availability, account and billing information available on any device; timely delivery, customers receive an email as soon as a bill is ready; less paper clutter, environmentally friendly, customers can download and save bills electronically; secure access to view transactions, meter reading history, account payment history, secure as online banking; better organization, customers can view 2 years of past bills and payments, compare bills using the analyzer tool. Live links to major financial institutions were added as a result of customer feedback. Based on customer feedback, changes were made to show the actual owing at the time the eBill notification is issued.
A49: Outage Map | B49: Based on customer feedback received by the Customer Care team via email, online forms, social media, customers identified the need for Energy+ to be available to respond immediately (outside of business hours, on weekends), especially during power outage and emergency situations. Residential and small commercial customer surveys conducted indicated that a priority for customers is improved notifications during outages, including restoration times and causes of outages. Improved notification during planned outages is also a priority. | C49: In response to customer requests for advance notice of planned outages, a pilot was undertaken with Customer Care and Operations to send out Planned Outage Notifications using AlertWorks telephone technology. In 2017, 90+ separate telephone advance telephone notifications were sent out to customers. In 2015, an Outage Map was added to the corporate website for customers in Cambridge and North Dumfries Hydro; this functionality was expanded to customers in Brant in June 2017. The Outage Map allows customers across the service territory to access an online outage map that displays outage location, cause and estimated restoration times. It has greatly enhanced the utility’s ability to communicate with customers during a major outage. The Outage Management System also identifies planned outages on the Outage Map. in 2018, the Outage Map will be relocated to the homepage of the corporate website to further facilitate customer communication during outage events.
A50: Social Media | B50: With access to information available on the web and through social media, customers are increasingly demanding that Energy+ respond immediately, around the clock to requests for information, especially during power outages. Customers have identified the need for ways to save on energy and improve energy literacy to better understand their hydro bill. More and more Energy+ customers use social media to obtain information and provide feedback to the utility. Currently Energy+ has 2,243 followers on Twitter and 1,377 on Facebook. | C50: Energy+ launched its social media Twitter account in January 2014 (following the December 2013 Ice Storm). Facebook and YouTube followed based on customer request for updates on these platforms. Energy+ responds to customer requests for information, sends out daily, proactive messages that respond to customer identified need for information, promoting low-income support programs, public safety awareness, save on energy tips and financial incentives. During large power outages, the Communications team responds outside of business hours to customer requests for power outage updates on restoration efforts.
A51: Large Commercial, Industrial Customer Portal | B51: Large Commercial, Industrial customers indicated the need to better understand how and when their facilities use energy. Faced with increasing energy costs and impacted by the Global Adjustment, these organizations were looking for annual energy savings through better energy management. Identified the need for additional focus on industrial power quality due to the susceptibility of modern equipment to minor fluctuations. Identified the need for more immediate and additional access to consumption management information for the larger volume rate classes. Assistance with Global Adjustment Class A versus Class B considerations. Lower distribution rates. | C51: The Large Customer Online Portal assists these customers with monitoring peaks in energy consumption and gives them access to their facilities' energy profile. An online Energy Portal Guide was created to provide customers with an overview of how to access customer account information and track their energy performance through the Energy Portal. An Energy+ Billing and Settlement Analyst assists these large commercial/industrial customers to access the portal and interpret performance results. The Conservation Team works closely with customers to identify efficiency projects and potential financial incentives through the Save On Energy programs. Commercial and Industrial Conservation Meetings are held annually, in collaboration with the IESO. Additional site visits and program assistance is provided by the Conservation Team.
A52: CUSTOMER SURVEYS
A53: Bi-ennial Customer Satisfaction Survey | B53: Bi-ennial low-volume customer satisfaction surveys have been conducted by a 3rd party market research company on behalf of the utility since 2008. These surveys identify areas that customers feel Energy+ is performing well, and also identify problem areas or areas that could be improved. In the Fall 2016, Energy+ conducted an in-house online Customer Satisfaction Survey, the results of which identified customer priorities to be 1) lower electricity rates, 2) improve number and length of outages 3) communication during outages. 4) Improved communications on rate changes, billing changes, energy saving tips, incentive programs, line/system upgrades. There is an opportunity to improve satisfaction levels with notification of power outage restoration times. Improvements are needed to communicate during outage events – customers expect continuous updates on cause and restoration times need to be updated regularly. Requests for email, SMS texts for outage notifications pushed to customers with updates. Expansion of Outage Map to include the County of Brant customers was frequently requested. How outages are managed and communicated is key to improving satisfaction. Customers have stated that their bill is too complicated, should be easier to understand, less cluttered and more clearly explains the various charges on the bill. | C53: Energy+ closely monitors the results of the surveys and takes action to correct problem areas within its control, and with areas of improvement we investigate and implement solutions to resolve the issues. We also use the survey to determine the customers desire for new ideas and technology that will improve their service experience with us. The Outage Map was extended to the County of Brant customers in June 2017. A priority for Energy+ is to continually find operational efficiencies to help offset distribution rates charged to customers. Energy+ is an active member of GridSmartCity Cooperative, whose mandate is to increase efficiency and customer value within 13 local distribution companies. The member utilities synergize operations through a cooperative approach to buying and other special initiatives. In an effort to realize operational efficiencies at the time of the Brant County Power amalgamation, Energy+ consolidated Customer Information System and financial reporting systems, minimized rebranding activities, streamlined processes and purchasing and consolidated Administration staff into one location. Energy+ participated in a Working Group of LDCs and the OEB to review options for a consistent, clear bill presentment, modelled on the Hydro One bill. This new solution is focused on 5 important things customers are asking for: What do I owe, When is my bill due, How much energy did I use, How does it compare to my last bill, How can I contact Energy+? To further meet customer expectations for improved notification/communication during power outage situations, and in collaboration with the Outage Map, the Power Outage Map view will be relocated to the homepage, which will allow customers to find current outage information faster. The System Control Centre is working towards being operational 24/7. In the long term (2020), Energy+ plans to introduce an Interactive Voice Recognition system to enable for push notifications via text/email.
A54: Bi-ennial Public Safety Awareness Survey | B54: Conducted by a 3rd party market research company, Energy+ achieved a Public Safety Awareness Index score of 85% in the first year of the survey in 2015 and 82% in the 2017 survey. In 2017, results increased/improved in 4 out of 6 areas over 2015 results, including areas we focused on in our safety promotion messages in 2016 (Call Before You Dig, Impact of Touching a Powerline, Proximity too Overhead Powerline, Action Taken in Vehicle in Contact with Wires). Areas for improvement in 2017 survey were Danger of Tampering with Electrical Equipment and Proximity to Downed Powerline. In 2017, the younger respondents (aged 18 to 34) scores were lower. Overall, these results indicate that the majority of the public surveyed has a good knowledge or have received information pertaining to six core measurement questions within the survey. | C54: In 2016 and 2017, based upon the Public Safety Awareness survey results, Energy+ undertook a number of proactive communication campaigns, in local community newspapers and social media (Twitter, Facebook and YouTube) on topics such as Call Before You Dig, Powerline Safety, Farm Stray Voltage, Safe Holiday Decorating and Power Outage safety. Energy+ is a proud sponsor of the Waterloo Region Children’s Safety Village and the Children’s Safety Village of Brant. Energy+ representatives regularly visit school and community groups, provide training to first responders, to explain how to stay safe around electricity at home, work, and in the community. Energy+ created a Safety Quiz with the six (6) core safety metrics and continue to educate residents at numerous community events. In 2017 Energy+ partnered with a group of utilities to share the costs of producing short, engaging safety videos aligned to the six (6) core safety metrics. These videos are shared with residents online and through social media and during safety education visits to continue to educate the public on important safety metrics. Based on 2017 Survey results, Energy+ will intensify public education on Danger of Tampering with Electrical Equipment and Proximity to Downed Powerline. New videos will be produced in collaboration with other utilities, based on customer needs and survey results.
A55: Online Customer Feedback (ongoing). | B55: Energy+ values customer input and appreciates constructive feedback about how we are doing. Surveys are provided for customers to complete online through the website, as well as in person in the office and at community events. Identified coaching opportunities for Customer Care reps. Identified need to generate awareness of self-service options. The corporate website includes a Contact Us page on every page to encourage customer feedback. The day to day feedback and suggestions from customers help Energy+ improve processes and delivery of services aligned to customer stated needs. | C55: Energy+ closely monitors the results of the surveys and where possible, takes action to correct any problem areas and with areas of improvement we investigate and implement solutions to resolve the issues. We also use the survey to determine the customers desire for new services, technologies that will improve their service experience with us. An online survey and Contact Us link is located on every page of the website. A link to the Customer Feedback Survey is included below the signature line of every Customer Care Representative, to enable timely transactional feedback from customers. Enhancements have been made to improve accessibility for customers with disabilities, using My Account Online. For example fixes were made to ensure that My Account Online is available in all browsers. Based on customer feedback, changes were made to eBill notifications to show the actual owing at the time the eBill notification is issued. Accommodation of a customer request to consolidate multiple flat rate account bills into one master bill is another example. Customers have advised they have difficulty finding the Outage Map online. Energy+ will redeisgn its website in 2018 and the Outage Map will be given a place of prominence for easy access by customers. Customers provided feedback that to sign up on My Account is sometimes difficult. In response Energy+ created a "How To" one page document that is shared when customers call for online help. Energy+ also assigned a specific Customer Care representative to be the My Account Online specialist to work one-on-one with customers, to trouble-shoot and facilitate customer signing up for this online service.
A56: FACE-TO-FACE CUSTOMER ENGAGEMENT
A57: Customer Care (Phone Calls, Emails, Visits) | B57: Identified need to focus on affordable rates. Identified need to assist customers with billing questions, energy literacy information. Identified need for more online, e-Billing and self-service options. Identified need to provide customers with more online information with respect to outages. On average 5,500 customers telephone the Customer Care Centre each month. Based on tracking statistics, the top reasons customers telephone include arranging a move, payment arrangements, options for bill payment, high bill complaints and advice on how to reduce hydro bill. Approximately 200 customers each month make an in-person visit to discuss payment arrangements, set up a commercial account and make a payment. Feedback from customers in the County of Brant has identified a preference for a local office presence in Paris. Customers across the service territory want to talk to a 'live' representative on the telephone beyond 4:30 pm. Customers expressed frustration that they could not access their time-of-use consumption data on My Account Online portal on Sundays for 8 hours, while the IESO undertook required maintenance on its system. | C57: Direct contact with customers that visit, call or email our office is an effective method of obtaining feedback. Customers are able to visit the Energy+ office in Cambridge to meet with Customer Care reps. To help increase operational efficiencies and reduce distribution rates, the local Energy+ office in Paris was closed in 2016. Installed three debit terminals in County of Brant offices in the local communities, which are maintained to accept customer payments - a compromise to lessen the impact on customers of the closing of the Paris office. Consolidated a 1-800 toll free number for customers to call from anywhere in the service territory. An Outage Management System was introduced in 2015, including Call Taker module for Customer Care team. Enhancements have been made to improve accessibility for customers with disabilities using My Account Online. Fixes were made to ensure that My Account Online is available in all browsers. Based on customer feedback, changes were made to eBill notifications to show the actual owing at the time the eBill notification is issued. Accommodated a customer request to a consolidate multiple flat rate account bills into to one master bill. Energy+ worked with the IESO to deliver a solution that connected My Account Online time of use consumption data to DataMart provider. This solution ensures that customers' TOU consumption data is available every Sunday. Worked with a new 1MW+ Class A customer who purchased an existing business. Energy+ worked directly with Ministry of Energy and the customer to obtain a letter from the Minister of Energy that authorized maintaining the customers' Class A status. This resulted in $100K in immedicate savings for the customer. Energy+ is evaluating options to provide access to a 'live' agent after 4:30 pm. Live Chat is another online tool that is being explored to engage with customers directly, in-real time.
A58: Customer Complaints/Suggestions via Employee Interactions | B58: In the course of day-to-day business, employees from across the organization interact with customers across the service territory, in a number of locations. Customers provide verbal and written comments, or make suggestions about our process or service we deliver. 25 written complaints were recorded over four years with a plurality related to costs and fees, security deposit fees, unexpected disconnection fees, rate increases. | C58: A Customer Engagement: Surveys, Feedback and Suggestion Procedure is in place throughout the organization. Employees are responsible to forward customer suggestions received in interactions to a Survey Administrator. Customers making complaints are contacted by a Customer Care Supervisor and or a Department Manager to discuss the issue and work to resolve the issue, explain process and possible options. In some cases, meetings are set up with the customer to discuss. Employee Information Meetings are held each quarter to educate employees, who are considered Energy+ ambassadors. Training/coaching is provided as needed to employees.
A59: Low Income Community Support | B59: Based on feedback from customers and community partners gathered through emails, telephone calls, collection activities, rise in bankruptcies, increased unemployment, customers have identified that many are struggling to pay their electricity bills. Identified need for financial assistance, and advice on how to reduce electricity consumption, energy literacy. | C59: Meetings, telephone calls with community assistance partners are held throughout the year, regarding low income support programs (OESP, LEAP, HAP). Materials are delivered directly to and posted in key community hubs in central locations. Energy+ customers who are having difficulty making a payment, or identify themselves as low-income, receive direct mailings, conversations about low-income support programs. Bill inserts, disconnection notices include information about low-income community assistance programs. Program materials are shared with customers at public events, community events and at all customer interaction points.
A60: Annual General Meeting | B60: Identified need to understand Energy+ business priorities, impact of energy policies on customer business operations. Opportunities to engage face-to-face with President, senior leaders and the Board. | C60: Business customers and community partners are invited to attend the Annual General Meeting. Invitations are emailed, advertisements in local newspaper and on social media. Post-event feedback is reviewed and followed up on if business customers indicate they would like an Energy+ representative to contact them to discuss an issue, save on energy program, input into topics for future meetings.
A61: Participation in Local Community Emergency Preparedness Teams | B61: Coordinated emergency planning, business development. | C61: Energy+ representatives collaborate with local economic development committees, emergency, regional energy planning. Agreements are in place with GridSmartCity Cooperative members to provide mutual aid.
A62: Energy+ Hosted Community Meetings | B62: Identified need to assist customers with billing and energy literacy information. Identified need for additional information about save on energy programs, low income assistance programs. | C62: Town hall meetings are hosted. Opportunities to engage face-to-face with President, senior leaders to learn about ways to reduce high bills, low-income support programs that are available, time of use rates, causes of power outages and discuss power reliability. Follow up with residential and business customers who attended. Ontario Electrical League representative requested Energy+ attend next chapter meeting to discuss Conditions of Service and costing of new services.
A63: Community-Hosted Meetings | B63: Identified need to assist customers with billing, and energy literacy. Identified need for additional information about conditions of service, save on energy programs, low income support programs, capital projects. | C63: Opportunities to engage face-to-face with senior leaders, Customer Care reps about causes of high electricity bills, information about low-income support programs (LEAP, OESP). Energy+ attends community meetings, events, at the request of customers, to address customer issues. Including Ontario Electrical League, Mt. Pleasant Men's Club, Seniors Communities, neighbourhood associations, emergency preparedness, tree trimming. Items discussed varies based on audience need and preference. Opportunities for senior leaders, Customer Care reps to discuss causes of high electricity bills, information about low-income support programs (LEAP, OESP), power system reliability, operating and capital rebuild plans.
A64: Energy+ Days at Cambridge Centre Mall | B64: Identified need to assist customers with billing questions, additional information required about low income support programs. Common concerns from customers include: information about OESP, LEAP, ODSP, time of use periods, save on energy Coupons, net metering opportunities for business. | C64: Opportunities to engage with customers in 'where they are at' in the communities. Items discussed included low-income programs available to help lower bills, save on energy tips, coupons. In addition, Energy+ encouraged customers to complete the Online Workbook related to providing input into the Distribution System Plan (DSP) and Cost of Service rate application. Follow up contact was made with customers requesting additional information about low income support programs, net metering opportunities, account-specific questions.
A65: County of Brant Advisory Committee | B65: Identified need to engage with County of Brant municipal officials following CND's acquisition of Brant County Power on November 28, 2014. In the interest of ensuring open dialogue and a formal venue for the County to engage with CND on a regular basis on changes that would impact the customers, an Advisory Committee was recommended. | C65: Since 2015, quarterly meetings were held as a platform for open communication between all parties involved in the transaction. In alignment with the main objectives the following matters were discussed: service levels and service quality, presence by the utility in the community for the benefit of customers, sponsorship of community activities; and other matters raised by customers to members of the Advisory Committee representing Brant County . The amalgamation of Brant County Power has been successful and the Advisory Committee has been disbanded. However positive and lasting business relationships have been established with leaders in the County of Brant. The County of Brant representatives on the Advisory Committee was comprised of the Mayor of Brant and three Councillors. The Councillors on a regular basis act as the conduit on behalf of customer concerns. For example a Brant customer was upset with the usage on his bill, as relayed through the Advisory Committee Utility staff made an appointment after hours and attended at the customers home to walk through the property and the hydro bill to help identify energy saving opportunities.
A66: Energy Efficiency Site Visits, Partner Events | B66: Business customers request on-site visits to discuss opportunities for energy savings, reduction in electricity bill. Identified need to assist customers with billing and energy literacy information. Identified need for additional information, programs that will assist customers with reducing hydro bills through energy conservation. | C66: In 2017, the Energy Efficiency Team held 160 on-site customer meetings to provide advice and insight on opportunities for businesses to manage their energy use. Energy+ is introducing a number of pilot programs to help improve customer energy literacy and help reduce energy consumption. Pilots included Nest, ecobee, EnergyXPert online energy audit. An updated Small Business lighting program and Business Refrigeration Incentive, both aimed to help support small business customers. Ongoing refreshing of My Energy Efficiency landing page and content on the website, to raise awareness of conservation programs and services. Partnerships with local home improvement retailers and participation in on-site events at Giant Tiger, Lowes, Canadian Tire and Home Depot.
A67: Community-wide Events, Festivals | B67: As part of our outreach programs to customers we go out into the community to meet/engage with customers that may not call into the Call Centre or have an opportunity to review new services, low income support programs, energy efficiency programs. Customers request Energy+ presence at high-traffic events. These events allow Energy+ to provide more education on the electricity system, hear first hand from customers about their experiences, power quality, low income support programs, ways to reduce energy, electrical safety. Customers request information and financial incentives to help reduce energy consumption and their lower electricity bill. | C67: Participate in community events in Cambridge, North Dumfries and the County of Brant including but not limited to: Springtime in Paris, St. George Applefest, Cambridge International Street Art Festival, Christmas in Cambridge, Fire Department Safety Days Energy+ employees track customer feedback and follow up via phone call or email following the event.
A68: Electrical Community/School/Contractor Safety Program | B68: Requested by local teachers, parent councils, school boards, community groups, fire departments, first responders, construction trades and associations. Energy+ representatives conduct outreach in the community to explain how to stay safe around electricity at home, work and in the community. Identified a high degree of interest to educate on electrical safety at the grade school level. | C68: Safety program teaches children and members of the public of the dangers of electricity, how to use electricity safely and when they should contact Energy+ for help. Request a Speaker form added to the corporate website. In 2017, 600 children at 30 schools received Energy+ in-school safety education using the Hazard Hamlet interactive display. Energy+ is a proud sponsor of the Waterloo Region Children's Safety Village and in 2016 Energy+ also sponsored "Adventures in the Village" event at the Children's Safety Village of Brant. For several years, Energy+ has been a co-sponsor of the annual Children's Safety Hero Awards. Bi-ennial Contractor Safety Symposium is hosted with other local utilities - over 170 contractors attended in 2018. Electrical contractors receive in-house training, lead by the Safety Manager. Annual electrical safety training of new recruits is conducted on-site at Fire Departments in the service territory.
A69: Billing Inserts | B69: Through calls to our Call Centre and emails, Google Analytic results, community meetings, special events, customers are eager to be provided with information and details regarding new developments of programs and offerings from Energy+, IESO and the OEB. Additionally, customers would like to be informed of any other changes that may affect their energy usage or billing, safety and conservation messages, rate changes. | C69: Bill inserts are provided with customer bills on a variety of topics of interest to customers: Paperless Billing, Outage Map, Save On Energy programs, OESP, Fair Hydro Plan. More explanatory information was added to Rate Cards in 2016 to help improve energy literacy and understanding of charges. Bill insert webpage has been created and details are added regularly to My Account Online library for customers who have signed up for My Account Online portal. Materials are available in the office as well as at public, community events.
A70: Media Releases & Alerts | B70: Identified need that customers are looking for timely information about new conservation programs, ways to increase energy literacy, avoid hydro scams, stay safe around electricity. | C70: Monitoring news and interactions on social media channels provide important information and feedback on customer expectations, preferences and needs. For example, Energy+ issues media releases during high-peak summer heatwave, offering suggestions for reducing electricity consumption; importance of power line safety, calling before digging; warning of local scams.
A71: Employee Volunteerism & Corporate Donations | B71: Through customer comments, we are hearing that it is important that our organization and workforce should be committed to our communities, and give back to persons less fortunate in our communities. Reminder that some Energy+ customers are in challenging personal and financial circumstances. | C71: Continued employee sensitivity and empathy in community interactions and account collection activities. Continued focus on monitoring of bill impacts and maintaining competitive distribution rates. Energy+ exceeded the United Way workplace campaign once again and raised $27,000. Recognized by United Way for receiving the 2017 Workplace Campaign of the Year Award. Employees wore their jeans on Fridays and raised over $5,000 for a number of local charities. Over 600+ employee volunteer hours were logged in 2016 to support a number of community, not-for-profit agencies – across our service territory including community holiday parades, road clean up, food drives for local Food Banks, Christmas Adopt a Family. On an annual basis, Energy+ supports 3 post-secondary awards at the University of Waterloo, Conestoga College to further energy-related programs. In 2017, Energy+ will match employee contributions dollar for dollar. A Corporate Donations Review Committee has been established to identify opportunities for corporate support up to a maximum each year.
A82: Note: Use "ALT-ENTER" to go to the next line within a cell

Sheet App.2-B_Acctg Instructions
A1: General Instructions to MIFRS Appendices
A2: Types of Schedules to File
A4: The purpose of this tab is to provide general instructions. The specific instructions to each appendix are listed in footnotes of each appendix.
A6: The typical applicant is expected to have made capitalization and depreciation policy changes under CGAAP as permitted by the Board on January 1, 2012 or mandated by the Board by January 1, 2013, and adopted IFRS for reporting purposes on January 1, 2015 (transition date January 1, 2014). Some distributors filing for 2018 rates have rebased with these accounting changes reflected in a prior rebasing application. If that is the case, information relating to pre-accounting policy changes is not generally required. The information to be provided by applicants will depend on when the accounting policy changes were made and when they last rebased. In general, applicants should provide the following information in the appendices:
E9: Reflecting Accounting Policy Changes in Current Application | G9: Reflected Accounting Policy Changes in Prior Application3
E10: Accounting Policy Changes in 2012 and Adopted IFRS in 2015 | F10: Accounting Policy Changes in 2013 and Adopted IFRS in 2015 | G10: Adopted IFRS in 2015
A11: Information to be filed in 2018 CoS Application | B11: 2018 | C11: Test | E11: MIFRS | F11: MIFRS | G11: MIFRS
B12: 2017 | C12: Bridge | E12: MIFRS | F12: MIFRS | G12: MIFRS
B13: 2016 | C13: Historical | E13: MIFRS | F13: MIFRS | G13: MIFRS
B14: 2015 | C14: Historical | E14: MIFRS | F14: MIFRS | G14: MIFRS
B15: 2014 | C15: Historical | E15: MIFRS and Revised CGAAP1 | F15: MIFRS and Revised CGAAP1 | G15: MIFRS and Revised CGAAP1
B16: 2013 | C16: Historical | E16: Revised CGAAP | F16: CGAAP and Revised CGAAP2 | G16: N/A
B17: 2012 | C17: Historical | E17: CGAAP and Revised CGAAP2 | F17: N/A | G17: N/A
A19: 1) For the transition year (2014), the applicant may file two appendices, one under Revised CGAAP and one under MIFRS, depending on the materiality of impacts. See the specific instructions under each appendix below for further details.
A20: 2) For applicants that are reflecting accounting policy changes for the first time in a rebasing application, the applicant must file two appendices in the year that the applicant implemented changes to its capitalization and depreciation policies (2012 or 2013), one before and one after the policy changes.
A21: 3) Applicants should provide CGAAP and Revised CGAAP schedules (i.e. as indicated in the first two columns of the above table) to support balances in Account 1576 if the account has yet to be disposed of.
A24: Appendix 2-BA - Fixed Asset Schedule
A26: Applicants are to provide Appendix 2-BA in accordance with the years and corresponding accounting standards noted in the above table to provide a year over year continuity in fixed assets.
A27: For the transition year (2014), the applicant should file two appendices, one under Revised CGAAP and one under MIFRS if the change between Revised CGAAP and MIFRS is material. If the change from the accounting standards is not material, the applicant may choose to only provide one appendix under MIFRS. However, the applicant must also indicate the fixed asset net book value balance under Revised CGAAP, the total dollar value of the change and explain why it is not material.
A31: The applicant must establish the continuity of historic cost for gross assets and accumulated depreciation by asset class by ensuring that the opening balance in the year agrees to the closing balance in the prior year.
A34: Appendix 2-Cx - Depreciation and Amortization
A36: Applicants are to provide Appendix 2-C in accordance with the years and corresponding accounting standards listed in the above table.
A37: Appendix 2-C is to be used under all three of the scenarios presented in the table above. In the appendix, the applicant will need to indicate which scenario applies. The appendix is to be duplicated for each year and accounting standard required under the scenario.
A38: Depreciation accounting policy changes were mandated by the Board by January 1, 2013. In general, no further changes to an applicant's depreciation policy (i.e. assets' service lives) are expected after the Board mandated changes by January 1, 2013. If the applicant has made any changes to its depreciation policy subsequent to the Board mandated changes, for the year of the change, applicants must complete Appendix 2-C before and after the change. Applicants must also explain the nature of the change, the reason for the change, quantify the impact of the change, and quantify the depreciation expense before and after the change.
A40: Appendix 2-E - Account 1575, IFRS-CGAAP Transitional PP&E Amounts (2-EA), Account 1576, Accounting Changes Under CGAAP (2-EB, 2-EC)
A42: 1) For an applicant that has a balance in Account 1576 to dispose:
A43: · | B43: If an applicant changed capitalization and depreciation policies effective January 1, 2012, the applicant must complete Appendix 2-EB
A44: · | B44: If an applicant changed capitalization and depreciation policies effective January 1, 2013, the applicant must complete Appendix 2-EC
A46: 2) For an applicant that has a balance in Account 1575 to dispose:
A47: · | B47: The applicant must complete 2-EA
A48: If the applicant did not make any further PP&E accounting policy changes beyond the capitalization and depreciation policy changes as mandated by the Board by January 1, 2013 (i.e. no further changes made on transition to IFRS), the applicant must indicate this and does not need to complete Appendix 2-EA.
A52: Appendix 2-Y - Summary of Impacts to Revenue Requirement from Transition to MIFRS
A54: An applicant must provide a summary of the dollar impacts of MIFRS to each component of the revenue requirement (e.g. rate base, operating costs, etc.), including the overall impact on the proposed revenue requirement. Accordingly, the applicant must identify financial differences and resulting revenue requirement impacts arising from the adoption of MIFRS as compared to CGAAP. If the applicant is reflecting the changes in capitalization and depreciation policies for the first time in a rebasing application, then a comparison between MIFRS and CGAAP before the change in accounting policies should be completed. If the applicant changed capitalization and depreciation policies and reflected these changes in a prior rebasing application, then a comparison between MIFRS and CGAAP after the change in accounting policies should be completed.

Sheet App.2-BA_FA Cont 2011 BCP
L1: File Number: | M1: =EBNUMBER -> EB-2018-0028
L2: Exhibit: | M2: 1
L3: Tab:
L4: Schedule:
L5: Page:
L7: Date: | M7: 2018-04-27
A9: Appendix 2-BA
A10: Fixed Asset Continuity Schedule 1
A11: Energy+ (Former Brant County Power Inc.)
E12: Accounting Standard | F12: CGAAP | G12: Old CGAAP
E13: Year | F13: 2011
D15: Cost | J15: Accumulated Depreciation
A16: CCA Class 2 | B16: OEB Account 3 | C16: Description 3 | D16: Opening Balance | E16: Additions 4 | F16: Disposals 6 | G16: Closing Balance | I16: Opening Balance | J16: Additions | K16: Disposals 6 | L16: Closing Balance | M16: Net Book Value
A17: 12 | B17: 1611 | C17: Computer Software (Formally known as Account 1925) | D17: 349742 | E17: 181281 | F17: 0 | G17: =D17+E17+F17 -> 531023 | I17: -301323.63 | J17: -30163.3 | K17: 0 | L17: =I17+J17+K17 -> -331486.93 | M17: =G17+L17 -> 199536.07
A18: CEC | B18: 1612 | C18: Land Rights (Formally known as Account 1906) | D18: 0 | E18: 0 | F18: 0 | G18: =D18+E18+F18 -> 0 | I18: 0 | J18: 0 | K18: 0 | L18: =I18+J18+K18 -> 0 | M18: =G18+L18 -> 0
A19: N/A | B19: 1805 | C19: Land | D19: 97579 | E19: 4590 | F19: 0 | G19: =D19+E19+F19 -> 102169 | I19: 0 | J19: 0 | K19: 0 | L19: =I19+J19+K19 -> 0 | M19: =G19+L19 -> 102169
A20: 47 | B20: 1808 | C20: Buildings | D20: 811496.06 | E20: 88.28 | F20: 0 | G20: =D20+E20+F20 -> 811584.34 | I20: -211094.7095 | J20: -25051.34689 | K20: 0 | L20: =I20+J20+K20 -> -236146.0564 | M20: =G20+L20 -> 575438.2836
A21: 13 | B21: 1810 | C21: Leasehold Improvements | D21: 0 | E21: 0 | F21: 0 | G21: 0 | I21: 0 | J21: 0 | K21: 0 | L21: 0 | M21: 0
A22: 47 | B22: 1815 | C22: Transformer Station Equipment >50 kV | D22: 2510109 | E22: 0 | F22: 0 | G22: 2510109 | I22: -314972 | J22: -63197.6965 | K22: 0 | L22: -378169.6965 | M22: 2131939.303
A23: 47 | B23: 1820 | C23: Distribution Station Equipment <50 kV | D23: 121476.26 | E23: 2750 | F23: 0 | G23: 124226.26 | I23: -60193.19246 | J23: -4787.515086 | K23: 0 | L23: -64980.70754 | M23: 59245.55246
A24: 47 | B24: 1825 | C24: Storage Battery Equipment | D24: 0 | E24: 0 | F24: 0 | G24: 0 | I24: 0 | J24: 0 | K24: 0 | L24: 0 | M24: 0
A25: 47 | B25: 1830 | C25: Poles, Towers & Fixtures | D25: 5164327.351 | E25: 905567.8685 | F25: 0 | G25: 6069895.22 | I25: -1790933.227 | J25: -244163.1881 | K25: 0 | L25: -2035096.415 | M25: 4034798.805
A26: 47 | B26: 1835 | C26: Overhead Conductors & Devices | D26: 3901873.918 | E26: 881154.402 | F26: 0 | G26: 4783028.32 | I26: -1411571.462 | J26: -189035.7853 | K26: 0 | L26: -1600607.247 | M26: 3182421.073
A27: 47 | B27: 1840 | C27: Underground Conduit | D27: 580917.65 | E27: 2542.18 | F27: 0 | G27: 583459.83 | I27: -207255.6925 | J27: -26006.16673 | K27: 0 | L27: -233261.8592 | M27: 350197.9708
A28: 47 | B28: 1845 | C28: Underground Conductors & Devices | D28: 2219524.095 | E28: 85767.835 | F28: 0 | G28: 2305291.93 | I28: -984612.9077 | J28: -108108.932 | K28: 0 | L28: -1092721.84 | M28: 1212570.09
A29: 47 | B29: 1850 | C29: Line Transformers | D29: 4596778.34 | E29: 290508.38 | F29: 0 | G29: 4887286.72 | I29: -1733404 | J29: -219013.8365 | K29: 0 | L29: -1952417.837 | M29: 2934868.883
A30: 47 | B30: 1855 | C30: Services (Overhead & Underground) | D30: 2556075.751 | E30: 77188.419 | F30: 0 | G30: 2633264.17 | I30: -1121255.411 | J30: -118260.7972 | K30: 0 | L30: -1239516.208 | M30: 1393747.962
A31: 47 | B31: 1860-1 | C31: Meters | D31: 0 | E31: 0 | F31: 0 | G31: 0 | I31: 0 | J31: 0 | K31: 0 | L31: 0 | M31: 0
A32: 47 | B32: 1860 | C32: Meters | D32: 1398851.82 | E32: 57346.5376 | F32: 0 | G32: 1456198.358 | I32: -548844 | J32: -64343.94373 | K32: 0 | L32: -613187.9437 | M32: 843010.4139
A33: N/A | B33: 1905 | C33: Land | D33: 79045 | E33: 0 | F33: 0 | G33: 79045 | I33: 0 | J33: 0 | K33: 0 | L33: 0 | M33: 79045
A34: 47 | B34: 1908 | C34: Buildings & Fixtures | D34: 420391.75 | E34: 61503.89 | F34: 0 | G34: 481895.64 | I34: -80182.194 | J34: -14161.0255 | K34: 0 | L34: -94343.2195 | M34: 387552.4205
A35: 13 | B35: 1910 | C35: Leasehold Improvements | D35: 0 | E35: 0 | F35: 0 | G35: 0 | I35: 0 | J35: 0 | K35: 0 | L35: 0 | M35: 0
A36: 8 | B36: 1915-1 | C36: Office Furniture & Equipment (10 years) | D36: 0 | E36: 0 | F36: 0 | G36: 0 | I36: 0 | J36: 0 | K36: 0 | L36: 0 | M36: 0
A37: 8 | B37: 1915 | C37: Office Furniture & Equipment | D37: 165359.654 | E37: 17046.49 | F37: 0 | G37: 182406.144 | I37: -88237.019 | J37: -12750.1095 | K37: 0 | L37: -100987.1285 | M37: 81419.0155
A38: 10 | B38: 1920-1 | C38: Computer Equipment - Hardware | D38: 0 | E38: 0 | F38: 0 | G38: 0 | I38: 0 | J38: 0 | K38: 0 | L38: 0 | M38: 0
A39: 45 | B39: 1920-2 | C39: Computer Equip.-Hardware(Post Mar. 22/04) | D39: 0 | E39: 0 | F39: 0 | G39: 0 | I39: 0 | J39: 0 | K39: 0 | L39: 0 | M39: 0
A40: 45.1 | B40: 1920 | C40: Computer Equip.-Hardware | D40: 594432 | E40: 30817.34 | F40: 0 | G40: 625249.34 | I40: -538678.072 | J40: -37661.564 | K40: 0 | L40: -576339.636 | M40: 48909.704
A41: 10 | B41: 1930 | C41: Transportation Equipment | D41: 1416833.97 | E41: 126111 | F41: -350722.76 | G41: 1192222.21 | I41: -539548 | J41: -207232.7487 | K41: 345814.39 | L41: -400966.3588 | M41: 791255.8512
A42: 8 | B42: 1935 | C42: Stores Equipment | D42: 3728.58 | E42: 0 | F42: -2 | G42: 3726.58 | I42: -1148.58 | J42: -774 | K42: 0 | L42: -1922.58 | M42: 1804
A43: 8 | B43: 1940 | C43: Tools, Shop & Garage Equipment | D43: 167705.103 | E43: 17883.45 | F43: 0 | G43: 185588.553 | I43: -101453.362 | J43: -13920.9195 | K43: 0 | L43: -115374.2815 | M43: 70214.2715
A44: 8 | B44: 1945 | C44: Measurement & Testing Equipment | D44: 68945.014 | E44: -4955.26 | F44: 0 | G44: 63989.754 | I44: -40743.84967 | J44: -5122.499 | K44: 0 | L44: -45866.34867 | M44: 18123.40533
A45: 8 | B45: 1950 | C45: Power Operated Equipment | D45: 2707.97 | E45: 0 | F45: 0 | G45: 2707.97 | I45: -1902.27 | J45: -199.75 | K45: 0 | L45: -2102.02 | M45: 605.95
A46: 8 | B46: 1955-1 | C46: Communications Equipment | D46: 0 | E46: 0 | F46: 0 | G46: 0 | I46: 0 | J46: 0 | K46: 0 | L46: 0 | M46: 0
A47: 8 | B47: 1955 | C47: Communication Equipment | D47: 40579.902 | E47: 0 | F47: 0 | G47: 40579.902 | I47: -36720.195 | J47: -1494.409 | K47: 0 | L47: -38214.604 | M47: 2365.298
A48: 8 | B48: 1960 | C48: Miscellaneous Equipment | D48: 117786.9 | E48: 82020.65 | F48: 0 | G48: 199807.55 | I48: -19862.05 | J48: -15806.7225 | K48: 0 | L48: -35668.7725 | M48: 164138.7775
A49: 47 | B49: 1970 | C49: Load Management Controls Customer Premises | D49: 0 | E49: 0 | F49: 0 | G49: 0 | I49: 0 | J49: 0 | K49: 0 | L49: 0 | M49: 0
A50: 47 | B50: 1975 | C50: Load Management Controls Utility Premises | D50: 0 | E50: 0 | F50: 0 | G50: 0 | I50: 0 | J50: 0 | K50: 0 | L50: 0 | M50: 0
A51: 47 | B51: 1980 | C51: System Supervisor Equipment | D51: 0 | E51: 0 | F51: 0 | G51: 0 | I51: 0 | J51: 0 | K51: 0 | L51: 0 | M51: 0
A52: 47 | B52: 1985 | C52: Miscellaneous Fixed Assets | D52: 0 | E52: 0 | F52: 0 | G52: 0 | I52: 0 | J52: 0 | K52: 0 | L52: 0 | M52: 0
A53: 47 | B53: 1990 | C53: Other Tangible Property | D53: 0 | E53: 0 | F53: 0 | G53: 0 | I53: 0 | J53: 0 | K53: 0 | L53: 0 | M53: 0
A54: 47 | B54: 1995 | C54: Contributions & Grants | D54: -1828479 | E54: -8494.44 | F54: 0 | G54: -1836973.44 | I54: 555105 | J54: 73306.0328 | K54: 0 | L54: 628411.0328 | M54: -1208562.407
B55: 2005 | C55: Property Under Finance Leases | D55: 0 | E55: 0 | F55: 0 | G55: 0 | I55: 0 | J55: 0 | K55: 0 | L55: 0 | M55: 0
B56: 2010 | C56: Electric Plant Purchased or Sold | D56: 41000 | E56: 0 | F56: 0 | G56: 41000 | I56: -9840 | J56: -1640 | K56: 0 | L56: -11480 | M56: 29520
A57: 47 | B57: 2440 | C57: Deferred Revenue5 | D57: 0 | E57: 0 | F57: 0 | G57: 0 | I57: 0 | J57: 0 | K57: 0 | L57: 0 | M57: 0
C59: Sub-Total | D59: =SUM(D17:D58) -> 25598788.09 | E59: =SUM(E17:E58) -> 2810718.022 | F59: =SUM(F17:F58) -> -350724.76 | G59: =SUM(G17:G58) -> 28058781.35 | I59: =SUM(I17:I58) -> -9588670.824 | J59: =SUM(J17:J58) -> -1329590.223 | K59: =SUM(K17:K58) -> 345814.39 | L59: =SUM(L17:L58) -> -10572446.66 | M59: =SUM(M17:M58) -> 17486334.69
C60: Less Socialized Renewable Energy Generation Investments (input as negative) | G60: =D60+E60+F60 -> 0 | L60: =I60+J60+K60 -> 0 | M60: =G60+L60 -> 0
C61: Less Other Non Rate-Regulated Utility Assets (input as negative) | G61: 0 | L61: 0 | M61: 0
C62: Total PP&E | D62: =SUM(D59:D61) -> 25598788.09 | E62: =SUM(E59:E61) -> 2810718.022 | F62: =SUM(F59:F61) -> -350724.76 | G62: =SUM(G59:G61) -> 28058781.35 | I62: =SUM(I59:I61) -> -9588670.824 | J62: =SUM(J59:J61) -> -1329590.223 | K62: =SUM(K59:K61) -> 345814.39 | L62: =SUM(L59:L61) -> -10572446.66 | M62: =SUM(M59:M61) -> 17486334.69
C63: Depreciation Expense adj. from gain or loss on the retirement of assets (pool of like assets), if applicable6
C64: Total | J64: =J62+J63 -> -1329590.223
I66: Less: Fully Allocated Depreciation
A67: 10 | C67: Transportation | I67: Transportation | K67: -207232.7487
A68: 8 | C68: Stores Equipment | I68: Stores and Other Equipment | K68: -37318.3
I69: Net Depreciation | K69: =-(J64-K67-K68) -> 1085039.174
A71: Notes:
A73: 1 | B73: Tables in the format outlined above covering all fixed asset accounts should be submitted for the Test Year, Bridge Year and all relevant historical years. At a minimum , the applicant must provide data for the earlier of: 1) all historical years back to its last rebasing; or 2) at least three years of historical actuals, in addition to Bridge Year and Test Year forecasts.
A76: 2 | B76: The "CCA Class" for fixed assets should agree with the CCA Class used for tax purposes in Tax Returns. Fixed Assets sub-components may be used where the underlying asset components are classified under multiple CCA Classes for tax purposes. If an applicant uses any different classes from those shown in the table, an explanation should be provided. (also see note 3).
A79: 3 | B79: The table may need to be customized for a utility's asset categories or for any new asset accounts announced or authorized by the Board.
A81: 4 | B81: The additions in column (E) must not include construction work in progress (CWIP).
A83: 5 | B83: Effective on the date of IFRS adoption, customer contributions will no longer be recorded in Account 1995 Contributions & Grants, but will be recorded in Account 2440, Deferred Revenues.
A85: 6 | B85: The applicant must ensure that all asset disposals have been clearly identified in the Chapter 2 Appendices for all historic, bridge and test years. Where a distributor for general financial reporting purposes under IFRS has accounted for the amount of gain or loss on the retirement of assets in a pool of like assets as a charge or credit to income, for reporting and rate application filings, the distributor shall reclassify such gains and losses as depreciation expense, and disclose the amount separately.

Sheet App.2-BA_FA Cont 2012 BCP
L1: File Number: | M1: =EBNUMBER -> EB-2018-0028
L2: Exhibit: | M2: 1
L3: Tab:
L4: Schedule:
L5: Page:
L7: Date: | M7: 2018-04-27
A9: Appendix 2-BA
A10: Fixed Asset Continuity Schedule 1
A11: Energy+ (Former Brant County Power Inc.)
E12: Accounting Standard | F12: CGAAP | G12: Old CGAAP
E13: Year | F13: 2012
D15: Cost | J15: Accumulated Depreciation
A16: CCA Class 2 | B16: OEB Account 3 | C16: Description 3 | D16: Opening Balance | E16: Additions 4 | F16: Disposals 6 | G16: Closing Balance | I16: Opening Balance | J16: Additions | K16: Disposals 6 | L16: Closing Balance | M16: Net Book Value
A17: 12 | B17: 1611 | C17: Computer Software (Formally known as Account 1925) | D17: 531023 | E17: 60120.2 | F17: 0 | G17: =D17+E17+F17 -> 591143.2 | I17: -331486.93 | J17: -51028.02 | K17: 0 | L17: =I17+J17+K17 -> -382514.95 | M17: =G17+L17 -> 208628.25
A18: CEC | B18: 1612 | C18: Land Rights (Formally known as Account 1906) | D18: 0 | E18: 0 | F18: 0 | G18: =D18+E18+F18 -> 0 | I18: 0 | J18: 0 | K18: 0 | L18: =I18+J18+K18 -> 0 | M18: =G18+L18 -> 0
A19: N/A | B19: 1805 | C19: Land | D19: 102169 | E19: 23230.62 | F19: -30480 | G19: =D19+E19+F19 -> 94919.62 | I19: 0 | J19: 0 | K19: 0 | L19: =I19+J19+K19 -> 0 | M19: =G19+L19 -> 94919.62
A20: 47 | B20: 1808 | C20: Buildings | D20: 811584.34 | E20: -21 | F20: 0 | G20: =D20+E20+F20 -> 811563.34 | I20: -236146.0564 | J20: -25052.82 | K20: 0 | L20: =I20+J20+K20 -> -261198.8764 | M20: =G20+L20 -> 550364.4636
A21: 13 | B21: 1810 | C21: Leasehold Improvements | D21: 0 | E21: 0 | F21: 0 | G21: 0 | I21: 0 | J21: 0 | K21: 0 | L21: 0 | M21: 0
A22: 47 | B22: 1815 | C22: Transformer Station Equipment >50 kV | D22: 2510109 | E22: 0 | F22: 0 | G22: 2510109 | I22: -378169.6965 | J22: -63197.7 | K22: 0 | L22: -441367.3965 | M22: 2068741.603
A23: 47 | B23: 1820 | C23: Distribution Station Equipment <50 kV | D23: 124226.26 | E23: 0 | F23: 0 | G23: 124226.26 | I23: -64980.70754 | J23: -4626.68 | K23: 0 | L23: -69607.38754 | M23: 54618.87246
A24: 47 | B24: 1825 | C24: Storage Battery Equipment | D24: 0 | E24: 0 | F24: 0 | G24: 0 | I24: 0 | J24: 0 | K24: 0 | L24: 0 | M24: 0
A25: 47 | B25: 1830 | C25: Poles, Towers & Fixtures | D25: 6069895.22 | E25: 674390.7 | F25: 0 | G25: 6744285.92 | I25: -2035096.415 | J25: -269059.04 | K25: 0 | L25: -2304155.455 | M25: 4440130.465
A26: 47 | B26: 1835 | C26: Overhead Conductors & Devices | D26: 4783028.32 | E26: 667244.42 | F26: 0 | G26: 5450272.74 | I26: -1600607.247 | J26: -214790.07 | K26: 0 | L26: -1815397.317 | M26: 3634875.423
A27: 47 | B27: 1840 | C27: Underground Conduit | D27: 583459.83 | E27: 13600.31 | F27: 0 | G27: 597060.14 | I27: -233261.8592 | J27: -25681.28 | K27: 0 | L27: -258943.1392 | M27: 338117.0008
A28: 47 | B28: 1845 | C28: Underground Conductors & Devices | D28: 2305291.93 | E28: 82691.3 | F28: 0 | G28: 2387983.23 | I28: -1092721.84 | J28: -107267.81 | K28: 0 | L28: -1199989.65 | M28: 1187993.58
A29: 47 | B29: 1850 | C29: Line Transformers | D29: 4887286.72 | E29: 261696.13 | F29: 0 | G29: 5148982.85 | I29: -1952417.837 | J29: -220939.9 | K29: 0 | L29: -2173357.737 | M29: 2975625.113
A30: 47 | B30: 1855 | C30: Services (Overhead & Underground) | D30: 2633264.17 | E30: 91093.05 | F30: 0 | G30: 2724357.22 | I30: -1239516.208 | J30: -118291.83 | K30: 0 | L30: -1357808.038 | M30: 1366549.182
A31: 47 | B31: 1860-1 | C31: Meters | D31: 0 | E31: 0 | F31: 0 | G31: 0 | I31: 0 | J31: 0 | K31: 0 | L31: 0 | M31: 0
A32: 47 | B32: 1860 | C32: Meters | D32: 1456198.358 | E32: 1197595.54 | F32: 0 | G32: 2653793.898 | I32: -613187.9437 | J32: -88937.85533 | K32: 0 | L32: -702125.7991 | M32: 1951668.099
A33: N/A | B33: 1905 | C33: Land | D33: 79045 | E33: 8750 | F33: 0 | G33: 87795 | I33: 0 | J33: 0 | K33: 0 | L33: 0 | M33: 87795
A34: 47 | B34: 1908 | C34: Buildings & Fixtures | D34: 481895.64 | E34: 12628 | F34: 0 | G34: 494523.64 | I34: -94343.2195 | J34: -15395.58 | K34: 0 | L34: -109738.7995 | M34: 384784.8405
A35: 13 | B35: 1910 | C35: Leasehold Improvements | D35: 0 | E35: 0 | F35: 0 | G35: 0 | I35: 0 | J35: 0 | K35: 0 | L35: 0 | M35: 0
A36: 8 | B36: 1915-1 | C36: Office Furniture & Equipment (10 years) | D36: 0 | E36: 0 | F36: 0 | G36: 0 | I36: 0 | J36: 0 | K36: 0 | L36: 0 | M36: 0
A37: 8 | B37: 1915 | C37: Office Furniture & Equipment | D37: 182406.144 | E37: 3111 | F37: 0 | G37: 185517.144 | I37: -100987.1285 | J37: -12276.14 | K37: 0 | L37: -113263.2685 | M37: 72253.8755
A38: 10 | B38: 1920-1 | C38: Computer Equipment - Hardware | D38: 0 | E38: 0 | F38: 0 | G38: 0 | I38: 0 | J38: 0 | K38: 0 | L38: 0 | M38: 0
A39: 45 | B39: 1920-2 | C39: Computer Equip.-Hardware(Post Mar. 22/04) | D39: 0 | E39: 0 | F39: 0 | G39: 0 | I39: 0 | J39: 0 | K39: 0 | L39: 0 | M39: 0
A40: 45.1 | B40: 1920 | C40: Computer Equip.-Hardware | D40: 625249.34 | E40: 201030 | F40: 0 | G40: 826279.34 | I40: -576339.636 | J40: -45604.168 | K40: 0 | L40: -621943.804 | M40: 204335.536
A41: 10 | B41: 1930 | C41: Transportation Equipment | D41: 1192222.21 | E41: 40917 | F41: -33580.19 | G41: 1199559.02 | I41: -400966.3588 | J41: -158060.89 | K41: 18888.89 | L41: -540138.3588 | M41: 659420.6613
A42: 8 | B42: 1935 | C42: Stores Equipment | D42: 3726.58 | E42: 2 | F42: 0 | G42: 3728.58 | I42: -1922.58 | J42: -516 | K42: 0 | L42: -2438.58 | M42: 1290
A43: 8 | B43: 1940 | C43: Tools, Shop & Garage Equipment | D43: 185588.553 | E43: 355998.78 | F43: 0 | G43: 541587.333 | I43: -115374.2815 | J43: -32534.031 | K43: 0 | L43: -147908.3125 | M43: 393679.0205
A44: 8 | B44: 1945 | C44: Measurement & Testing Equipment | D44: 63989.754 | E44: 539.4 | F44: 0 | G44: 64529.154 | I44: -45866.34867 | J44: -4195.35 | K44: 0 | L44: -50061.69867 | M44: 14467.45533
A45: 8 | B45: 1950 | C45: Power Operated Equipment | D45: 2707.97 | E45: 0 | F45: 0 | G45: 2707.97 | I45: -2102.02 | J45: -199.75 | K45: 0 | L45: -2301.77 | M45: 406.2
A46: 8 | B46: 1955-1 | C46: Communications Equipment | D46: 0 | E46: 0 | F46: 0 | G46: 0 | I46: 0 | J46: 0 | K46: 0 | L46: 0 | M46: 0
A47: 8 | B47: 1955 | C47: Communication Equipment | D47: 40579.902 | E47: 0 | F47: 0 | G47: 40579.902 | I47: -38214.604 | J47: -1224.91 | K47: 0 | L47: -39439.514 | M47: 1140.388
A48: 8 | B48: 1960 | C48: Miscellaneous Equipment | D48: 199807.55 | E48: 13001.69 | F48: 0 | G48: 212809.24 | I48: -35668.7725 | J48: -20557.84 | K48: 0 | L48: -56226.6125 | M48: 156582.6275
A49: 47 | B49: 1970 | C49: Load Management Controls Customer Premises | D49: 0 | E49: 0 | F49: 0 | G49: 0 | I49: 0 | J49: 0 | K49: 0 | L49: 0 | M49: 0
A50: 47 | B50: 1975 | C50: Load Management Controls Utility Premises | D50: 0 | E50: 0 | F50: 0 | G50: 0 | I50: 0 | J50: 0 | K50: 0 | L50: 0 | M50: 0
A51: 47 | B51: 1980 | C51: System Supervisor Equipment | D51: 0 | E51: 0 | F51: 0 | G51: 0 | I51: 0 | J51: 0 | K51: 0 | L51: 0 | M51: 0
A52: 47 | B52: 1985 | C52: Miscellaneous Fixed Assets | D52: 0 | E52: 0 | F52: 0 | G52: 0 | I52: 0 | J52: 0 | K52: 0 | L52: 0 | M52: 0
A53: 47 | B53: 1990 | C53: Other Tangible Property | D53: 0 | E53: 0 | F53: 0 | G53: 0 | I53: 0 | J53: 0 | K53: 0 | L53: 0 | M53: 0
A54: 47 | B54: 1995 | C54: Contributions & Grants | D54: -1836973.44 | E54: -49479.51 | F54: 0 | G54: -1886452.95 | I54: 628411.0328 | J54: 74469 | K54: 0 | L54: 702880.0328 | M54: -1183572.917
B55: 2005 | C55: Property Under Finance Leases | D55: 0 | E55: 0 | F55: 0 | G55: 0 | I55: 0 | J55: 0 | K55: 0 | L55: 0 | M55: 0
B56: 2010 | C56: Electric Plant Purchased or Sold | D56: 41000 | E56: 0 | F56: 0 | G56: 41000 | I56: -11480 | J56: -1640 | K56: 0 | L56: -13120 | M56: 27880
A57: 47 | B57: 2440 | C57: Deferred Revenue5 | D57: 0 | E57: 0 | F57: 0 | G57: 0 | I57: 0 | J57: 0 | K57: 0 | L57: 0 | M57: 0
C59: Sub-Total | D59: =SUM(D17:D58) -> 28058781.35 | E59: =SUM(E17:E58) -> 3658139.63 | F59: =SUM(F17:F58) -> -64060.19 | G59: =SUM(G17:G58) -> 31652860.79 | I59: =SUM(I17:I58) -> -10572446.66 | J59: =SUM(J17:J58) -> -1406608.664 | K59: =SUM(K17:K58) -> 18888.89 | L59: =SUM(L17:L58) -> -11960166.43 | M59: =SUM(M17:M58) -> 19692694.36
C60: Less Socialized Renewable Energy Generation Investments (input as negative) | G60: =D60+E60+F60 -> 0 | L60: =I60+J60+K60 -> 0 | M60: =G60+L60 -> 0
C61: Less Other Non Rate-Regulated Utility Assets (input as negative) | G61: 0 | L61: 0 | M61: 0
C62: Total PP&E | D62: =SUM(D59:D61) -> 28058781.35 | E62: =SUM(E59:E61) -> 3658139.63 | F62: -64060.19 | G62: 31652860.79 | I62: =SUM(I59:I61) -> -10572446.66 | J62: -1406608.664 | K62: 18888.89 | L62: -11960166.43 | M62: 19692694.36
C63: Depreciation Expense adj. from gain or loss on the retirement of assets (pool of like assets), if applicable6
C64: Total | J64: =J62+J63 -> -1406608.664
I66: Less: Fully Allocated Depreciation
A67: 10 | C67: Transportation | I67: Transportation | K67: -158060.89
A68: 8 | C68: Stores Equipment | I68: Stores Equipment | K68: -59227.881
I69: Net Depreciation | K69: =-(J64-K67-K68) -> 1189319.893
A71: Notes:
A73: 1 | B73: Tables in the format outlined above covering all fixed asset accounts should be submitted for the Test Year, Bridge Year and all relevant historical years. At a minimum , the applicant must provide data for the earlier of: 1) all historical years back to its last rebasing; or 2) at least three years of historical actuals, in addition to Bridge Year and Test Year forecasts.
A76: 2 | B76: The "CCA Class" for fixed assets should agree with the CCA Class used for tax purposes in Tax Returns. Fixed Assets sub-components may be used where the underlying asset components are classified under multiple CCA Classes for tax purposes. If an applicant uses any different classes from those shown in the table, an explanation should be provided. (also see note 3).
A79: 3 | B79: The table may need to be customized for a utility's asset categories or for any new asset accounts announced or authorized by the Board.
A81: 4 | B81: The additions in column (E) must not include construction work in progress (CWIP).
A83: 5 | B83: Effective on the date of IFRS adoption, customer contributions will no longer be recorded in Account 1995 Contributions & Grants, but will be recorded in Account 2440, Deferred Revenues.
A85: 6 | B85: The applicant must ensure that all asset disposals have been clearly identified in the Chapter 2 Appendices for all historic, bridge and test years. Where a distributor for general financial reporting purposes under IFRS has accounted for the amount of gain or loss on the retirement of assets in a pool of like assets as a charge or credit to income, for reporting and rate application filings, the distributor shall reclassify such gains and losses as depreciation expense, and disclose the amount separately.

Sheet App.2-BA_FA Cont 2013 BCP
L1: File Number: | M1: =EBNUMBER -> EB-2018-0028
L2: Exhibit: | M2: 1
L3: Tab:
L4: Schedule:
L5: Page:
L7: Date: | M7: 2018-04-27
A9: Appendix 2-BA
A10: Fixed Asset Continuity Schedule 1
A11: Energy+ (Former Brant County Power Inc.)
E12: Accounting Standard | F12: CGAAP | G12: Old CGAAP
E13: Year | F13: 2013
D15: Cost | J15: Accumulated Depreciation
A16: CCA Class 2 | B16: OEB Account 3 | C16: Description 3 | D16: Opening Balance | E16: Additions 4 | F16: Disposals 6 | G16: Closing Balance | I16: Opening Balance | J16: Additions | K16: Disposals 6 | L16: Closing Balance | M16: Net Book Value
A17: 12 | B17: 1611 | C17: Computer Software (Formally known as Account 1925) | D17: 591143 | E17: 40293 | F17: -631436 | G17: =D17+E17+F17 -> 0 | I17: -382514.95 | J17: -56594 | K17: 0 | L17: =I17+J17+K17 -> -439108.95 | M17: =G17+L17 -> -439108.95
A18: CEC | B18: 1612 | C18: Land Rights (Formally known as Account 1906) | D18: 0 | E18: 0 | F18: 0 | G18: =D18+E18+F18 -> 0 | I18: 0 | J18: 0 | K18: 0 | L18: =I18+J18+K18 -> 0 | M18: =G18+L18 -> 0
A19: N/A | B19: 1805 | C19: Land | D19: 94919.62 | E19: 0 | F19: 0 | G19: =D19+E19+F19 -> 94919.62 | I19: 0 | J19: 0 | K19: 0 | L19: =I19+J19+K19 -> 0 | M19: =G19+L19 -> 94919.62
A20: 47 | B20: 1808 | C20: Buildings | D20: 811563.34 | E20: 248.42 | F20: 0 | G20: =D20+E20+F20 -> 811811.76 | I20: -261198.8764 | J20: -25262 | K20: 0 | L20: =I20+J20+K20 -> -286460.8764 | M20: =G20+L20 -> 525350.8836
A21: 13 | B21: 1810 | C21: Leasehold Improvements | D21: 0 | E21: 0 | F21: 0 | G21: 0 | I21: 0 | J21: 0 | K21: 0 | L21: 0 | M21: 0
A22: 47 | B22: 1815 | C22: Transformer Station Equipment >50 kV | D22: 2510109 | E22: 0 | F22: 0 | G22: 2510109 | I22: -441367.3965 | J22: -62689 | K22: 0 | L22: -504056.3965 | M22: 2006052.603
A23: 47 | B23: 1820 | C23: Distribution Station Equipment <50 kV | D23: 124226.26 | E23: 0 | F23: 0 | G23: 124226.26 | I23: -69607.38754 | J23: -4627 | K23: 0 | L23: -74234.38754 | M23: 49991.87246
A24: 47 | B24: 1825 | C24: Storage Battery Equipment | D24: 0 | E24: 0 | F24: 0 | G24: 0 | I24: 0 | J24: 0 | K24: 0 | L24: 0 | M24: 0
A25: 47 | B25: 1830 | C25: Poles, Towers & Fixtures | D25: 6744285.92 | E25: 535805.12 | F25: 0 | G25: 7280091.04 | I25: -2304155.455 | J25: -288535 | K25: 0 | L25: -2592690.455 | M25: 4687400.585
A26: 47 | B26: 1835 | C26: Overhead Conductors & Devices | D26: 5450272.74 | E26: 348894.99 | F26: 0 | G26: 5799167.73 | I26: -1815397.317 | J26: -231577 | K26: 0 | L26: -2046974.317 | M26: 3752193.413
A27: 47 | B27: 1840 | C27: Underground Conduit | D27: 597060.14 | E27: 8490.024 | F27: 0 | G27: 605550.164 | I27: -258943.1392 | J27: -25836 | K27: 0 | L27: -284779.1392 | M27: 320771.0248
A28: 47 | B28: 1845 | C28: Underground Conductors & Devices | D28: 2387983.23 | E28: 178435.63 | F28: 0 | G28: 2566418.86 | I28: -1199989.65 | J28: -110255 | K28: 0 | L28: -1310244.65 | M28: 1256174.21
A29: 47 | B29: 1850 | C29: Line Transformers | D29: 5148982.85 | E29: 389425.77 | F29: 0 | G29: 5538408.62 | I29: -2173357.737 | J29: -222354 | K29: 0 | L29: -2395711.737 | M29: 3142696.883
A30: 47 | B30: 1855 | C30: Services (Overhead & Underground) | D30: 2724357.22 | E30: 61752.76 | F30: 0 | G30: 2786109.98 | I30: -1357808.038 | J30: -119027 | K30: 0 | L30: -1476835.038 | M30: 1309274.942
A31: 47 | B31: 1860-1 | C31: Meters | D31: 0 | E31: 0 | F31: 0 | G31: 0 | I31: 0 | J31: 0 | K31: 0 | L31: 0 | M31: 0
A32: 47 | B32: 1860 | C32: Meters | D32: 2653793.898 | E32: 48341.76 | F32: 0 | G32: 2702135.658 | I32: -702125.7991 | J32: -111800 | K32: 0 | L32: -813925.7991 | M32: 1888209.859
A33: N/A | B33: 1905 | C33: Land | D33: 87795 | E33: 0 | F33: 0 | G33: 87795 | I33: 0 | J33: 0 | K33: 0 | L33: 0 | M33: 87795
A34: 47 | B34: 1908 | C34: Buildings & Fixtures | D34: 494523.64 | E34: 28249.88 | F34: 0 | G34: 522773.52 | I34: -109738.7995 | J34: -16076.905 | K34: 0 | L34: -125815.7045 | M34: 396957.8155
A35: 13 | B35: 1910 | C35: Leasehold Improvements | D35: 0 | E35: 0 | F35: 0 | G35: 0 | I35: 0 | J35: 0 | K35: 0 | L35: 0 | M35: 0
A36: 8 | B36: 1915-1 | C36: Office Furniture & Equipment (10 years) | D36: 0 | E36: 0 | F36: 0 | G36: 0 | I36: 0 | J36: 0 | K36: 0 | L36: 0 | M36: 0
A37: 8 | B37: 1915 | C37: Office Furniture & Equipment | D37: 185517.144 | E37: 1139.98 | F37: 0 | G37: 186657.124 | I37: -113263.2685 | J37: -11906.59 | K37: 0 | L37: -125169.8585 | M37: 61487.2655
A38: 10 | B38: 1920-1 | C38: Computer Equipment - Hardware | D38: 0 | E38: 0 | F38: 0 | G38: 0 | I38: 0 | J38: 0 | K38: 0 | L38: 0 | M38: 0
A39: 45 | B39: 1920-2 | C39: Computer Equip.-Hardware(Post Mar. 22/04) | D39: 0 | E39: 0 | F39: 0 | G39: 0 | I39: 0 | J39: 0 | K39: 0 | L39: 0 | M39: 0
A40: 45.1 | B40: 1920 | C40: Computer Equip.-Hardware | D40: 826279.34 | E40: 668310.96 | F40: 0 | G40: 1494590.3 | I40: -621943.804 | J40: -61725 | K40: 0 | L40: -683668.804 | M40: 810921.496
A41: 10 | B41: 1930 | C41: Transportation Equipment | D41: 1199559.02 | E41: 35761.93 | F41: -35038.25 | G41: 1200282.7 | I41: -540138.3588 | J41: -161784 | K41: 6934.65 | L41: -694987.7087 | M41: 505294.9912
A42: 8 | B42: 1935 | C42: Stores Equipment | D42: 3728.58 | E42: 0 | F42: 0 | G42: 3728.58 | I42: -2438.58 | J42: -516 | K42: 0 | L42: -2954.58 | M42: 774
A43: 8 | B43: 1940 | C43: Tools, Shop & Garage Equipment | D43: 541587.333 | E43: 6325.68 | F43: 0 | G43: 547913.013 | I43: -147908.3125 | J43: -14298 | K43: 0 | L43: -162206.3125 | M43: 385706.7005
A44: 8 | B44: 1945 | C44: Measurement & Testing Equipment | D44: 64529.154 | E44: 0 | F44: 0 | G44: 64529.154 | I44: -50061.69867 | J44: -2769 | K44: 0 | L44: -52830.69867 | M44: 11698.45533
A45: 8 | B45: 1950 | C45: Power Operated Equipment | D45: 2707.97 | E45: 0 | F45: 0 | G45: 2707.97 | I45: -2301.77 | J45: -200 | K45: 0 | L45: -2501.77 | M45: 206.2
A46: 8 | B46: 1955-1 | C46: Communications Equipment | D46: 0 | E46: 0 | F46: 0 | G46: 0 | I46: 0 | J46: 0 | K46: 0 | L46: 0 | M46: 0
A47: 8 | B47: 1955 | C47: Communication Equipment | D47: 40579.902 | E47: 0 | F47: 0 | G47: 40579.902 | I47: -39439.514 | J47: -627.999 | K47: 0 | L47: -40067.513 | M47: 512.389
A48: 8 | B48: 1960 | C48: Miscellaneous Equipment | D48: 212809.24 | E48: 87500 | F48: 0 | G48: 300309.24 | I48: -56226.6125 | J48: -59884 | K48: 0 | L48: -116110.6125 | M48: 184198.6275
A49: 47 | B49: 1970 | C49: Load Management Controls Customer Premises | D49: 0 | E49: 0 | F49: 0 | G49: 0 | I49: 0 | J49: 0 | K49: 0 | L49: 0 | M49: 0
A50: 47 | B50: 1975 | C50: Load Management Controls Utility Premises | D50: 0 | E50: 0 | F50: 0 | G50: 0 | I50: 0 | J50: 0 | K50: 0 | L50: 0 | M50: 0
A51: 47 | B51: 1980 | C51: System Supervisor Equipment | D51: 0 | E51: 0 | F51: 0 | G51: 0 | I51: 0 | J51: 0 | K51: 0 | L51: 0 | M51: 0
A52: 47 | B52: 1985 | C52: Miscellaneous Fixed Assets | D52: 0 | E52: 0 | F52: 0 | G52: 0 | I52: 0 | J52: 0 | K52: 0 | L52: 0 | M52: 0
A53: 47 | B53: 1990 | C53: Other Tangible Property | D53: 0 | E53: 0 | F53: 0 | G53: 0 | I53: 0 | J53: 0 | K53: 0 | L53: 0 | M53: 0
A54: 47 | B54: 1995 | C54: Contributions & Grants | D54: -1886452.95 | E54: -59601 | F54: 0 | G54: -1946053.95 | I54: 702880.0328 | J54: 76650.122 | K54: 0 | L54: 779530.1548 | M54: -1166523.795
B55: 2005 | C55: Property Under Finance Leases | D55: 0 | E55: 0 | F55: 0 | G55: 0 | I55: 0 | J55: 0 | K55: 0 | L55: 0 | M55: 0
B56: 2010 | C56: Electric Plant Purchased or Sold | D56: 41000 | E56: 0 | F56: 0 | G56: 41000 | I56: -13120 | J56: -1640 | K56: 0 | L56: -14760 | M56: 26240
A57: 47 | B57: 2440 | C57: Deferred Revenue5 | D57: 0 | E57: 0 | F57: 0 | G57: 0 | I57: 0 | J57: 0 | K57: 0 | L57: 0 | M57: 0
C59: Sub-Total | D59: =SUM(D17:D58) -> 31652860.59 | E59: =SUM(E17:E58) -> 2379374.904 | F59: =SUM(F17:F58) -> -666474.25 | G59: =SUM(G17:G58) -> 33365761.24 | I59: =SUM(I17:I58) -> -11960166.43 | J59: =SUM(J17:J58) -> -1513333.372 | K59: =SUM(K17:K58) -> 6934.65 | L59: =SUM(L17:L58) -> -13466565.15 | M59: =SUM(M17:M58) -> 19899196.09
C60: Less Socialized Renewable Energy Generation Investments (input as negative) | G60: =D60+E60+F60 -> 0 | L60: =I60+J60+K60 -> 0 | M60: =G60+L60 -> 0
C61: Less Other Non Rate-Regulated Utility Assets (input as negative) | G61: 0 | L61: 0 | M61: 0
C62: Total PP&E | D62: =SUM(D59:D61) -> 31652860.59 | E62: =SUM(E59:E61) -> 2379374.904 | F62: -666474.25 | G62: 33365761.24 | I62: =SUM(I59:I61) -> -11960166.43 | J62: -1513333.372 | K62: 6934.65 | L62: -13466565.15 | M62: =SUM(M59:M61) -> 19899196.09
C63: Depreciation Expense adj. from gain or loss on the retirement of assets (pool of like assets), if applicable6
C64: Total | J64: =J62+J63 -> -1513333.372
I66: Less: Fully Allocated Depreciation
A67: 10 | C67: Transportation | I67: Transportation | K67: -161784
A68: 8 | C68: Stores Equipment | I68: Stores Equipment | K68: -78294.999
I69: Net Depreciation | K69: =-(J64-K67-K68) -> 1273254.373
A71: Notes:
A73: 1 | B73: Tables in the format outlined above covering all fixed asset accounts should be submitted for the Test Year, Bridge Year and all relevant historical years. At a minimum , the applicant must provide data for the earlier of: 1) all historical years back to its last rebasing; or 2) at least three years of historical actuals, in addition to Bridge Year and Test Year forecasts.
A76: 2 | B76: The "CCA Class" for fixed assets should agree with the CCA Class used for tax purposes in Tax Returns. Fixed Assets sub-components may be used where the underlying asset components are classified under multiple CCA Classes for tax purposes. If an applicant uses any different classes from those shown in the table, an explanation should be provided. (also see note 3).
A79: 3 | B79: The table may need to be customized for a utility's asset categories or for any new asset accounts announced or authorized by the Board.
A81: 4 | B81: The additions in column (E) must not include construction work in progress (CWIP).
A83: 5 | B83: Effective on the date of IFRS adoption, customer contributions will no longer be recorded in Account 1995 Contributions & Grants, but will be recorded in Account 2440, Deferred Revenues.
A85: 6 | B85: The applicant must ensure that all asset disposals have been clearly identified in the Chapter 2 Appendices for all historic, bridge and test years. Where a distributor for general financial reporting purposes under IFRS has accounted for the amount of gain or loss on the retirement of assets in a pool of like assets as a charge or credit to income, for reporting and rate application filings, the distributor shall reclassify such gains and losses as depreciation expense, and disclose the amount separately.

Sheet App.2-BA_FA Cont 2013 BCP
L1: File Number: | M1: =EBNUMBER -> EB-2018-0028
L2: Exhibit: | M2: 1
L3: Tab:
L4: Schedule:
L5: Page:
L7: Date: | M7: 2018-04-27
A9: Appendix 2-BA
A10: Fixed Asset Continuity Schedule 1
A11: Energy+ (Former Brant County Power Inc.)
E12: Accounting Standard | F12: CGAAP | G12: New CGAAP
E13: Year | F13: 2013
D15: Cost | J15: Accumulated Depreciation
A16: CCA Class 2 | B16: OEB Account 3 | C16: Description 3 | D16: Opening Balance | E16: Additions 4 | F16: Disposals 6 | G16: Closing Balance | I16: Opening Balance | J16: Additions | K16: Disposals 6 | L16: Closing Balance | M16: Net Book Value
A17: 12 | B17: 1611 | C17: Computer Software (Formally known as Account 1925) | D17: 591143 | E17: 40293 | F17: -631436 | G17: =D17+E17+F17 -> 0 | I17: -382514.95 | J17: -56593.909 | K17: 0 | L17: =I17+J17+K17 -> -439108.859 | M17: =G17+L17 -> -439108.859
A18: CEC | B18: 1612 | C18: Land Rights (Formally known as Account 1906) | D18: 0 | E18: 0 | F18: 0 | G18: =D18+E18+F18 -> 0 | I18: 0 | J18: 0 | K18: 0 | L18: =I18+J18+K18 -> 0 | M18: =G18+L18 -> 0
A19: N/A | B19: 1805 | C19: Land | D19: 94919.62 | E19: 0 | F19: 0 | G19: =D19+E19+F19 -> 94919.62 | I19: 0 | J19: 0 | K19: 0 | L19: =I19+J19+K19 -> 0 | M19: =G19+L19 -> 94919.62
A20: 47 | B20: 1808 | C20: Buildings | D20: 811563.34 | E20: 248.42 | F20: 0 | G20: =D20+E20+F20 -> 811811.76 | I20: -261198.8764 | J20: -14114.93343 | K20: 0 | L20: =I20+J20+K20 -> -275313.8098 | M20: =G20+L20 -> 536497.9502
A21: 13 | B21: 1810 | C21: Leasehold Improvements | D21: 0 | E21: 0 | F21: 0 | G21: 0 | I21: 0 | J21: 0 | K21: 0 | L21: 0 | M21: 0
A22: 47 | B22: 1815 | C22: Transformer Station Equipment >50 kV | D22: 2510109 | E22: 0 | F22: 0 | G22: 2510109 | I22: -441367.3965 | J22: -54440.56211 | K22: 0 | L22: -495807.9586 | M22: 2014301.041
A23: 47 | B23: 1820 | C23: Distribution Station Equipment <50 kV | D23: 124226.26 | E23: 0 | F23: 0 | G23: 124226.26 | I23: -69607 | J23: -54619.26 | K23: 0 | L23: -124226.26 | M23: 0
A24: 47 | B24: 1825 | C24: Storage Battery Equipment | D24: 0 | E24: 0 | F24: 0 | G24: 0 | I24: 0 | J24: 0 | K24: 0 | L24: 0 | M24: 0
A25: 47 | B25: 1830 | C25: Poles, Towers & Fixtures | D25: 6744285.92 | E25: 480012.12 | F25: 0 | G25: 7224298.04 | I25: -2304155.455 | J25: -199906.489 | K25: 0 | L25: -2504061.945 | M25: 4720236.095
A26: 47 | B26: 1835 | C26: Overhead Conductors & Devices | D26: 5450272.74 | E26: 312564.99 | F26: 0 | G26: 5762837.73 | I26: -1815397.317 | J26: -87373.47192 | K26: 0 | L26: -1902770.789 | M26: 3860066.941
A27: 47 | B27: 1840 | C27: Underground Conduit | D27: 597060.14 | E27: 8490.024 | F27: 0 | G27: 605550.164 | I27: -258943.1392 | J27: -13110.62645 | K27: 0 | L27: -272053.7657 | M27: 333496.3983
A28: 47 | B28: 1845 | C28: Underground Conductors & Devices | D28: 2387983.23 | E28: 159855.63 | F28: 0 | G28: 2547838.86 | I28: -1199989.65 | J28: -34331.94747 | K28: 0 | L28: -1234321.597 | M28: 1313517.263
A29: 47 | B29: 1850 | C29: Line Transformers | D29: 5148982.85 | E29: 348875.77 | F29: 0 | G29: 5497858.62 | I29: -2173357.737 | J29: -118808.0564 | K29: 0 | L29: -2292165.793 | M29: 3205692.827
A30: 47 | B30: 1855 | C30: Services (Overhead & Underground) | D30: 2724357.22 | E30: 61752.76 | F30: 0 | G30: 2786109.98 | I30: -1357808.038 | J30: -48333.39458 | K30: 0 | L30: -1406141.432 | M30: 1379968.548
A31: 47 | B31: 1860-1 | C31: Meters | D31: 0 | E31: 0 | F31: 0 | G31: 0 | I31: 0 | J31: 0 | K31: 0 | L31: 0 | M31: 0
A32: 47 | B32: 1860 | C32: Meters | D32: 2653793.898 | E32: 48341.76 | F32: 0 | G32: 2702135.658 | I32: -702125.7991 | J32: -208009.9691 | K32: 0 | L32: -910135.7682 | M32: 1791999.889
A33: N/A | B33: 1905 | C33: Land | D33: 87795 | E33: 0 | F33: 0 | G33: 87795 | I33: 0 | J33: 0 | K33: 0 | L33: 0 | M33: 87795
A34: 47 | B34: 1908 | C34: Buildings & Fixtures | D34: 494523.64 | E34: 28249.88 | F34: 0 | G34: 522773.52 | I34: -109738.7995 | J34: -16076.905 | K34: 0 | L34: -125815.7045 | M34: 396957.8155
A35: 13 | B35: 1910 | C35: Leasehold Improvements | D35: 0 | E35: 0 | F35: 0 | G35: 0 | I35: 0 | J35: 0 | K35: 0 | L35: 0 | M35: 0
A36: 8 | B36: 1915-1 | C36: Office Furniture & Equipment (10 years) | D36: 0 | E36: 0 | F36: 0 | G36: 0 | I36: 0 | J36: 0 | K36: 0 | L36: 0 | M36: 0
A37: 8 | B37: 1915 | C37: Office Furniture & Equipment | D37: 185517.144 | E37: 1139.98 | F37: 0 | G37: 186657.124 | I37: -113263.2685 | J37: -11906.59 | K37: 0 | L37: -125169.8585 | M37: 61487.2655
A38: 10 | B38: 1920-1 | C38: Computer Equipment - Hardware | D38: 0 | E38: 0 | F38: 0 | G38: 0 | I38: 0 | J38: 0 | K38: 0 | L38: 0 | M38: 0
A39: 45 | B39: 1920-2 | C39: Computer Equip.-Hardware(Post Mar. 22/04) | D39: 0 | E39: 0 | F39: 0 | G39: 0 | I39: 0 | J39: 0 | K39: 0 | L39: 0 | M39: 0
A40: 45.1 | B40: 1920 | C40: Computer Equip.-Hardware | D40: 826279.34 | E40: 668310.96 | F40: 0 | G40: 1494590.3 | I40: -621943.804 | J40: -106776.739 | K40: 0 | L40: -728720.543 | M40: 765869.757
A41: 10 | B41: 1930 | C41: Transportation Equipment | D41: 1199559.02 | E41: 35761.93 | F41: -35038.25 | G41: 1200282.7 | I41: -540138.3588 | J41: -126664.4905 | K41: 6934.65 | L41: -659868.1992 | M41: 540414.5008
A42: 8 | B42: 1935 | C42: Stores Equipment | D42: 3728.58 | E42: 0 | F42: 0 | G42: 3728.58 | I42: -2438.58 | J42: -516 | K42: 0 | L42: -2954.58 | M42: 774
A43: 8 | B43: 1940 | C43: Tools, Shop & Garage Equipment | D43: 541587.333 | E43: 6325.68 | F43: 0 | G43: 547913.013 | I43: -147908.3125 | J43: -91670.0555 | K43: 0 | L43: -239578.368 | M43: 308334.645
A44: 8 | B44: 1945 | C44: Measurement & Testing Equipment | D44: 64529.154 | E44: 0 | F44: 0 | G44: 64529.154 | I44: -50061.69867 | J44: -3306.265 | K44: 0 | L44: -53367.96367 | M44: 11161.19033
A45: 8 | B45: 1950 | C45: Power Operated Equipment | D45: 2707.97 | E45: 0 | F45: 0 | G45: 2707.97 | I45: -2301.77 | J45: -397.9 | K45: 0 | L45: -2699.67 | M45: 8.3
A46: 8 | B46: 1955-1 | C46: Communications Equipment | D46: 0 | E46: 0 | F46: 0 | G46: 0 | I46: 0 | J46: 0 | K46: 0 | L46: 0 | M46: 0
A47: 8 | B47: 1955 | C47: Communication Equipment | D47: 40579.902 | E47: 0 | F47: 0 | G47: 40579.902 | I47: -39439.514 | J47: -627.999 | K47: 0 | L47: -40067.513 | M47: 512.389
A48: 8 | B48: 1960 | C48: Miscellaneous Equipment | D48: 212809.24 | E48: 87500 | F48: 0 | G48: 300309.24 | I48: -56226.6125 | J48: -10886.52222 | K48: 0 | L48: -67113.13472 | M48: 233196.1053
A49: 47 | B49: 1970 | C49: Load Management Controls Customer Premises | D49: 0 | E49: 0 | F49: 0 | G49: 0 | I49: 0 | J49: 0 | K49: 0 | L49: 0 | M49: 0
A50: 47 | B50: 1975 | C50: Load Management Controls Utility Premises | D50: 0 | E50: 0 | F50: 0 | G50: 0 | I50: 0 | J50: 0 | K50: 0 | L50: 0 | M50: 0
A51: 47 | B51: 1980 | C51: System Supervisor Equipment | D51: 0 | E51: 0 | F51: 0 | G51: 0 | I51: 0 | J51: 0 | K51: 0 | L51: 0 | M51: 0
A52: 47 | B52: 1985 | C52: Miscellaneous Fixed Assets | D52: 0 | E52: 0 | F52: 0 | G52: 0 | I52: 0 | J52: 0 | K52: 0 | L52: 0 | M52: 0
A53: 47 | B53: 1990 | C53: Other Tangible Property | D53: 0 | E53: 0 | F53: 0 | G53: 0 | I53: 0 | J53: 0 | K53: 0 | L53: 0 | M53: 0
A54: 47 | B54: 1995 | C54: Contributions & Grants | D54: -1886452.95 | E54: -59601 | F54: 0 | G54: -1946053.95 | I54: 702880.0328 | J54: 76650.122 | K54: 0 | L54: 779530.1548 | M54: -1166523.795
B55: 2005 | C55: Property Under Finance Leases | D55: 0 | E55: 0 | F55: 0 | G55: 0 | I55: 0 | J55: 0 | K55: 0 | L55: 0 | M55: 0
B56: 2010 | C56: Electric Plant Purchased or Sold | D56: 41000 | E56: 0 | F56: 0 | G56: 41000 | I56: -13120 | J56: -1212.173913 | K56: 0 | L56: -14332.17391 | M56: 26667.82609
A57: 47 | B57: 2440 | C57: Deferred Revenue5 | D57: 0 | E57: 0 | F57: 0 | G57: 0 | I57: 0 | J57: 0 | K57: 0 | L57: 0 | M57: 0
C59: Sub-Total | D59: =SUM(D17:D58) -> 31652860.59 | E59: =SUM(E17:E58) -> 2228121.904 | F59: =SUM(F17:F58) -> -666474.25 | G59: =SUM(G17:G58) -> 33214508.24 | I59: =SUM(I17:I58) -> -11960166.04 | J59: =SUM(J17:J58) -> -1183034.138 | K59: =SUM(K17:K58) -> 6934.65 | L59: =SUM(L17:L58) -> -13136265.53 | M59: =SUM(M17:M58)-1 -> 20078241.71
C60: Less Socialized Renewable Energy Generation Investments (input as negative) | G60: =D60+E60+F60 -> 0 | L60: =I60+J60+K60 -> 0 | M60: =G60+L60 -> 0
C61: Less Other Non Rate-Regulated Utility Assets (input as negative) | G61: 0 | L61: 0 | M61: 0
C62: Total PP&E | D62: =SUM(D59:D61) -> 31652860.59 | E62: =SUM(E59:E61) -> 2228121.904 | F62: -666474.25 | G62: 33214508.24 | I62: =SUM(I59:I61) -> -11960166.04 | J62: -1183034.138 | K62: 6934.65 | L62: -13136265.53 | M62: =SUM(M59:M61) -> 20078241.71
C63: Depreciation Expense adj. from gain or loss on the retirement of assets (pool of like assets), if applicable6
C64: Total | J64: =J62+J63 -> -1183034.138
I66: Less: Fully Allocated Depreciation
A67: 10 | C67: Transportation | I67: Transportation | K67: -126664.4905
A68: 8 | C68: Stores Equipment | I68: Stores Equipment | K68: -107404.7417
I69: Net Depreciation | K69: =-(J64-K67-K68) -> 948964.9054
A71: Notes:
A73: 1 | B73: Tables in the format outlined above covering all fixed asset accounts should be submitted for the Test Year, Bridge Year and all relevant historical years. At a minimum , the applicant must provide data for the earlier of: 1) all historical years back to its last rebasing; or 2) at least three years of historical actuals, in addition to Bridge Year and Test Year forecasts.
A76: 2 | B76: The "CCA Class" for fixed assets should agree with the CCA Class used for tax purposes in Tax Returns. Fixed Assets sub-components may be used where the underlying asset components are classified under multiple CCA Classes for tax purposes. If an applicant uses any different classes from those shown in the table, an explanation should be provided. (also see note 3).
A79: 3 | B79: The table may need to be customized for a utility's asset categories or for any new asset accounts announced or authorized by the Board.
A81: 4 | B81: The additions in column (E) must not include construction work in progress (CWIP).
A83: 5 | B83: Effective on the date of IFRS adoption, customer contributions will no longer be recorded in Account 1995 Contributions & Grants, but will be recorded in Account 2440, Deferred Revenues.
A85: 6 | B85: The applicant must ensure that all asset disposals have been clearly identified in the Chapter 2 Appendices for all historic, bridge and test years. Where a distributor for general financial reporting purposes under IFRS has accounted for the amount of gain or loss on the retirement of assets in a pool of like assets as a charge or credit to income, for reporting and rate application filings, the distributor shall reclassify such gains and losses as depreciation expense, and disclose the amount separately.

Sheet App.2-BA_FA Cont 2014 BCP
L1: File Number: | M1: =EBNUMBER -> EB-2018-0028
L2: Exhibit: | M2: 1
L3: Tab:
L4: Schedule:
L5: Page:
L7: Date: | M7: 2018-04-27
A9: Appendix 2-BA
A10: Fixed Asset Continuity Schedule 1
A11: Energy+ (Former Brant County Power Inc.)
E12: Accounting Standard | F12: CGAAP | G12: New CGAAP
E13: Year | F13: 2014
D15: Cost | J15: Accumulated Depreciation
A16: CCA Class 2 | B16: OEB Account 3 | C16: Description 3 | D16: Opening Balance | E16: Additions 4 | F16: Disposals 6 | G16: Closing Balance | I16: Opening Balance | J16: Additions | K16: Disposals 6 | L16: Closing Balance | M16: Net Book Value
A17: 12 | B17: 1611 | C17: Computer Software (Formally known as Account 1925) | D17: 0 | E17: 648140.53 | F17: 0 | G17: =D17+E17+F17 -> 648140.53 | I17: -439108.859 | J17: -60743.231 | K17: 0 | L17: =I17+J17+K17 -> -499852.09 | M17: =G17+L17 -> 148288.44
A18: CEC | B18: 1612 | C18: Land Rights (Formally known as Account 1906) | D18: 0 | E18: 0 | F18: 0 | G18: =D18+E18+F18 -> 0 | I18: 0 | J18: 0 | K18: 0 | L18: =I18+J18+K18 -> 0 | M18: =G18+L18 -> 0
A19: N/A | B19: 1805 | C19: Land | D19: 94919.62 | E19: 0 | F19: 0 | G19: =D19+E19+F19 -> 94919.62 | I19: 0 | J19: 0 | K19: 0 | L19: =I19+J19+K19 -> 0 | M19: =G19+L19 -> 94919.62
A20: 47 | B20: 1808 | C20: Buildings | D20: 811811.76 | E20: 0 | F20: 0 | G20: =D20+E20+F20 -> 811811.76 | I20: -275313.8098 | J20: -14118 | K20: 0 | L20: =I20+J20+K20 -> -289431.8098 | M20: =G20+L20 -> 522379.9502
A21: 13 | B21: 1810 | C21: Leasehold Improvements | D21: 0 | E21: 0 | F21: 0 | G21: 0 | I21: 0 | J21: 0 | K21: 0 | L21: 0 | M21: 0
A22: 47 | B22: 1815 | C22: Transformer Station Equipment >50 kV | D22: 2510109 | E22: 0 | F22: 0 | G22: 2510109 | I22: -495807.9586 | J22: -54443 | K22: 0 | L22: -550250.9586 | M22: 1959858.041
A23: 47 | B23: 1820 | C23: Distribution Station Equipment <50 kV | D23: 124226.26 | E23: 0 | F23: 0 | G23: 124226.26 | I23: -124226.26 | J23: 0 | K23: 0 | L23: -124226.26 | M23: 0
A24: 47 | B24: 1825 | C24: Storage Battery Equipment | D24: 0 | E24: 0 | F24: 0 | G24: 0 | I24: 0 | J24: 0 | K24: 0 | L24: 0 | M24: 0
A25: 47 | B25: 1830 | C25: Poles, Towers & Fixtures | D25: 7224298.04 | E25: 625618.29 | F25: 0 | G25: 7849916.33 | I25: -2504061.945 | J25: -215705 | K25: 0 | L25: -2719766.945 | M25: 5130149.385
A26: 47 | B26: 1835 | C26: Overhead Conductors & Devices | D26: 5762837.73 | E26: 217883.46 | F26: 0 | G26: 5980721.19 | I26: -1902770.789 | J26: -92195.73056 | K26: 0 | L26: -1994966.52 | M26: 3985754.67
A27: 47 | B27: 1840 | C27: Underground Conduit | D27: 605550.164 | E27: 50050 | F27: 0 | G27: 655600.164 | I27: -272053.7657 | J27: -13843 | K27: 0 | L27: -285896.7657 | M27: 369703.3983
A28: 47 | B28: 1845 | C28: Underground Conductors & Devices | D28: 2547838.86 | E28: 121867.48 | F28: 0 | G28: 2669706.34 | I28: -1234321.597 | J28: -36681.17339 | K28: 0 | L28: -1271002.771 | M28: 1398703.569
A29: 47 | B29: 1850 | C29: Line Transformers | D29: 5497858.62 | E29: 208000.34 | F29: 0 | G29: 5705858.96 | I29: -2292165.793 | J29: -125770 | K29: 0 | L29: -2417935.793 | M29: 3287923.167
A30: 47 | B30: 1855 | C30: Services (Overhead & Underground) | D30: 2786109.98 | E30: 59973.45 | F30: 0 | G30: 2846083.43 | I30: -1406141.432 | J30: -49653 | K30: 0 | L30: -1455794.432 | M30: 1390288.998
A31: 47 | C31: Meters | D31: 0 | E31: 0 | F31: 0 | G31: 0 | I31: 0 | J31: 0 | K31: 0 | L31: 0 | M31: 0
A32: 47 | B32: 1860 | C32: Meters | D32: 2702135.658 | E32: 18154.8 | F32: 0 | G32: 2720290.458 | I32: -910135.7682 | J32: -208016 | K32: 0 | L32: -1118151.768 | M32: 1602138.689
A33: N/A | B33: 1905 | C33: Land | D33: 87795 | E33: 0 | F33: 0 | G33: 87795 | I33: 0 | J33: 0 | K33: 0 | L33: 0 | M33: 87795
A34: 47 | B34: 1908 | C34: Buildings & Fixtures | D34: 522773.52 | E34: 0 | F34: 0 | G34: 522773.52 | I34: -125815.7045 | J34: -16548 | K34: 0 | L34: -142363.7045 | M34: 380409.8155
A35: 13 | B35: 1910 | C35: Leasehold Improvements | D35: 0 | E35: 0 | F35: 0 | G35: 0 | I35: 0 | J35: 0 | K35: 0 | L35: 0 | M35: 0
A36: 8 | C36: Office Furniture & Equipment (10 years) | D36: 0 | E36: 0 | F36: 0 | G36: 0 | I36: 0 | J36: 0 | K36: 0 | L36: 0 | M36: 0
A37: 8 | B37: 1915 | C37: Office Furniture & Equipment | D37: 186657.124 | E37: 0 | F37: 0 | G37: 186657.124 | I37: -125169.8585 | J37: -10558 | K37: 0 | L37: -135727.8585 | M37: 50929.2655
A38: 10 | C38: Computer Equipment - Hardware | D38: 0 | E38: 0 | F38: 0 | G38: 0 | I38: 0 | J38: 0 | K38: 0 | L38: 0 | M38: 0
A39: 45 | C39: Computer Equip.-Hardware(Post Mar. 22/04) | D39: 0 | E39: 0 | F39: 0 | G39: 0 | I39: 0 | J39: 0 | K39: 0 | L39: 0 | M39: 0
A40: 45.1 | B40: 1920 | C40: Computer Equip.-Hardware | D40: 1494590.3 | E40: 11889.84 | F40: -631436 | G40: 875044.14 | I40: -728720.543 | J40: -112873 | K40: 0 | L40: -841593.543 | M40: 33450.597
A41: 10 | B41: 1930 | C41: Transportation Equipment | D41: 1200282.7 | E41: 386152.21 | F41: -213576.92 | G41: 1372857.99 | I41: -659868.1992 | J41: -128567.587 | K41: 213576.92 | L41: -574858.8662 | M41: 797999.1238
A42: 8 | B42: 1935 | C42: Stores Equipment | D42: 3728.58 | E42: 0 | F42: 0 | G42: 3728.58 | I42: -2954.58 | J42: -516 | K42: 0 | L42: -3470.58 | M42: 258
A43: 8 | B43: 1940 | C43: Tools, Shop & Garage Equipment | D43: 547913.013 | E43: 17248.51 | F43: 0 | G43: 565161.523 | I43: -239578.368 | J43: -94000 | K43: 0 | L43: -333578.368 | M43: 231583.155
A44: 8 | B44: 1945 | C44: Measurement & Testing Equipment | D44: 64529.154 | E44: 0 | F44: 0 | G44: 64529.154 | I44: -53367.96367 | J44: -3306.265 | K44: 0 | L44: -56674.22867 | M44: 7854.925333
A45: 8 | B45: 1950 | C45: Power Operated Equipment | D45: 2707.97 | E45: 12741.86 | F45: 0 | G45: 15449.83 | I45: -2699.67 | J45: -1672.086 | K45: 0 | L45: -4371.756 | M45: 11078.074
A46: 8 | C46: Communications Equipment | D46: 0 | E46: 0 | F46: 0 | G46: 0 | I46: 0 | J46: 0 | K46: 0 | L46: 0 | M46: 0
A47: 8 | B47: 1955 | C47: Communication Equipment | D47: 40579.902 | E47: 0 | F47: 0 | G47: 40579.902 | I47: -40067.513 | J47: -338 | K47: 0 | L47: -40405.513 | M47: 174.389
A48: 8 | B48: 1960 | C48: Miscellaneous Equipment | D48: 300309.24 | E48: 0 | F48: -125770.65 | G48: 174538.59 | I48: -67113.13472 | J48: -13074.02222 | K48: 34220 | L48: -45967.15694 | M48: 128571.4331
A49: 47 | B49: 1970 | C49: Load Management Controls Customer Premises | D49: 0 | E49: 0 | F49: 0 | G49: 0 | I49: 0 | J49: 0 | K49: 0 | L49: 0 | M49: 0
A50: 47 | B50: 1975 | C50: Load Management Controls Utility Premises | D50: 0 | E50: 0 | F50: 0 | G50: 0 | I50: 0 | J50: 0 | K50: 0 | L50: 0 | M50: 0
A51: 47 | B51: 1980 | C51: System Supervisor Equipment | D51: 0 | E51: 0 | F51: 0 | G51: 0 | I51: 0 | J51: 0 | K51: 0 | L51: 0 | M51: 0
A52: 47 | B52: 1985 | C52: Miscellaneous Fixed Assets | D52: 0 | E52: 0 | F52: 0 | G52: 0 | I52: 0 | J52: 0 | K52: 0 | L52: 0 | M52: 0
A53: 47 | B53: 1990 | C53: Other Tangible Property | D53: 0 | E53: 0 | F53: 0 | G53: 0 | I53: 0 | J53: 0 | K53: 0 | L53: 0 | M53: 0
A54: 47 | B54: 1995 | C54: Contributions & Grants | D54: -1946053.95 | E54: -255697.83 | F54: 0 | G54: -2201751.78 | I54: 779530.1548 | J54: 82956 | K54: 0 | L54: 862486.1548 | M54: -1339265.625
B55: 2005 | C55: Property Under Finance Leases | D55: 0 | E55: 0 | F55: 0 | G55: 0 | I55: 0 | J55: 0 | K55: 0 | L55: 0 | M55: 0
B56: 2010 | C56: Electric Plant Purchased or Sold | D56: 41000 | E56: 0 | F56: 0 | G56: 41000 | I56: -14332.17391 | J56: -1213 | K56: 0 | L56: -15545.17391 | M56: 25454.82609
A57: 47 | B57: 2440 | C57: Deferred Revenue5 | D57: 0 | E57: 0 | F57: 0 | G57: 0 | I57: 0 | J57: 0 | K57: 0 | L57: 0 | M57: 0
C59: Sub-Total | D59: =SUM(D17:D58) -> 33214508.24 | E59: =SUM(E17:E58) -> 2122022.94 | F59: =SUM(F17:F58) -> -970783.57 | G59: =SUM(G17:G58) -> 34365747.61 | I59: =SUM(I17:I58) -> -13136265.53 | J59: =SUM(J17:J58) -> -1170878.095 | K59: =SUM(K17:K58) -> 247796.92 | L59: =SUM(L17:L58) -> -14059346.71 | M59: =SUM(M17:M58)-1 -> 20306399.91
C60: Less Socialized Renewable Energy Generation Investments (input as negative) | G60: =D60+E60+F60 -> 0 | L60: =I60+J60+K60 -> 0 | M60: =G60+L60 -> 0
C61: Less Other Non Rate-Regulated Utility Assets (input as negative) | G61: 0 | L61: 0 | M61: 0
C62: Total PP&E | D62: =SUM(D59:D61) -> 33214508.24 | E62: =SUM(E59:E61) -> 2122022.94 | F62: -970783.57 | G62: 34365747.61 | I62: =SUM(I59:I61) -> -13136265.53 | J62: -1170878.095 | K62: 247796.92 | L62: -14059346.71 | M62: =SUM(M59:M61) -> 20306399.91
C63: Depreciation Expense adj. from gain or loss on the retirement of assets (pool of like assets), if applicable6
C64: Total | J64: =J62+J63 -> -1170878.095
I66: Less: Fully Allocated Depreciation
A67: 10 | C67: Transportation | I67: Transportation | K67: -128567.587
A68: 8 | C68: Stores Equipment | I68: Stores Equipment | K68: -112906.3732
I69: Net Depreciation | K69: =-(J64-K67-K68) -> 929404.1349
A71: Notes:
A73: 1 | B73: Tables in the format outlined above covering all fixed asset accounts should be submitted for the Test Year, Bridge Year and all relevant historical years. At a minimum , the applicant must provide data for the earlier of: 1) all historical years back to its last rebasing; or 2) at least three years of historical actuals, in addition to Bridge Year and Test Year forecasts.
A76: 2 | B76: The "CCA Class" for fixed assets should agree with the CCA Class used for tax purposes in Tax Returns. Fixed Assets sub-components may be used where the underlying asset components are classified under multiple CCA Classes for tax purposes. If an applicant uses any different classes from those shown in the table, an explanation should be provided. (also see note 3).
A79: 3 | B79: The table may need to be customized for a utility's asset categories or for any new asset accounts announced or authorized by the Board.
A81: 4 | B81: The additions in column (E) must not include construction work in progress (CWIP).
A83: 5 | B83: Effective on the date of IFRS adoption, customer contributions will no longer be recorded in Account 1995 Contributions & Grants, but will be recorded in Account 2440, Deferred Revenues.
A85: 6 | B85: The applicant must ensure that all asset disposals have been clearly identified in the Chapter 2 Appendices for all historic, bridge and test years. Where a distributor for general financial reporting purposes under IFRS has accounted for the amount of gain or loss on the retirement of assets in a pool of like assets as a charge or credit to income, for reporting and rate application filings, the distributor shall reclassify such gains and losses as depreciation expense, and disclose the amount separately.

Sheet App.2-BA_FA Cont 2015 BCP
L1: File Number: | M1: =EBNUMBER -> EB-2018-0028
L2: Exhibit: | M2: 1
L3: Tab:
L4: Schedule:
L5: Page:
L7: Date: | M7: 2018-04-27
A9: Appendix 2-BA
A10: Fixed Asset Continuity Schedule 1
A11: Energy+ (Former Brant County Power Inc.)
E12: Accounting Standard | F12: CGAAP
E13: Year | F13: 2015
D15: Cost | J15: Accumulated Depreciation
A16: CCA Class 2 | B16: OEB Account 3 | C16: Description 3 | D16: Opening Balance | E16: Additions 4 | F16: Disposals 6 | G16: Closing Balance | I16: Opening Balance | J16: Additions | K16: Disposals 6 | L16: Closing Balance | M16: Net Book Value
A17: 12 | B17: 1611 | C17: Computer Software (Formally known as Account 1925) | D17: 648140.42 | E17: 2195.61 | F17: 0 | G17: =D17+E17+F17 -> 650336.03 | I17: -499852.09 | J17: -61266.259 | K17: 0 | L17: =I17+J17+K17 -> -561118.349 | M17: =G17+L17 -> 89217.681
A18: CEC | B18: 1612 | C18: Land Rights (Formally known as Account 1906) | D18: 0 | E18: 0 | F18: 0 | G18: =D18+E18+F18 -> 0 | I18: 0 | J18: 0 | K18: 0 | L18: =I18+J18+K18 -> 0 | M18: =G18+L18 -> 0
A19: N/A | B19: 1805 | C19: Land | D19: 94919.62 | E19: 0 | F19: 0 | G19: =D19+E19+F19 -> 94919.62 | I19: 0 | J19: 0 | K19: 0 | L19: =I19+J19+K19 -> 0 | M19: =G19+L19 -> 94919.62
A20: 47 | B20: 1808 | C20: Buildings | D20: 811811.76 | E20: 0 | F20: 0 | G20: =D20+E20+F20 -> 811811.76 | I20: -289431.8098 | J20: -14117.41923 | K20: 0 | L20: =I20+J20+K20 -> -303549.229 | M20: =G20+L20 -> 508262.531
A21: 13 | B21: 1810 | C21: Leasehold Improvements | D21: 0 | E21: 0 | F21: 0 | G21: 0 | I21: 0 | J21: 0 | K21: 0 | L21: 0 | M21: 0
A22: 47 | B22: 1815 | C22: Transformer Station Equipment >50 kV | D22: 2510109 | E22: 385941.95 | F22: 0 | G22: 2896050.95 | I22: -550250.9586 | J22: -58728.80389 | K22: 0 | L22: -608979.7625 | M22: 2287071.188
A23: 47 | B23: 1820 | C23: Distribution Station Equipment <50 kV | D23: 124226.26 | E23: 0 | F23: 0 | G23: 124226.26 | I23: =-124226.64+0.38 -> -124226.26 | J23: 0 | K23: 0 | L23: -124226.26 | M23: =G23+L23 -> 0
A24: 47 | B24: 1825 | C24: Storage Battery Equipment | D24: 0 | E24: 0 | F24: 0 | G24: 0 | I24: 0 | J24: 0 | K24: 0 | L24: 0 | M24: 0
A25: 47 | B25: 1830 | C25: Poles, Towers & Fixtures | D25: 7849916.33 | E25: 664964.67 | F25: 0 | G25: 8514881 | I25: -2719766.945 | J25: -233925.1086 | K25: 0 | L25: -2953692.053 | M25: 5561188.947
A26: 47 | B26: 1835 | C26: Overhead Conductors & Devices | D26: 5980721.19 | E26: 601829.62 | F26: 0 | G26: 6582550.81 | I26: -1994966.52 | J26: -99858.66765 | K26: 0 | L26: -2094825.187 | M26: 4487725.623
A27: 47 | B27: 1840 | C27: Underground Conduit | D27: 655600.164 | E27: 7972.66 | F27: 0 | G27: 663572.824 | I27: -285896.7657 | J27: -14567.66 | K27: 0 | L27: -300464.4257 | M27: 363108.3983
A28: 47 | B28: 1845 | C28: Underground Conductors & Devices | D28: 2669706.34 | E28: 64887.24 | F28: 0 | G28: 2734593.58 | I28: -1271002.771 | J28: -38268.99606 | K28: 0 | L28: -1309271.767 | M28: 1425321.813
A29: 47 | B29: 1850 | C29: Line Transformers | D29: 5705858.96 | E29: 412020.11 | F29: 0 | G29: 6117879.07 | I29: -2417935.793 | J29: -133519.2634 | K29: 0 | L29: -2551455.056 | M29: 3566424.014
A30: 47 | B30: 1855 | C30: Services (Overhead & Underground) | D30: 2846083.43 | E30: 71241.03 | F30: 0 | G30: 2917324.46 | I30: -1455794.432 | J30: -51033.52553 | K30: 0 | L30: -1506827.958 | M30: 1410496.502
A31: 47 | C31: Meters | D31: 0 | G31: 0 | I31: 0 | L31: 0 | M31: 0
A32: 47 | B32: 1860 | C32: Meters | D32: 2720290.458 | E32: 49032.92 | F32: 0 | G32: 2769323.378 | I32: -1118151.768 | J32: -212142.5268 | K32: 0 | L32: -1330294.295 | M32: 1439029.083
A33: N/A | B33: 1905 | C33: Land | D33: 87795 | E33: 0 | F33: 0 | G33: 87795 | I33: 0 | J33: 0 | K33: 0 | L33: 0 | M33: 87795
A34: 47 | B34: 1908 | C34: Buildings & Fixtures | D34: 522773.52 | E34: 6380 | F34: 0 | G34: 529153.52 | I34: -142363.7045 | J34: -16256.06967 | K34: 0 | L34: -158619.7742 | M34: 370533.7458
A35: 13 | B35: 1910 | C35: Leasehold Improvements | D35: 0 | E35: 0 | F35: 0 | G35: 0 | I35: 0 | J35: 0 | K35: 0 | L35: 0 | M35: 0
A36: 8 | C36: Office Furniture & Equipment (10 years) | D36: 0 | G36: 0 | I36: 0 | L36: 0 | M36: 0
A37: 8 | B37: 1915 | C37: Office Furniture & Equipment | D37: 186657.124 | E37: 6630 | F37: 0 | G37: 193287.124 | I37: -135727.8585 | J37: -10535.814 | K37: 0 | L37: -146263.6725 | M37: 47023.4515
A38: 10 | C38: Computer Equipment - Hardware | D38: 0 | G38: 0 | I38: 0 | L38: 0 | M38: 0
A39: 45 | C39: Computer Equip.-Hardware(Post Mar. 22/04) | D39: 0 | G39: 0 | I39: 0 | L39: 0 | M39: 0
A40: 45.1 | B40: 1920 | C40: Computer Equip.-Hardware | D40: 875044.14 | E40: 2520.2 | F40: 0 | G40: 877564.34 | I40: -841593.543 | J40: -12506.225 | K40: 0 | L40: -854099.768 | M40: 23464.572
A41: 10 | B41: 1930 | C41: Transportation Equipment | D41: 1372857.99 | E41: 0 | F41: 0 | G41: 1372857.99 | I41: -574858.8662 | J41: -140260.964 | K41: 0 | L41: -715119.8302 | M41: 657738.1598
A42: 8 | B42: 1935 | C42: Stores Equipment | D42: 3728.58 | E42: 0 | F42: 0 | G42: 3728.58 | I42: -3470.58 | J42: -258 | K42: 0 | L42: -3728.58 | M42: 5.456968211e-12
A43: 8 | B43: 1940 | C43: Tools, Shop & Garage Equipment | D43: 565161.523 | E43: 20326.34 | F43: -343008 | G43: 242479.863 | I43: -333578.368 | J43: -10008.4775 | K43: 161985 | L43: -181601.8455 | M43: 60878.0175
A44: 8 | B44: 1945 | C44: Measurement & Testing Equipment | D44: 64529.154 | E44: 0 | F44: 0 | G44: 64529.154 | I44: -56674.22867 | J44: -11306.265 | K44: 0 | L44: -67980.49367 | M44: -3451.339667
A45: 8 | B45: 1950 | C45: Power Operated Equipment | D45: 15449.83 | E45: 0 | F45: 0 | G45: 15449.83 | I45: -4371.756 | J45: -2946.28 | K45: 0 | L45: -7318.036 | M45: 8131.794
A46: 8 | C46: Communications Equipment | D46: 0 | G46: 0 | I46: 0 | L46: 0 | M46: 0
A47: 8 | B47: 1955 | C47: Communication Equipment | D47: 40579.902 | E47: 0 | F47: 0 | G47: 40579.902 | I47: -40405.513 | J47: -8058.38 | K47: 0 | L47: -48463.893 | M47: -7883.991
A48: 8 | B48: 1960 | C48: Miscellaneous Equipment | D48: 174538.59 | E48: 179 | F48: 197293 | G48: 372010.59 | I48: -45967.15694 | J48: -103677.2075 | K48: -142963 | L48: -292607.3644 | M48: 79403.22556
A49: 47 | B49: 1970 | C49: Load Management Controls Customer Premises | D49: 0 | E49: 0 | F49: 0 | G49: 0 | I49: 0 | J49: 0 | K49: 0 | L49: 0 | M49: 0
A50: 47 | B50: 1975 | C50: Load Management Controls Utility Premises | D50: 0 | E50: 0 | F50: 0 | G50: 0 | I50: 0 | J50: 0 | K50: 0 | L50: 0 | M50: 0
A51: 47 | B51: 1980 | C51: System Supervisor Equipment | D51: 0 | E51: 0 | F51: 0 | G51: 0 | I51: 0 | J51: 0 | K51: 0 | L51: 0 | M51: 0
A52: 47 | B52: 1985 | C52: Miscellaneous Fixed Assets | D52: 0 | E52: 0 | F52: 0 | G52: 0 | I52: 0 | J52: 0 | K52: 0 | L52: 0 | M52: 0
A53: 47 | B53: 1990 | C53: Other Tangible Property | D53: 0 | E53: 0 | F53: 0 | G53: 0 | I53: 0 | J53: 0 | K53: 0 | L53: 0 | M53: 0
A54: 47 | B54: 1995 | C54: Contributions & Grants | D54: -2201751.78 | E54: -289908.64 | F54: 0 | G54: -2491660.42 | I54: 862486.1548 | J54: 93868.228 | K54: 0 | L54: 956354.3828 | M54: -1535306.037
B55: 2005 | C55: Property Under Finance Leases | D55: 0 | E55: 0 | F55: 0 | G55: 0 | I55: 0 | J55: 0 | K55: 0 | L55: 0 | M55: 0
B56: 2010 | C56: Electric Plant Purchased or Sold | D56: 41000 | E56: 0 | F56: 0 | G56: 41000 | I56: -15545.17391 | J56: -1212.173913 | K56: 0 | L56: -16757.34783 | M56: 24242.65217
A57: 47 | B57: 2440 | C57: Deferred Revenue5 | D57: 0 | E57: 0 | F57: 0 | G57: 0 | I57: 0 | J57: 0 | K57: 0 | L57: 0 | M57: 0
C59: Sub-Total | D59: =SUM(D17:D58) -> 34365747.5 | E59: =SUM(E17:E58) -> 2006212.71 | F59: =SUM(F17:F58) -> -145715 | G59: =SUM(G17:G58) -> 36226245.21 | I59: =SUM(I17:I58) -> -14059346.71 | J59: =SUM(J17:J58) -> -1140585.859 | K59: =SUM(K17:K58) -> 19022 | L59: =SUM(L17:L58) -> -15180910.56 | M59: =SUM(M17:M58) -> 21045334.65
C60: Less Socialized Renewable Energy Generation Investments (input as negative) | G60: =D60+E60+F60 -> 0 | L60: =I60+J60+K60 -> 0 | M60: =G60+L60 -> 0
C61: Less Other Non Rate-Regulated Utility Assets (input as negative) | G61: 0 | L61: 0 | M61: 0
C62: Total PP&E | D62: =SUM(D59:D61) -> 34365747.5 | E62: =SUM(E59:E61) -> 2006212.71 | F62: -145715 | G62: 36226245.21 | I62: =SUM(I59:I61) -> -14059346.71 | J62: -1140585.859 | K62: 19022 | L62: -15180910.56 | M62: =SUM(M59:M61) -> 21045334.65
C63: Depreciation Expense adj. from gain or loss on the retirement of assets (pool of like assets), if applicable6
C64: Total | J64: =J62+J63 -> -1140585.859
I66: Less: Fully Allocated Depreciation
A67: 10 | C67: Transportation | I67: Transportation | K67: -140260.964
A68: 8 | C68: Stores Equipment | I68: Stores Equipment | K68: -24519.0225
I69: Miscellaneous Adjustments | K69: -26639
I70: Net Depreciation | K70: =-(J64-K67-K68-K69) -> 949166.8722
A72: Notes:
A74: 1 | B74: Tables in the format outlined above covering all fixed asset accounts should be submitted for the Test Year, Bridge Year and all relevant historical years. At a minimum , the applicant must provide data for the earlier of: 1) all historical years back to its last rebasing; or 2) at least three years of historical actuals, in addition to Bridge Year and Test Year forecasts.
A77: 2 | B77: The "CCA Class" for fixed assets should agree with the CCA Class used for tax purposes in Tax Returns. Fixed Assets sub-components may be used where the underlying asset components are classified under multiple CCA Classes for tax purposes. If an applicant uses any different classes from those shown in the table, an explanation should be provided. (also see note 3).
A80: 3 | B80: The table may need to be customized for a utility's asset categories or for any new asset accounts announced or authorized by the Board.
A82: 4 | B82: The additions in column (E) must not include construction work in progress (CWIP).
A84: 5 | B84: Effective on the date of IFRS adoption, customer contributions will no longer be recorded in Account 1995 Contributions & Grants, but will be recorded in Account 2440, Deferred Revenues.
A86: 6 | B86: The applicant must ensure that all asset disposals have been clearly identified in the Chapter 2 Appendices for all historic, bridge and test years. Where a distributor for general financial reporting purposes under IFRS has accounted for the amount of gain or loss on the retirement of assets in a pool of like assets as a charge or credit to income, for reporting and rate application filings, the distributor shall reclassify such gains and losses as depreciation expense, and disclose the amount separately.

Sheet App.2-BA_FA Cont 2014 BCP MIFRS
L1: File Number: | M1: =EBNUMBER -> EB-2018-0028
L2: Exhibit: | M2: 1
L3: Tab:
L4: Schedule:
L5: Page:
L7: Date: | M7: 2018-04-27
A9: Appendix 2-BA
A10: Energy+ (Former Brant County Power Inc.)
E12: Accounting Standard | F12: MIFRS
E13: Year | F13: 2014
D15: Cost | J15: Accumulated Depreciation
A16: CCA Class 2 | B16: OEB Account 3 | C16: Description 3 | D16: Opening Balance | E16: Additions 4 | F16: Disposals 6 | G16: Closing Balance | I16: Opening Balance | J16: Additions | K16: Disposals 6 | L16: Closing Balance | M16: Net Book Value
A17: 12 | B17: 1611 | C17: Computer Software (Formally known as Account 1925) | D17: -439108.969 | E17: 648140.53 | F17: 0 | G17: =D17+E17+F17 -> 209031.561 | I17: 0 | J17: -60743.231 | K17: 0 | L17: =I17+J17+K17 -> -60743.231 | M17: =G17+L17 -> 148288.33
A18: CEC | B18: 1612 | C18: Land Rights (Formally known as Account 1906) | D18: 0 | E18: 0 | F18: 0 | G18: =D18+E18+F18 -> 0 | I18: 0 | J18: 0 | K18: 0 | L18: =I18+J18+K18 -> 0 | M18: =G18+L18 -> 0
A19: N/A | B19: 1805 | C19: Land | D19: 94919.62 | E19: 0 | F19: 0 | G19: =D19+E19+F19 -> 94919.62 | I19: 0 | J19: 0 | K19: 0 | L19: =I19+J19+K19 -> 0 | M19: =G19+L19 -> 94919.62
A20: 47 | B20: 1808 | C20: Buildings | D20: 536497.9502 | E20: 0 | F20: 0 | G20: =D20+E20+F20 -> 536497.9502 | I20: 0 | J20: -14118 | K20: 0 | L20: =I20+J20+K20 -> -14118 | M20: =G20+L20 -> 522379.9502
A21: 13 | B21: 1810 | C21: Leasehold Improvements | D21: 0 | E21: 0 | F21: 0 | G21: 0 | I21: 0 | J21: 0 | K21: 0 | L21: 0 | M21: 0
A22: 47 | B22: 1815 | C22: Transformer Station Equipment >50 kV | D22: 2014301.041 | E22: 0 | F22: 0 | G22: 2014301.041 | I22: 0 | J22: -54443 | K22: 0 | L22: -54443 | M22: 1959858.041
A23: 47 | B23: 1820 | C23: Distribution Station Equipment <50 kV | D23: 0 | E23: 0 | F23: 0 | G23: 0 | I23: 0 | J23: 0 | K23: 0 | L23: 0 | M23: 0
A24: 47 | B24: 1825 | C24: Storage Battery Equipment | D24: 0 | E24: 0 | F24: 0 | G24: 0 | I24: 0 | J24: 0 | K24: 0 | L24: 0 | M24: 0
A25: 47 | B25: 1830 | C25: Poles, Towers & Fixtures | D25: 4720236.095 | E25: 625618.29 | F25: 0 | G25: 5345854.385 | I25: 0 | J25: -215705 | K25: 0 | L25: -215705 | M25: 5130149.385
A26: 47 | B26: 1835 | C26: Overhead Conductors & Devices | D26: 3860066.941 | E26: 217883.46 | F26: 0 | G26: 4077950.401 | I26: 0 | J26: -92195.73056 | K26: 0 | L26: -92195.73056 | M26: 3985754.67
A27: 47 | B27: 1840 | C27: Underground Conduit | D27: 333496.3983 | E27: 50050 | F27: 0 | G27: 383546.3983 | I27: 0 | J27: -13843 | K27: 0 | L27: -13843 | M27: 369703.3983
A28: 47 | B28: 1845 | C28: Underground Conductors & Devices | D28: 1313517.263 | E28: 121867.48 | F28: 0 | G28: 1435384.743 | I28: 0 | J28: -36681.17339 | K28: 0 | L28: -36681.17339 | M28: 1398703.569
A29: 47 | B29: 1850 | C29: Line Transformers | D29: 3205692.827 | E29: 208000.34 | F29: 0 | G29: 3413693.167 | I29: 0 | J29: -125770 | K29: 0 | L29: -125770 | M29: 3287923.167
A30: 47 | B30: 1855 | C30: Services (Overhead & Underground) | D30: 1379968.548 | E30: 59973.45 | F30: 0 | G30: 1439941.998 | I30: 0 | J30: -49653 | K30: 0 | L30: -49653 | M30: 1390288.998
A31: 47 | C31: Meters | D31: 0 | E31: 0 | F31: 0 | G31: 0 | I31: 0 | J31: 0 | K31: 0 | L31: 0 | M31: 0
A32: 47 | B32: 1860 | C32: Meters | D32: 1791999.889 | E32: 18154.8 | F32: 0 | G32: 1810154.689 | I32: 0 | J32: -208016 | K32: 0 | L32: -208016 | M32: 1602138.689
A33: N/A | B33: 1905 | C33: Land | D33: 87795 | E33: 0 | F33: 0 | G33: 87795 | I33: 0 | J33: 0 | K33: 0 | L33: 0 | M33: 87795
A34: 47 | B34: 1908 | C34: Buildings & Fixtures | D34: 396957.8155 | E34: 0 | F34: 0 | G34: 396957.8155 | I34: 0 | J34: -16548 | K34: 0 | L34: -16548 | M34: 380409.8155
A35: 13 | B35: 1910 | C35: Leasehold Improvements | D35: 0 | E35: 0 | F35: 0 | G35: 0 | I35: 0 | J35: 0 | K35: 0 | L35: 0 | M35: 0
A36: 8 | C36: Office Furniture & Equipment (10 years) | D36: 0 | E36: 0 | F36: 0 | G36: 0 | I36: 0 | J36: 0 | K36: 0 | L36: 0 | M36: 0
A37: 8 | B37: 1915 | C37: Office Furniture & Equipment | D37: 61487.2655 | E37: 0 | F37: 0 | G37: 61487.2655 | I37: 0 | J37: -10558 | K37: 0 | L37: -10558 | M37: 50929.2655
A38: 10 | C38: Computer Equipment - Hardware | D38: 0 | E38: 0 | F38: 0 | G38: 0 | I38: 0 | J38: 0 | K38: 0 | L38: 0 | M38: 0
A39: 45 | C39: Computer Equip.-Hardware(Post Mar. 22/04) | D39: 0 | E39: 0 | F39: 0 | G39: 0 | I39: 0 | J39: 0 | K39: 0 | L39: 0 | M39: 0
A40: 45.1 | B40: 1920 | C40: Computer Equip.-Hardware | D40: 765869.757 | E40: 11889.84 | F40: -631436 | G40: 146323.597 | I40: 0 | J40: -112873 | K40: 0 | L40: -112873 | M40: 33450.597
A41: 10 | B41: 1930 | C41: Transportation Equipment | D41: 540414.5008 | E41: 386152.21 | F41: -213576.92 | G41: 712989.7908 | I41: 0 | J41: -128567.587 | K41: 213576.92 | L41: 85009.333 | M41: 797999.1238
A42: 8 | B42: 1935 | C42: Stores Equipment | D42: 774 | E42: 0 | F42: 0 | G42: 774 | I42: 0 | J42: -516 | K42: 0 | L42: -516 | M42: 258
A43: 8 | B43: 1940 | C43: Tools, Shop & Garage Equipment | D43: 308334.645 | E43: 17248.51 | F43: 0 | G43: 325583.155 | I43: 0 | J43: -94000 | K43: 0 | L43: -94000 | M43: 231583.155
A44: 8 | B44: 1945 | C44: Measurement & Testing Equipment | D44: 11161.19033 | E44: 0 | F44: 0 | G44: 11161.19033 | I44: 0 | J44: -3306.265 | K44: 0 | L44: -3306.265 | M44: 7854.925333
A45: 8 | B45: 1950 | C45: Power Operated Equipment | D45: 8.3 | E45: 12741.86 | F45: 0 | G45: 12750.16 | I45: 0 | J45: -1672.086 | K45: 0 | L45: -1672.086 | M45: 11078.074
A46: 8 | C46: Communications Equipment | D46: 0 | E46: 0 | F46: 0 | G46: 0 | I46: 0 | J46: 0 | K46: 0 | L46: 0 | M46: 0
A47: 8 | B47: 1955 | C47: Communication Equipment | D47: 512.389 | E47: 0 | F47: 0 | G47: 512.389 | I47: 0 | J47: -338 | K47: 0 | L47: -338 | M47: 174.389
A48: 8 | B48: 1960 | C48: Miscellaneous Equipment | D48: 233196.1053 | E48: 0 | F48: -125770.65 | G48: 107425.4553 | I48: 0 | J48: -13074.02222 | K48: 34220 | L48: 21145.97778 | M48: 128571.4331
A49: 47 | B49: 1970 | C49: Load Management Controls Customer Premises | D49: 0 | E49: 0 | F49: 0 | G49: 0 | I49: 0 | J49: 0 | K49: 0 | L49: 0 | M49: 0
A50: 47 | B50: 1975 | C50: Load Management Controls Utility Premises | D50: 0 | E50: 0 | F50: 0 | G50: 0 | I50: 0 | J50: 0 | K50: 0 | L50: 0 | M50: 0
A51: 47 | B51: 1980 | C51: System Supervisor Equipment | D51: 0 | E51: 0 | F51: 0 | G51: 0 | I51: 0 | J51: 0 | K51: 0 | L51: 0 | M51: 0
A52: 47 | B52: 1985 | C52: Miscellaneous Fixed Assets | D52: 0 | E52: 0 | F52: 0 | G52: 0 | I52: 0 | J52: 0 | K52: 0 | L52: 0 | M52: 0
A53: 47 | B53: 1990 | C53: Other Tangible Property | D53: 0 | E53: 0 | F53: 0 | G53: 0 | I53: 0 | J53: 0 | K53: 0 | L53: 0 | M53: 0
A54: 47 | B54: 1995 | C54: Contributions & Grants | D54: -1166523.795 | E54: 0 | F54: 0 | G54: -1166523.795 | I54: 0 | J54: 77842 | K54: 0 | L54: 77842 | M54: -1088681.795
B55: 2005 | C55: Property Under Finance Leases | D55: 0 | E55: 0 | F55: 0 | G55: 0 | I55: 0 | J55: 0 | K55: 0 | L55: 0 | M55: 0
B56: 2010 | C56: Electric Plant Purchased or Sold | D56: 26667.82609 | E56: 0 | F56: 0 | G56: 26667.82609 | I56: 0 | J56: -1213 | K56: 0 | L56: -1213 | M56: 25454.82609
A57: 47 | B57: 2440 | C57: Deferred Revenue5 | D57: 0 | E57: -255697.83 | F57: 0 | G57: -255697.83 | I57: 0 | J57: 5114 | K57: 0 | L57: 5114 | M57: -250583.83
C59: Sub-Total | D59: =SUM(D17:D58)-1 -> 20078241.6 | E59: =SUM(E17:E58) -> 2122022.94 | F59: =SUM(F17:F58) -> -970783.57 | G59: =SUM(G17:G58) -> 21229481.97 | I59: =SUM(I17:I58) -> 0 | J59: =SUM(J17:J58) -> -1170878.095 | K59: =SUM(K17:K58) -> 247796.92 | L59: =SUM(L17:L58) -> -923081.1752 | M59: =SUM(M17:M58)-1 -> 20306399.8
C60: Less Socialized Renewable Energy Generation Investments (input as negative) | G60: =D60+E60+F60 -> 0 | L60: =I60+J60+K60 -> 0 | M60: =G60+L60 -> 0
C61: Less Other Non Rate-Regulated Utility Assets (input as negative) | G61: 0 | L61: 0 | M61: 0
C62: Total PP&E | D62: =SUM(D59:D61) -> 20078241.6 | E62: =SUM(E59:E61) -> 2122022.94 | F62: -970783.57 | G62: 21229481.97 | I62: =SUM(I59:I61) -> 0 | J62: -1170878.095 | K62: 247796.92 | L62: -923081.1752 | M62: 20306399.8
C63: Depreciation Expense adj. from gain or loss on the retirement of assets (pool of like assets), if applicable6
C64: Total | J64: =J62+J63 -> -1170878.095
I66: Less: Fully Allocated Depreciation
A67: 10 | C67: Transportation | I67: Transportation | K67: -128567.587
A68: 8 | C68: Stores Equipment | I68: Stores Equipment | K68: -112906.3732
I69: Net Depreciation | K69: =-(J64-K67-K68) -> 929404.1349
A71: Notes:
A73: 1 | B73: Tables in the format outlined above covering all fixed asset accounts should be submitted for the Test Year, Bridge Year and all relevant historical years. At a minimum , the applicant must provide data for the earlier of: 1) all historical years back to its last rebasing; or 2) at least three years of historical actuals, in addition to Bridge Year and Test Year forecasts.
A76: 2 | B76: The "CCA Class" for fixed assets should agree with the CCA Class used for tax purposes in Tax Returns. Fixed Assets sub-components may be used where the underlying asset components are classified under multiple CCA Classes for tax purposes. If an applicant uses any different classes from those shown in the table, an explanation should be provided. (also see note 3).
A79: 3 | B79: The table may need to be customized for a utility's asset categories or for any new asset accounts announced or authorized by the Board.
A81: 4 | B81: The additions in column (E) must not include construction work in progress (CWIP).
A83: 5 | B83: Effective on the date of IFRS adoption, customer contributions will no longer be recorded in Account 1995 Contributions & Grants, but will be recorded in Account 2440, Deferred Revenues.
A85: 6 | B85: The applicant must ensure that all asset disposals have been clearly identified in the Chapter 2 Appendices for all historic, bridge and test years. Where a distributor for general financial reporting purposes under IFRS has accounted for the amount of gain or loss on the retirement of assets in a pool of like assets as a charge or credit to income, for reporting and rate application filings, the distributor shall reclassify such gains and losses as depreciation expense, and disclose the amount separately.

Sheet App.2-BA_FA Cont 2015 BCP MIFRS
L1: File Number: | M1: =EBNUMBER -> EB-2018-0028
L2: Exhibit: | M2: 1
L3: Tab:
L4: Schedule:
L5: Page:
L7: Date: | M7: 2018-04-27
A9: Appendix 2-BA
A10: Fixed Asset Continuity Schedule 1
A11: Energy+ (Former Brant County Power Inc.)
E12: Accounting Standard | F12: MIFRS
E13: Year | F13: 2015
D15: Cost | J15: Accumulated Depreciation
A16: CCA Class 2 | B16: OEB Account 3 | C16: Description 3 | D16: Opening Balance | E16: Additions 4 | F16: Disposals 6 | G16: Closing Balance | I16: Opening Balance | J16: Additions | K16: Disposals 6 | L16: Closing Balance | M16: Net Book Value
A17: 12 | B17: 1611 | C17: Computer Software (Formally known as Account 1925) | D17: 209031.561 | E17: 2195.61 | F17: 0 | G17: =D17+E17+F17 -> 211227.171 | I17: -60743.231 | J17: -61266.259 | K17: 0 | L17: =I17+J17+K17 -> -122009.49 | M17: =G17+L17 -> 89217.681
A18: CEC | B18: 1612 | C18: Land Rights (Formally known as Account 1906) | D18: 0 | E18: 0 | F18: 0 | G18: =D18+E18+F18 -> 0 | I18: 0 | J18: 0 | K18: 0 | L18: =I18+J18+K18 -> 0 | M18: =G18+L18 -> 0
A19: N/A | B19: 1805 | C19: Land | D19: 94919.62 | E19: 0 | F19: 0 | G19: =D19+E19+F19 -> 94919.62 | I19: 0 | J19: 0 | K19: 0 | L19: =I19+J19+K19 -> 0 | M19: =G19+L19 -> 94919.62
A20: 47 | B20: 1808 | C20: Buildings | D20: 536497.9502 | E20: 0 | F20: 0 | G20: =D20+E20+F20 -> 536497.9502 | I20: -14118 | J20: -14117.41923 | K20: 0 | L20: =I20+J20+K20 -> -28235.41923 | M20: =G20+L20 -> 508262.531
A21: 13 | B21: 1810 | C21: Leasehold Improvements | D21: 0 | E21: 0 | F21: 0 | G21: 0 | I21: 0 | J21: 0 | K21: 0 | L21: 0 | M21: 0
A22: 47 | B22: 1815 | C22: Transformer Station Equipment >50 kV | D22: 2014301.041 | E22: 385941.95 | F22: 0 | G22: 2400242.991 | I22: -54443 | J22: -58728.80389 | K22: 0 | L22: -113171.8039 | M22: 2287071.188
A23: 47 | B23: 1820 | C23: Distribution Station Equipment <50 kV | D23: 0 | E23: 0 | F23: 0 | G23: 0 | I23: 0 | J23: 0 | K23: 0 | L23: 0 | M23: 0
A24: 47 | B24: 1825 | C24: Storage Battery Equipment | D24: 0 | E24: 0 | F24: 0 | G24: 0 | I24: 0 | J24: 0 | K24: 0 | L24: 0 | M24: 0
A25: 47 | B25: 1830 | C25: Poles, Towers & Fixtures | D25: 5345854.385 | E25: 664964.67 | F25: 0 | G25: 6010819.055 | I25: -215705 | J25: -233925.1086 | K25: 0 | L25: -449630.1086 | M25: 5561188.947
A26: 47 | B26: 1835 | C26: Overhead Conductors & Devices | D26: 4077950.401 | E26: 601829.62 | F26: 0 | G26: 4679780.021 | I26: -92195.73056 | J26: -99858.66765 | K26: 0 | L26: -192054.3982 | M26: 4487725.623
A27: 47 | B27: 1840 | C27: Underground Conduit | D27: 383546.3983 | E27: 7972.66 | F27: 0 | G27: 391519.0583 | I27: -13843 | J27: -14567.66 | K27: 0 | L27: -28410.66 | M27: 363108.3983
A28: 47 | B28: 1845 | C28: Underground Conductors & Devices | D28: 1435384.743 | E28: 64887.24 | F28: 0 | G28: 1500271.983 | I28: -36681.17339 | J28: -38268.99606 | K28: 0 | L28: -74950.16944 | M28: 1425321.813
A29: 47 | B29: 1850 | C29: Line Transformers | D29: 3413693.167 | E29: 412020.11 | F29: 0 | G29: 3825713.277 | I29: -125770 | J29: -133519.2634 | K29: 0 | L29: -259289.2634 | M29: 3566424.014
A30: 47 | B30: 1855 | C30: Services (Overhead & Underground) | D30: 1439941.998 | E30: 71241.03 | F30: 0 | G30: 1511183.028 | I30: -49653 | J30: -51033.52553 | K30: 0 | L30: -100686.5255 | M30: 1410496.502
A31: 47 | C31: Meters | D31: 0 | G31: 0 | I31: 0 | L31: 0 | M31: 0
A32: 47 | B32: 1860 | C32: Meters | D32: 1810154.689 | E32: 49032.92 | F32: 0 | G32: 1859187.609 | I32: -208016 | J32: -212142.5268 | K32: 0 | L32: -420158.5268 | M32: 1439029.083
A33: N/A | B33: 1905 | C33: Land | D33: 87795 | E33: 0 | F33: 0 | G33: 87795 | I33: 0 | J33: 0 | K33: 0 | L33: 0 | M33: 87795
A34: 47 | B34: 1908 | C34: Buildings & Fixtures | D34: 396957.8155 | E34: 6380 | F34: 0 | G34: 403337.8155 | I34: -16548 | J34: -16256.06967 | K34: 0 | L34: -32804.06967 | M34: 370533.7458
A35: 13 | B35: 1910 | C35: Leasehold Improvements | D35: 0 | E35: 0 | F35: 0 | G35: 0 | I35: 0 | J35: 0 | K35: 0 | L35: 0 | M35: 0
A36: 8 | C36: Office Furniture & Equipment (10 years) | D36: 0 | G36: 0 | I36: 0 | L36: 0 | M36: 0
A37: 8 | B37: 1915 | C37: Office Furniture & Equipment | D37: 61487.2655 | E37: 6630 | F37: 0 | G37: 68117.2655 | I37: -10558 | J37: -10535.814 | K37: 0 | L37: -21093.814 | M37: 47023.4515
A38: 10 | C38: Computer Equipment - Hardware | D38: 0 | G38: 0 | I38: 0 | L38: 0 | M38: 0
A39: 45 | C39: Computer Equip.-Hardware(Post Mar. 22/04) | D39: 0 | G39: 0 | I39: 0 | L39: 0 | M39: 0
A40: 45.1 | B40: 1920 | C40: Computer Equip.-Hardware | D40: 146323.597 | E40: 2520.2 | F40: 0 | G40: 148843.797 | I40: -112873 | J40: -12506.225 | K40: 0 | L40: -125379.225 | M40: 23464.572
A41: 10 | B41: 1930 | C41: Transportation Equipment | D41: 712989.7908 | E41: 0 | F41: 0 | G41: 712989.7908 | I41: 85009.333 | J41: -140260.964 | K41: 0 | L41: -55251.631 | M41: 657738.1598
A42: 8 | B42: 1935 | C42: Stores Equipment | D42: 774 | E42: 0 | F42: 0 | G42: 774 | I42: -516 | J42: -258 | K42: 0 | L42: -774 | M42: 0
A43: 8 | B43: 1940 | C43: Tools, Shop & Garage Equipment | D43: 325583.155 | E43: 20326.34 | F43: -343008 | G43: 2901.495 | I43: -94000 | J43: -10008.4775 | K43: 161985 | L43: 57976.5225 | M43: 60878.0175
A44: 8 | B44: 1945 | C44: Measurement & Testing Equipment | D44: 11161.19033 | E44: 0 | F44: 0 | G44: 11161.19033 | I44: -3306.265 | J44: -11306.265 | K44: 0 | L44: -14612.53 | M44: -3451.339667
A45: 8 | B45: 1950 | C45: Power Operated Equipment | D45: 12750.16 | E45: 0 | F45: 0 | G45: 12750.16 | I45: -1672.086 | J45: -2946.28 | K45: 0 | L45: -4618.366 | M45: 8131.794
A46: 8 | C46: Communications Equipment | D46: 0 | G46: 0 | I46: 0 | L46: 0 | M46: 0
A47: 8 | B47: 1955 | C47: Communication Equipment | D47: 512.389 | E47: 0 | F47: 0 | G47: 512.389 | I47: -338 | J47: -8058.38 | K47: 0 | L47: -8396.38 | M47: -7883.991
A48: 8 | B48: 1960 | C48: Miscellaneous Equipment | D48: 107425.4553 | E48: 179 | F48: 197293 | G48: 304897.4553 | I48: 21145.97778 | J48: -103677.2075 | K48: -142963 | L48: -225494.2297 | M48: 79403.22556
A49: 47 | B49: 1970 | C49: Load Management Controls Customer Premises | D49: 0 | E49: 0 | F49: 0 | G49: 0 | I49: 0 | J49: 0 | K49: 0 | L49: 0 | M49: 0
A50: 47 | B50: 1975 | C50: Load Management Controls Utility Premises | D50: 0 | E50: 0 | F50: 0 | G50: 0 | I50: 0 | J50: 0 | K50: 0 | L50: 0 | M50: 0
A51: 47 | B51: 1980 | C51: System Supervisor Equipment | D51: 0 | E51: 0 | F51: 0 | G51: 0 | I51: 0 | J51: 0 | K51: 0 | L51: 0 | M51: 0
A52: 47 | B52: 1985 | C52: Miscellaneous Fixed Assets | D52: 0 | E52: 0 | F52: 0 | G52: 0 | I52: 0 | J52: 0 | K52: 0 | L52: 0 | M52: 0
A53: 47 | B53: 1990 | C53: Other Tangible Property | D53: 0 | E53: 0 | F53: 0 | G53: 0 | I53: 0 | J53: 0 | K53: 0 | L53: 0 | M53: 0
A54: 47 | B54: 1995 | C54: Contributions & Grants | D54: -1166523.795 | E54: 0 | F54: 0 | G54: -1166523.795 | I54: 77842 | J54: 77842.228 | K54: 0 | L54: 155684.228 | M54: -1010839.567
B55: 2005 | C55: Property Under Finance Leases | D55: 0 | E55: 0 | F55: 0 | G55: 0 | I55: 0 | J55: 0 | K55: 0 | L55: 0 | M55: 0
B56: 2010 | C56: Electric Plant Purchased or Sold | D56: 26667.82609 | E56: 0 | F56: 0 | G56: 26667.82609 | I56: -1213 | J56: -1212.173913 | K56: 0 | L56: -2425.173913 | M56: 24242.65217
A57: 47 | B57: 2440 | C57: Deferred Revenue5 | D57: -255697.83 | E57: -289908.64 | F57: 0 | G57: -545606.47 | I57: 5114 | J57: 16026 | K57: 0 | L57: 21140 | M57: -524466.47
C59: Sub-Total | D59: =SUM(D17:D58) -> 21229481.97 | E59: =SUM(E17:E58) -> 2006212.71 | F59: =SUM(F17:F58) -> -145715 | G59: =SUM(G17:G58)-1 -> 23089978.68 | I59: =SUM(I17:I58) -> -923081.1752 | J59: =SUM(J17:J58) -> -1140585.859 | K59: =SUM(K17:K58) -> 19022 | L59: =SUM(L17:L58) -> -2044645.034 | M59: =SUM(M17:M58) -> 21045334.65
C60: Less Socialized Renewable Energy Generation Investments (input as negative) | G60: =D60+E60+F60 -> 0 | L60: =I60+J60+K60 -> 0 | M60: =G60+L60 -> 0
C61: Less Other Non Rate-Regulated Utility Assets (input as negative) | G61: 0 | L61: 0 | M61: 0
C62: Total PP&E | D62: =SUM(D59:D61) -> 21229481.97 | E62: =SUM(E59:E61) -> 2006212.71 | F62: -145715 | G62: 23089978.68 | I62: =SUM(I59:I61) -> -923081.1752 | J62: -1140585.859 | K62: 19022 | L62: -2044645.034 | M62: 21045334.65
C63: Depreciation Expense adj. from gain or loss on the retirement of assets (pool of like assets), if applicable6
C64: Total | J64: =J62+J63 -> -1140585.859
I66: Less: Fully Allocated Depreciation
A67: 10 | C67: Transportation | I67: Transportation | K67: -140260.964
A68: 8 | C68: Stores Equipment | I68: Stores Equipment | K68: -24519.0225
I69: Miscellaneous Adjustments | K69: -26639
I70: Net Depreciation | K70: =-(J64-K67-K68-K69) -> 949166.8722
A72: Notes:
A74: 1 | B74: Tables in the format outlined above covering all fixed asset accounts should be submitted for the Test Year, Bridge Year and all relevant historical years. At a minimum , the applicant must provide data for the earlier of: 1) all historical years back to its last rebasing; or 2) at least three years of historical actuals, in addition to Bridge Year and Test Year forecasts.
A77: 2 | B77: The "CCA Class" for fixed assets should agree with the CCA Class used for tax purposes in Tax Returns. Fixed Assets sub-components may be used where the underlying asset components are classified under multiple CCA Classes for tax purposes. If an applicant uses any different classes from those shown in the table, an explanation should be provided. (also see note 3).
A80: 3 | B80: The table may need to be customized for a utility's asset categories or for any new asset accounts announced or authorized by the Board.
A82: 4 | B82: The additions in column (E) must not include construction work in progress (CWIP).
A84: 5 | B84: Effective on the date of IFRS adoption, customer contributions will no longer be recorded in Account 1995 Contributions & Grants, but will be recorded in Account 2440, Deferred Revenues.
A86: 6 | B86: The applicant must ensure that all asset disposals have been clearly identified in the Chapter 2 Appendices for all historic, bridge and test years. Where a distributor for general financial reporting purposes under IFRS has accounted for the amount of gain or loss on the retirement of assets in a pool of like assets as a charge or credit to income, for reporting and rate application filings, the distributor shall reclassify such gains and losses as depreciation expense, and disclose the amount separately.

Sheet App.2-BA_FA Cont 2014 CND CGAAP
L1: File Number: | M1: =EBNUMBER -> EB-2018-0028
L2: Exhibit: | M2: 1
L3: Tab:
L4: Schedule:
L5: Page:
L7: Date: | M7: 2018-04-27
A9: Appendix 2-BA
A10: Fixed Asset Continuity Schedule 1
A11: Energy+ (Former Cambridge and North Dumfries Hydro Inc.)
E12: Accounting Standard | F12: CGAAP
E13: Year | F13: 2014
D15: Cost | J15: Accumulated Depreciation
A16: CCA Class 2 | B16: OEB Account 3 | C16: Description 3 | D16: Opening Balance | E16: Additions 4 | F16: Disposals 6 | G16: Closing Balance | I16: Opening Balance | J16: Additions | K16: Disposals 6 | L16: Closing Balance | M16: Net Book Value
A17: 12 | B17: 1611 | C17: Computer Software (Formally known as Account 1925) | D17: 3524730.11 | E17: 299974.6 | F17: 0 | G17: =D17+E17+F17 -> 3824704.71 | I17: -1999040.13 | J17: -552788.77 | K17: 0 | L17: =I17+J17+K17 -> -2551828.9 | M17: =G17+L17 -> 1272875.81
A18: CEC | B18: 1612 | C18: Land Rights (Formally known as Account 1906) | D18: 0 | E18: 0 | F18: 0 | G18: =D18+E18+F18 -> 0 | I18: 0 | J18: 0 | K18: 0 | L18: =I18+J18+K18 -> 0 | M18: =G18+L18 -> 0
A19: N/A | B19: 1805 | C19: Land | D19: 252923.22 | E19: 0 | F19: 0 | G19: =D19+E19+F19 -> 252923.22 | I19: 0 | J19: 0 | K19: 0 | L19: =I19+J19+K19 -> 0 | M19: =G19+L19 -> 252923.22
A20: 47 | B20: 1808 | C20: Buildings | D20: 1190197.13 | E20: 0 | F20: 0 | G20: =D20+E20+F20 -> 1190197.13 | I20: -284771.88 | J20: -20555.44 | K20: 0 | L20: =I20+J20+K20 -> -305327.32 | M20: =G20+L20 -> 884869.81
A21: 13 | B21: 1810 | C21: Leasehold Improvements | D21: 0 | E21: 0 | F21: 0 | G21: 0 | I21: 0 | J21: 0 | K21: 0 | L21: 0 | M21: 0
A22: 47 | B22: 1815 | C22: Transformer Station Equipment >50 kV | D22: 10053773.54 | E22: 0 | F22: 0 | G22: 10053773.54 | I22: -3117519.44 | J22: -367282.38 | K22: 0 | L22: -3484801.82 | M22: 6568971.72
A23: 47 | B23: 1820 | C23: Distribution Station Equipment <50 kV | D23: 0 | E23: 0 | F23: 0 | G23: 0 | I23: 0 | J23: 0 | K23: 0 | L23: 0 | M23: 0
A24: 47 | B24: 1825 | C24: Storage Battery Equipment | D24: 0 | E24: 0 | F24: 0 | G24: 0 | I24: 0 | J24: 0 | K24: 0 | L24: 0 | M24: 0
A25: 47 | B25: 1830 | C25: Poles, Towers & Fixtures | D25: 31526865.92 | E25: 1840594.26 | F25: 0 | G25: 33367460.18 | I25: -14720333.88 | J25: -441539.68 | K25: 477106 | L25: -14684767.56 | M25: 18682692.62
A26: 47 | B26: 1835 | C26: Overhead Conductors & Devices | D26: 37630438.78 | E26: 2164103.91 | F26: 0 | G26: 39794542.69 | I26: -17302840.04 | J26: -627179.84 | K26: 319116 | L26: -17610903.88 | M26: 22183638.81
A27: 47 | B27: 1840 | C27: Underground Conduit | D27: 27728746.95 | E27: 511352.68 | F27: 0 | G27: 28240099.63 | I27: -13324663.2 | J27: -204691.57 | K27: 0 | L27: -13529354.77 | M27: 14710744.86
A28: 47 | B28: 1845 | C28: Underground Conductors & Devices | D28: 40244002.23 | E28: 1079254.96 | F28: 0 | G28: 41323257.19 | I28: -19190611.51 | J28: -524006.02 | K28: 33404 | L28: -19681213.53 | M28: 21642043.66
A29: 47 | B29: 1850 | C29: Line Transformers | D29: 46238994.15 | E29: 1667605.31 | F29: 0 | G29: 47906599.46 | I29: -22915043.5 | J29: -636349.98 | K29: 142627 | L29: -23408766.48 | M29: 24497832.98
A30: 47 | B30: 1855 | C30: Services (Overhead & Underground) | D30: 0 | E30: 0 | F30: 0 | G30: 0 | I30: 0 | J30: 0 | K30: 0 | L30: 0 | M30: 0
A31: 47 | C31: Meters | D31: 0 | G31: 0 | I31: 0 | L31: 0 | M31: 0
A32: 47 | B32: 1860 | C32: Meters | D32: 10164608.7 | E32: 277371.81 | F32: 0 | G32: 10441980.51 | I32: -2434033.04 | J32: -674235.78 | K32: 0 | L32: -3108268.82 | M32: 7333711.69
A33: N/A | B33: 1905 | C33: Land | D33: 213796.91 | E33: 0 | F33: 0 | G33: 213796.91 | I33: 0 | J33: 0 | K33: 0 | L33: 0 | M33: 213796.91
A34: 47 | B34: 1908 | C34: Buildings & Fixtures | D34: 5575327.92 | E34: 229629.23 | F34: 0 | G34: 5804957.15 | I34: -3688406.03 | J34: -167552.42 | K34: 0 | L34: -3855958.45 | M34: 1948998.7
A35: 13 | B35: 1910 | C35: Leasehold Improvements | D35: 0 | E35: 0 | F35: 0 | G35: 0 | I35: 0 | J35: 0 | K35: 0 | L35: 0 | M35: 0
A36: 8 | C36: Office Furniture & Equipment (10 years) | D36: 0 | G36: 0 | I36: 0 | L36: 0 | M36: 0
A37: 8 | B37: 1915 | C37: Office Furniture & Equipment | D37: 772182.3 | E37: 51558.31 | F37: 0 | G37: 823740.61 | I37: -527747.28 | J37: -34099.98 | K37: 0 | L37: -561847.26 | M37: 261893.35
A38: 10 | C38: Computer Equipment - Hardware | D38: 0 | G38: 0 | I38: 0 | L38: 0 | M38: 0
A39: 45 | C39: Computer Equip.-Hardware(Post Mar. 22/04) | D39: 0 | G39: 0 | I39: 0 | L39: 0 | M39: 0
A40: 45.1 | B40: 1920 | C40: Computer Equip.-Hardware | D40: 2515575.3 | E40: 586368.53 | F40: -29720.32 | G40: 3072223.51 | I40: -1894381.71 | J40: -440963.71 | K40: 29498.62 | L40: -2305846.8 | M40: 766376.71
A41: 10 | B41: 1930 | C41: Transportation Equipment | D41: 4361423.38 | E41: 461921.41 | F41: -25177.5 | G41: 4798167.29 | I41: -2715516.42 | J41: -229996.23 | K41: 25177.5 | L41: -2920335.15 | M41: 1877832.14
A42: 8 | B42: 1935 | C42: Stores Equipment | D42: 93728.96 | E42: 0 | F42: 0 | G42: 93728.96 | I42: -93728.96 | J42: 0 | K42: 0 | L42: -93728.96 | M42: 0
A43: 8 | B43: 1940 | C43: Tools, Shop & Garage Equipment | D43: 1151630.15 | E43: 37880.46 | F43: 0 | G43: 1189510.61 | I43: -734419.52 | J43: -75744.95 | K43: 0 | L43: -810164.47 | M43: 379346.14
A44: 8 | B44: 1945 | C44: Measurement & Testing Equipment | D44: 0 | E44: 0 | F44: 0 | G44: 0 | I44: 0 | J44: 0 | K44: 0 | L44: 0 | M44: 0
A45: 8 | B45: 1950 | C45: Power Operated Equipment | D45: 0 | E45: 0 | F45: 0 | G45: 0 | I45: 0 | J45: 0 | K45: 0 | L45: 0 | M45: 0
A46: 8 | C46: Communications Equipment | D46: 0 | G46: 0 | I46: 0 | L46: 0 | M46: 0
A47: 8 | B47: 1955 | C47: Communication Equipment | D47: 0 | E47: 0 | F47: 0 | G47: 0 | I47: 0 | J47: 0 | K47: 0 | L47: 0 | M47: 0
A48: 8 | B48: 1960 | C48: Miscellaneous Equipment | D48: 0 | E48: 0 | F48: 0 | G48: 0 | I48: 0 | J48: 0 | K48: 0 | L48: 0 | M48: 0
A49: 47 | B49: 1970 | C49: Load Management Controls Customer Premises | D49: 0 | E49: 0 | F49: 0 | G49: 0 | I49: 0 | J49: 0 | K49: 0 | L49: 0 | M49: 0
A50: 47 | B50: 1975 | C50: Load Management Controls Utility Premises | D50: 0 | E50: 0 | F50: 0 | G50: 0 | I50: 0 | J50: 0 | K50: 0 | L50: 0 | M50: 0
A51: 47 | B51: 1980 | C51: System Supervisor Equipment | D51: 714213.91 | E51: 0 | F51: 0 | G51: 714213.91 | I51: -714213.91 | J51: 0 | K51: 0 | L51: -714213.91 | M51: 0
A52: 47 | B52: 1985 | C52: Miscellaneous Fixed Assets | D52: 0 | E52: 0 | F52: 0 | G52: 0 | I52: 0 | J52: 0 | K52: 0 | L52: 0 | M52: 0
A53: 47 | B53: 1990 | C53: Other Tangible Property | D53: 0 | E53: 0 | F53: 0 | G53: 0 | I53: 0 | J53: 0 | K53: 0 | L53: 0 | M53: 0
A54: 47 | B54: 1995 | C54: Contributions & Grants | D54: -20139307.3 | E54: -500448.87 | F54: 0 | G54: -20639756.17 | I54: 5135419.55 | J54: 411287.64 | K54: 0 | L54: 5546707.19 | M54: -15093048.98
B55: 2005 | C55: Property under Finance Leases | D55: 61873.21 | E55: 0 | F55: 0 | G55: 61873.21 | I55: -61873.21 | J55: 0 | K55: 0 | L55: -61873.21 | M55: 0
B56: 2010 | C56: Electric Plant Purchased or Sold | D56: 0 | E56: 0 | F56: 0 | G56: 0 | I56: 0 | J56: 0 | K56: 0 | L56: 0 | M56: 0
A57: 47 | B57: 2440 | C57: Deferred Revenue5 | D57: 0 | E57: 0 | F57: 0 | G57: 0 | I57: 0 | J57: 0 | K57: 0 | L57: 0 | M57: 0
C59: Sub-Total | D59: =SUM(D17:D58) -> 203875725.5 | E59: =SUM(E17:E58) -> 8707166.6 | F59: =SUM(F17:F58) -> -54897.82 | G59: =SUM(G17:G58) -> 212527994.3 | I59: =SUM(I17:I58) -> -100583724.1 | J59: =SUM(J17:J58) -> -4585699.11 | K59: =SUM(K17:K58) -> 1026929.12 | L59: =SUM(L17:L58) -> -104142494.1 | M59: =SUM(M17:M58) -> 108385500.1
C60: Less Socialized Renewable Energy Generation Investments (input as negative) | G60: =D60+E60+F60 -> 0 | L60: =I60+J60+K60 -> 0 | M60: =G60+L60 -> 0
C61: Less Other Non Rate-Regulated Utility Assets (input as negative) | G61: 0 | L61: 0 | M61: 0
C62: Total PP&E | D62: =SUM(D59:D61) -> 203875725.5 | E62: =SUM(E59:E61) -> 8707166.6 | F62: -54897.82 | G62: 212527994.3 | I62: =SUM(I59:I61) -> -100583724.1 | J62: -4585699.11 | K62: 1026929.12 | L62: -104142494.1 | M62: 108385500.1
C63: Depreciation Expense adj. from gain or loss on the retirement of assets (pool of like assets), if applicable6
C64: Total | J64: =J62+J63 -> -4585699.11
I66: Less: Fully Allocated Depreciation
A67: 10 | C67: Transportation | I67: Transportation | K67: -229996.23
A68: 8 | C68: Stores Equipment | I68: Stores Equipment | K68: 0
I69: Stranded Meter Adjustment | K69: 312120
I70: Removal Costs | K70: 354855
I71: Net Depreciation | K71: =-(J64-K67-K68-K69-K70) -> 5022677.88
A73: Notes:
A75: 1 | B75: Tables in the format outlined above covering all fixed asset accounts should be submitted for the Test Year, Bridge Year and all relevant historical years. At a minimum , the applicant must provide data for the earlier of: 1) all historical years back to its last rebasing; or 2) at least three years of historical actuals, in addition to Bridge Year and Test Year forecasts.
A78: 2 | B78: The "CCA Class" for fixed assets should agree with the CCA Class used for tax purposes in Tax Returns. Fixed Assets sub-components may be used where the underlying asset components are classified under multiple CCA Classes for tax purposes. If an applicant uses any different classes from those shown in the table, an explanation should be provided. (also see note 3).
A81: 3 | B81: The table may need to be customized for a utility's asset categories or for any new asset accounts announced or authorized by the Board.
A83: 4 | B83: The additions in column (E) must not include construction work in progress (CWIP).
A85: 5 | B85: Effective on the date of IFRS adoption, customer contributions will no longer be recorded in Account 1995 Contributions & Grants, but will be recorded in Account 2440, Deferred Revenues.
A87: 6 | B87: The applicant must ensure that all asset disposals have been clearly identified in the Chapter 2 Appendices for all historic, bridge and test years. Where a distributor for general financial reporting purposes under IFRS has accounted for the amount of gain or loss on the retirement of assets in a pool of like assets as a charge or credit to income, for reporting and rate application filings, the distributor shall reclassify such gains and losses as depreciation expense, and disclose the amount separately.

Sheet App.2-BA_FA Cont 2014 CND MIFRS
L1: File Number: | M1: =EBNUMBER -> EB-2018-0028
L2: Exhibit: | M2: 1
L3: Tab:
L4: Schedule:
L5: Page:
L7: Date: | M7: 2018-04-27
A9: Appendix 2-BA
A10: Fixed Asset Continuity Schedule 1
A11: Energy+ (Former Cambridge and North Dumfries Hydro Inc.)
E12: Accounting Standard | F12: MIFRS
E13: Year | F13: 2014
D15: Cost | J15: Accumulated Depreciation
A16: CCA Class 2 | B16: OEB Account 3 | C16: Description 3 | D16: Opening Balance | E16: Additions 4 | F16: Disposals 6 | G16: Closing Balance | I16: Opening Balance | J16: Additions | K16: Disposals 6 | L16: Closing Balance | M16: Net Book Value
A17: 12 | B17: 1611 | C17: Computer Software (Formally known as Account 1925) | D17: 1525689.98 | E17: 299974.6 | F17: 0 | G17: =D17+E17+F17 -> 1825664.58 | I17: 0 | J17: -552788.77 | K17: 0 | L17: =I17+J17+K17 -> -552788.77 | M17: =G17+L17 -> 1272875.81
A18: CEC | B18: 1612 | C18: Land Rights (Formally known as Account 1906) | D18: 0 | E18: 0 | F18: 0 | G18: =D18+E18+F18 -> 0 | I18: 0 | J18: 0 | K18: 0 | L18: =I18+J18+K18 -> 0 | M18: =G18+L18 -> 0
A19: N/A | B19: 1805 | C19: Land | D19: 252923.22 | E19: 0 | F19: 0 | G19: =D19+E19+F19 -> 252923.22 | I19: 0 | J19: 0 | K19: 0 | L19: =I19+J19+K19 -> 0 | M19: =G19+L19 -> 252923.22
A20: 47 | B20: 1808 | C20: Buildings | D20: 905425.25 | E20: 0 | F20: 0 | G20: =D20+E20+F20 -> 905425.25 | I20: 0 | J20: -20555.44 | K20: 0 | L20: =I20+J20+K20 -> -20555.44 | M20: =G20+L20 -> 884869.81
A21: 13 | B21: 1810 | C21: Leasehold Improvements | D21: 0 | E21: 0 | F21: 0 | G21: 0 | I21: 0 | J21: 0 | K21: 0 | L21: 0 | M21: 0
A22: 47 | B22: 1815 | C22: Transformer Station Equipment >50 kV | D22: 6936254.1 | E22: 0 | F22: 0 | G22: 6936254.1 | I22: 0 | J22: -367282.38 | K22: 0 | L22: -367282.38 | M22: 6568971.72
A23: 47 | B23: 1820 | C23: Distribution Station Equipment <50 kV | D23: 0 | E23: 0 | F23: 0 | G23: 0 | I23: 0 | J23: 0 | K23: 0 | L23: 0 | M23: 0
A24: 47 | B24: 1825 | C24: Storage Battery Equipment | D24: 0 | E24: 0 | F24: 0 | G24: 0 | I24: 0 | J24: 0 | K24: 0 | L24: 0 | M24: 0
A25: 47 | B25: 1830 | C25: Poles, Towers & Fixtures | D25: 16806532.04 | E25: 1840594.26 | F25: -248310 | G25: 18398816.3 | I25: 0 | J25: -441539.68 | K25: 613644 | L25: 172104.32 | M25: 18570920.62
A26: 47 | B26: 1835 | C26: Overhead Conductors & Devices | D26: 20327598.74 | E26: 2164103.91 | F26: 0 | G26: 22491702.65 | I26: 0 | J26: -627179.84 | K26: 319116 | L26: -308063.84 | M26: 22183638.81
A27: 47 | B27: 1840 | C27: Underground Conduit | D27: 14404083.75 | E27: 511352.68 | F27: 0 | G27: 14915436.43 | I27: 0 | J27: -204691.57 | K27: 0 | L27: -204691.57 | M27: 14710744.86
A28: 47 | B28: 1845 | C28: Underground Conductors & Devices | D28: 21053390.72 | E28: 1079254.96 | F28: 0 | G28: 22132645.68 | I28: 0 | J28: -524006.02 | K28: 33404 | L28: -490602.02 | M28: 21642043.66
A29: 47 | B29: 1850 | C29: Line Transformers | D29: 23323950.65 | E29: 1667605.31 | F29: -617504 | G29: 24374051.96 | I29: 0 | J29: -636349.98 | K29: 660275 | L29: 23925.02 | M29: 24397976.98
A30: 47 | B30: 1855 | C30: Services (Overhead & Underground) | D30: 0 | E30: 0 | F30: 0 | G30: 0 | I30: 0 | J30: 0 | K30: 0 | L30: 0 | M30: 0
A31: 47 | B31: 1860 | C31: Meters | D31: 0 | G31: 0 | I31: 0 | L31: 0 | M31: 0
A32: 47 | B32: 1860 | C32: Meters | D32: 7730575.66 | E32: 277371.81 | F32: -221915 | G32: 7786032.47 | I32: 0 | J32: -674235.78 | K32: 95321 | L32: -578914.78 | M32: 7207117.69
A33: N/A | B33: 1905 | C33: Land | D33: 213796.91 | E33: 0 | F33: 0 | G33: 213796.91 | I33: 0 | J33: 0 | K33: 0 | L33: 0 | M33: 213796.91
A34: 47 | B34: 1908 | C34: Buildings & Fixtures | D34: 1886921.89 | E34: 229629.23 | F34: 0 | G34: 2116551.12 | I34: 0 | J34: -167552.42 | K34: 0 | L34: -167552.42 | M34: 1948998.7
A35: 13 | B35: 1910 | C35: Leasehold Improvements | D35: 0 | E35: 0 | F35: 0 | G35: 0 | I35: 0 | J35: 0 | K35: 0 | L35: 0 | M35: 0
A36: 8 | C36: Office Furniture & Equipment (10 years) | D36: 0 | G36: 0 | I36: 0 | L36: 0 | M36: 0
A37: 8 | B37: 1915 | C37: Office Furniture & Equipment | D37: 244435.02 | E37: 51558.31 | F37: 0 | G37: 295993.33 | I37: 0 | J37: -34099.98 | K37: 0 | L37: -34099.98 | M37: 261893.35
A38: 10 | C38: Computer Equipment - Hardware | D38: 0 | G38: 0 | I38: 0 | L38: 0 | M38: 0
A39: 45 | C39: Computer Equip.-Hardware(Post Mar. 22/04) | D39: 0 | G39: 0 | I39: 0 | L39: 0 | M39: 0
A40: 45.1 | B40: 1920 | C40: Computer Equip.-Hardware | D40: 621193.59 | E40: 586368.53 | F40: -29720.32 | G40: 1177841.8 | I40: 0 | J40: -440963.71 | K40: 29498.62 | L40: -411465.09 | M40: 766376.71
A41: 10 | B41: 1930 | C41: Transportation Equipment | D41: 1645906.96 | E41: 461921.41 | F41: -25177.5 | G41: 2082650.87 | I41: 0 | J41: -229996.23 | K41: 25177.5 | L41: -204818.73 | M41: 1877832.14
A42: 8 | B42: 1935 | C42: Stores Equipment | D42: 0 | E42: 0 | F42: 0 | G42: 0 | I42: 0 | J42: 0 | K42: 0 | L42: 0 | M42: 0
A43: 8 | B43: 1940 | C43: Tools, Shop & Garage Equipment | D43: 417210.63 | E43: 37880.46 | F43: 0 | G43: 455091.09 | I43: 0 | J43: -75744.95 | K43: 0 | L43: -75744.95 | M43: 379346.14
A44: 8 | B44: 1945 | C44: Measurement & Testing Equipment | D44: 0 | E44: 0 | F44: 0 | G44: 0 | I44: 0 | J44: 0 | K44: 0 | L44: 0 | M44: 0
A45: 8 | B45: 1950 | C45: Power Operated Equipment | D45: 0 | E45: 0 | F45: 0 | G45: 0 | I45: 0 | J45: 0 | K45: 0 | L45: 0 | M45: 0
A46: 8 | C46: Communications Equipment | D46: 0 | G46: 0 | I46: 0 | L46: 0 | M46: 0
A47: 8 | B47: 1955 | C47: Communication Equipment | D47: 0 | E47: 0 | F47: 0 | G47: 0 | I47: 0 | J47: 0 | K47: 0 | L47: 0 | M47: 0
A48: 8 | B48: 1960 | C48: Miscellaneous Equipment | D48: 0 | E48: 0 | F48: 0 | G48: 0 | I48: 0 | J48: 0 | K48: 0 | L48: 0 | M48: 0
A49: 47 | B49: 1970 | C49: Load Management Controls Customer Premises | D49: 0 | E49: 0 | F49: 0 | G49: 0 | I49: 0 | J49: 0 | K49: 0 | L49: 0 | M49: 0
A50: 47 | B50: 1975 | C50: Load Management Controls Utility Premises | D50: 0 | E50: 0 | F50: 0 | G50: 0 | I50: 0 | J50: 0 | K50: 0 | L50: 0 | M50: 0
A51: 47 | B51: 1980 | C51: System Supervisor Equipment | D51: 0 | E51: 0 | F51: 0 | G51: 0 | I51: 0 | J51: 0 | K51: 0 | L51: 0 | M51: 0
A52: 47 | B52: 1985 | C52: Miscellaneous Fixed Assets | D52: 0 | E52: 0 | F52: 0 | G52: 0 | I52: 0 | J52: 0 | K52: 0 | L52: 0 | M52: 0
A53: 47 | B53: 1990 | C53: Other Tangible Property | D53: 0 | E53: 0 | F53: 0 | G53: 0 | I53: 0 | J53: 0 | K53: 0 | L53: 0 | M53: 0
A54: 47 | B54: 1995 | C54: Contributions & Grants | D54: -15003887.75 | F54: 0 | G54: -15003887.75 | I54: 0 | J54: 406074.64 | K54: 0 | L54: 406074.64 | M54: -14597813.11
B55: 2005 | C55: Property under Finance Leases | D55: 0 | E55: 0 | F55: 0 | G55: 0 | I55: 0 | J55: 0 | K55: 0 | L55: 0 | M55: 0
B56: 2010 | C56: Electric Plant Purchased or Sold | D56: 0 | E56: 0 | F56: 0 | G56: 0 | I56: 0 | J56: 0 | K56: 0 | L56: 0 | M56: 0
A57: 47 | B57: 2440 | C57: Deferred Revenue5 | D57: 0 | E57: -500448.87 | F57: 0 | G57: -500448.87 | I57: 0 | J57: 5213 | K57: 0 | L57: 5213 | M57: -495235.87
C59: Sub-Total | D59: =SUM(D17:D58) -> 103292001.4 | E59: =SUM(E17:E58) -> 8707166.6 | F59: =SUM(F17:F58) -> -1142626.82 | G59: =SUM(G17:G58) -> 110856541.1 | I59: =SUM(I17:I58) -> 0 | J59: =SUM(J17:J58) -> -4585699.11 | K59: =SUM(K17:K58) -> 1776436.12 | L59: =SUM(L17:L58) -> -2809262.99 | M59: =SUM(M17:M58) -> 108047278.1
C60: Less Socialized Renewable Energy Generation Investments (input as negative) | G60: =D60+E60+F60 -> 0 | L60: =I60+J60+K60 -> 0 | M60: =G60+L60 -> 0
C61: Less Other Non Rate-Regulated Utility Assets (input as negative) | G61: 0 | L61: 0 | M61: 0
C62: Total PP&E | D62: =SUM(D59:D61) -> 103292001.4 | E62: =SUM(E59:E61) -> 8707166.6 | F62: -1142626.82 | G62: 110856541.1 | I62: =SUM(I59:I61) -> 0 | J62: -4585699.11 | K62: 1776436.12 | L62: -2809262.99 | M62: 108047278.1
C63: Depreciation Expense adj. from gain or loss on the retirement of assets (pool of like assets), if applicable6
C64: Total | J64: =J62+J63 -> -4585699.11
I66: Less: Fully Allocated Depreciation
A67: 10 | C67: Transportation | I67: Transportation | K67: -229996.23
A68: 8 | C68: Stores Equipment | I68: Stores Equipment | K68: 0
I69: Stranded Meter Adjustment | K69: 312120
I70: Removal Costs | K70: 354855
I71: Net Depreciation | K71: =-(J64-K67-K68-K69-K70) -> 5022677.88
A73: Notes:
A75: 1 | B75: Tables in the format outlined above covering all fixed asset accounts should be submitted for the Test Year, Bridge Year and all relevant historical years. At a minimum , the applicant must provide data for the earlier of: 1) all historical years back to its last rebasing; or 2) at least three years of historical actuals, in addition to Bridge Year and Test Year forecasts.
A78: 2 | B78: The "CCA Class" for fixed assets should agree with the CCA Class used for tax purposes in Tax Returns. Fixed Assets sub-components may be used where the underlying asset components are classified under multiple CCA Classes for tax purposes. If an applicant uses any different classes from those shown in the table, an explanation should be provided. (also see note 3).
A81: 3 | B81: The table may need to be customized for a utility's asset categories or for any new asset accounts announced or authorized by the Board.
A83: 4 | B83: The additions in column (E) must not include construction work in progress (CWIP).
A85: 5 | B85: Effective on the date of IFRS adoption, customer contributions will no longer be recorded in Account 1995 Contributions & Grants, but will be recorded in Account 2440, Deferred Revenues.
A87: 6 | B87: The applicant must ensure that all asset disposals have been clearly identified in the Chapter 2 Appendices for all historic, bridge and test years. Where a distributor for general financial reporting purposes under IFRS has accounted for the amount of gain or loss on the retirement of assets in a pool of like assets as a charge or credit to income, for reporting and rate application filings, the distributor shall reclassify such gains and losses as depreciation expense, and disclose the amount separately.

Sheet App.2-BA_FA Cont 2015 CND CGAAP
L1: File Number: | M1: =EBNUMBER -> EB-2018-0028
L2: Exhibit: | M2: 1
L3: Tab:
L4: Schedule:
L5: Page:
L7: Date: | M7: 2018-04-27
A9: Appendix 2-BA
A10: Fixed Asset Continuity Schedule 1
A11: Energy+ (Former Cambridge and North Dumfries Hydro Inc.)
E12: Accounting Standard | F12: CGAAP
E13: Year | F13: 2015
D15: Cost | J15: Accumulated Depreciation
A16: CCA Class 2 | B16: OEB Account 3 | C16: Description 3 | D16: Opening Balance | E16: Additions 4 | F16: Disposals 6 | G16: Closing Balance | I16: Opening Balance | J16: Additions | K16: Disposals 6 | L16: Closing Balance | M16: Net Book Value
A17: 12 | B17: 1611 | C17: Computer Software (Formally known as Account 1925) | D17: 3824704.71 | E17: 1360230.13 | F17: 0 | G17: =D17+E17+F17 -> 5184934.84 | I17: -2551828.9 | J17: -685583.4 | K17: 0 | L17: =I17+J17+K17 -> -3237412.3 | M17: =G17+L17 -> 1947522.54
A18: CEC | B18: 1612 | C18: Land Rights (Formally known as Account 1906) | D18: 0 | E18: 0 | F18: 0 | G18: =D18+E18+F18 -> 0 | I18: 0 | J18: 0 | K18: 0 | L18: =I18+J18+K18 -> 0 | M18: =G18+L18 -> 0
A19: N/A | B19: 1805 | C19: Land | D19: 252923.22 | E19: 0 | F19: 0 | G19: =D19+E19+F19 -> 252923.22 | I19: 0 | J19: 0 | K19: 0 | L19: =I19+J19+K19 -> 0 | M19: =G19+L19 -> 252923.22
A20: 47 | B20: 1808 | C20: Buildings | D20: 1190197.13 | E20: 9430 | F20: 0 | G20: =D20+E20+F20 -> 1199627.13 | I20: -305327.32 | J20: -19908.36 | K20: 0 | L20: =I20+J20+K20 -> -325235.68 | M20: =G20+L20 -> 874391.45
A21: 13 | B21: 1810 | C21: Leasehold Improvements | D21: 0 | E21: 0 | F21: 0 | G21: 0 | I21: 0 | J21: 0 | K21: 0 | L21: 0 | M21: 0
A22: 47 | B22: 1815 | C22: Transformer Station Equipment >50 kV | D22: 10053773.54 | E22: 0 | F22: 0 | G22: 10053773.54 | I22: -3484801.82 | J22: -367312.36 | K22: 0 | L22: -3852114.18 | M22: 6201659.36
A23: 47 | B23: 1820 | C23: Distribution Station Equipment <50 kV | D23: 0 | E23: 0 | F23: 0 | G23: 0 | I23: 0 | J23: 0 | K23: 0 | L23: 0 | M23: 0
A24: 47 | B24: 1825 | C24: Storage Battery Equipment | D24: 0 | E24: 0 | F24: 0 | G24: 0 | I24: 0 | J24: 0 | K24: 0 | L24: 0 | M24: 0
A25: 47 | B25: 1830 | C25: Poles, Towers & Fixtures | D25: 33367460.18 | E25: 2949625.98 | F25: 0 | G25: 36317086.16 | I25: -14684767.56 | J25: -493519.24 | K25: 0 | L25: -15178286.8 | M25: 21138799.36
A26: 47 | B26: 1835 | C26: Overhead Conductors & Devices | D26: 39794542.69 | E26: 2199951.19 | F26: 0 | G26: 41994493.88 | I26: -17610903.88 | J26: -673354.5 | K26: 0 | L26: -18284258.38 | M26: 23710235.5
A27: 47 | B27: 1840 | C27: Underground Conduit | D27: 28240099.63 | E27: 1314977.35 | F27: 0 | G27: 29555076.98 | I27: -13529354.77 | J27: -223253.36 | K27: 0 | L27: -13752608.13 | M27: 15802468.85
A28: 47 | B28: 1845 | C28: Underground Conductors & Devices | D28: 41323257.19 | E28: 2249778.58 | F28: 0 | G28: 43573035.77 | I28: -19681213.53 | J28: -564202.13 | K28: 0 | L28: -20245415.66 | M28: 23327620.11
A29: 47 | B29: 1850 | C29: Line Transformers | D29: 47906599.46 | E29: 2048339.49 | F29: 0 | G29: 49954938.95 | I29: -23408766.48 | J29: -671901.35 | K29: 0 | L29: -24080667.83 | M29: 25874271.12
A30: 47 | B30: 1855 | C30: Services (Overhead & Underground) | D30: 0 | E30: 0 | F30: 0 | G30: 0 | I30: 0 | J30: 0 | K30: 0 | L30: 0 | M30: 0
A31: 47 | C31: Meters | D31: 0 | G31: 0 | I31: 0 | L31: 0 | M31: 0
A32: 47 | B32: 1860 | C32: Meters | D32: 10441980.51 | E32: 193934.27 | F32: 0 | G32: 10635914.78 | I32: -3108268.82 | J32: -676816.85 | K32: 0 | L32: -3785085.67 | M32: 6850829.11
A33: N/A | B33: 1905 | C33: Land | D33: 213796.91 | E33: 0 | F33: 0 | G33: 213796.91 | I33: 0 | J33: 0 | K33: 0 | L33: 0 | M33: 213796.91
A34: 47 | B34: 1908 | C34: Buildings & Fixtures | D34: 5804957.15 | E34: 83799.14 | F34: 0 | G34: 5888756.29 | I34: -3855958.45 | J34: -161918.24 | K34: 0 | L34: -4017876.69 | M34: 1870879.6
A35: 13 | B35: 1910 | C35: Leasehold Improvements | D35: 0 | E35: 24525.07 | F35: 0 | G35: 24525.07 | I35: 0 | J35: -8674.07 | K35: 0 | L35: -8674.07 | M35: 15851
A36: 8 | C36: Office Furniture & Equipment (10 years) | D36: 0 | G36: 0 | I36: 0 | L36: 0 | M36: 0
A37: 8 | B37: 1915 | C37: Office Furniture & Equipment | D37: 823740.61 | E37: 100812.5 | F37: 0 | G37: 924553.11 | I37: -561847.26 | J37: -40418.28 | K37: 0 | L37: -602265.54 | M37: 322287.57
A38: 10 | C38: Computer Equipment - Hardware | D38: 0 | G38: 0 | I38: 0 | L38: 0 | M38: 0
A39: 45 | C39: Computer Equip.-Hardware(Post Mar. 22/04) | D39: 0 | G39: 0 | I39: 0 | L39: 0 | M39: 0
A40: 45.1 | B40: 1920 | C40: Computer Equip.-Hardware | D40: 3072223.51 | E40: 225366.45 | F40: -13932 | G40: 3283657.96 | I40: -2305846.8 | J40: -455572.33 | K40: 13932 | L40: -2747487.13 | M40: 536170.83
A41: 10 | B41: 1930 | C41: Transportation Equipment | D41: 4798167.29 | E41: 596193.81 | F41: -521586.58 | G41: 4872774.52 | I41: -2920335.15 | J41: -276839.15 | K41: 521586.58 | L41: -2675587.72 | M41: 2197186.8
A42: 8 | B42: 1935 | C42: Stores Equipment | D42: 93728.96 | E42: 14625 | F42: 0 | G42: 108353.96 | I42: -93728.96 | J42: -731.25 | K42: 0 | L42: -94460.21 | M42: 13893.75
A43: 8 | B43: 1940 | C43: Tools, Shop & Garage Equipment | D43: 1189510.61 | E43: 45884.19 | F43: 0 | G43: 1235394.8 | I43: -810164.47 | J43: -77339.67 | K43: 0 | L43: -887504.14 | M43: 347890.66
A44: 8 | B44: 1945 | C44: Measurement & Testing Equipment | D44: 0 | E44: 0 | F44: 0 | G44: 0 | I44: 0 | J44: 0 | K44: 0 | L44: 0 | M44: 0
A45: 8 | B45: 1950 | C45: Power Operated Equipment | D45: 0 | E45: 0 | F45: 0 | G45: 0 | I45: 0 | J45: 0 | K45: 0 | L45: 0 | M45: 0
A46: 8 | C46: Communications Equipment | D46: 0 | G46: 0 | I46: 0 | L46: 0 | M46: 0
A47: 8 | B47: 1955 | C47: Communication Equipment | D47: 0 | E47: 0 | F47: 0 | G47: 0 | I47: 0 | J47: 0 | K47: 0 | L47: 0 | M47: 0
A48: 8 | B48: 1960 | C48: Miscellaneous Equipment | D48: 0 | E48: 0 | F48: 0 | G48: 0 | I48: 0 | J48: 0 | K48: 0 | L48: 0 | M48: 0
A49: 47 | B49: 1970 | C49: Load Management Controls Customer Premises | D49: 0 | E49: 0 | F49: 0 | G49: 0 | I49: 0 | J49: 0 | K49: 0 | L49: 0 | M49: 0
A50: 47 | B50: 1975 | C50: Load Management Controls Utility Premises | D50: 0 | E50: 0 | F50: 0 | G50: 0 | I50: 0 | J50: 0 | K50: 0 | L50: 0 | M50: 0
A51: 47 | B51: 1980 | C51: System Supervisor Equipment | D51: 714213.91 | E51: 0 | F51: 0 | G51: 714213.91 | I51: -714213.91 | J51: 0 | K51: 0 | L51: -714213.91 | M51: 0
A52: 47 | B52: 1985 | C52: Miscellaneous Fixed Assets | D52: 0 | E52: 0 | F52: 0 | G52: 0 | I52: 0 | J52: 0 | K52: 0 | L52: 0 | M52: 0
A53: 47 | B53: 1990 | C53: Other Tangible Property | D53: 0 | E53: 0 | F53: 0 | G53: 0 | I53: 0 | J53: 0 | K53: 0 | L53: 0 | M53: 0
A54: 47 | B54: 1995 | C54: Contributions & Grants | D54: -20639756.17 | E54: -4206572 | F54: 0 | G54: -24846328.17 | I54: 5546707.19 | J54: 484439 | K54: 0 | L54: 6031146.19 | M54: -18815181.98
B55: 2005 | C55: Property under Finance Leases | D55: 61873.21 | E55: 0 | F55: 0 | G55: 61873.21 | I55: -61873.21 | J55: 0 | K55: 0 | L55: -61873.21 | M55: 0
B56: 2010 | C56: Electric Plant Purchased or Sold | D56: 0 | E56: 0 | F56: 0 | G56: 0 | I56: 0 | J56: 0 | K56: 0 | L56: 0 | M56: 0
A57: 47 | B57: 2440 | C57: Deferred Revenue5 | D57: 0 | E57: 0 | F57: 0 | G57: 0 | I57: 0 | J57: 0 | K57: 0 | L57: 0 | M57: 0
C59: Sub-Total | D59: =SUM(D17:D58) -> 212527994.3 | E59: =SUM(E17:E58) -> 9210901.15 | F59: =SUM(F17:F58) -> -535518.58 | G59: =SUM(G17:G58) -> 221203376.8 | I59: =SUM(I17:I58) -> -104142494.1 | J59: =SUM(J17:J58) -> -4912905.54 | K59: =SUM(K17:K58) -> 535518.58 | L59: =SUM(L17:L58) -> -108519881.1 | M59: =SUM(M17:M58) -> 112683495.8
C60: Less Socialized Renewable Energy Generation Investments (input as negative) | G60: =D60+E60+F60 -> 0 | L60: =I60+J60+K60 -> 0 | M60: =G60+L60 -> 0
C61: Less Other Non Rate-Regulated Utility Assets (input as negative) | G61: 0 | L61: 0 | M61: 0
C62: Total PP&E | D62: =SUM(D59:D61) -> 212527994.3 | E62: =SUM(E59:E61) -> 9210901.15 | F62: -535518.58 | G62: 221203376.8 | I62: =SUM(I59:I61) -> -104142494.1 | J62: -4912905.54 | K62: 535518.58 | L62: -108519881.1 | M62: 112683495.8
C63: Depreciation Expense adj. from gain or loss on the retirement of assets (pool of like assets), if applicable6
C64: Total | J64: =J62+J63 -> -4912905.54
I66: Less: Fully Allocated Depreciation
A67: 10 | C67: Transportation | I67: Transportation | K67: -276839.15
A68: 8 | C68: Stores Equipment | I68: Stores Equipment | K68: 0
I69: Removal Costs | K69: 457428
I70: Net Depreciation | K70: =-(J64-K67-K68-K69) -> 5093494.39
A72: Notes:
A74: 1 | B74: Tables in the format outlined above covering all fixed asset accounts should be submitted for the Test Year, Bridge Year and all relevant historical years. At a minimum , the applicant must provide data for the earlier of: 1) all historical years back to its last rebasing; or 2) at least three years of historical actuals, in addition to Bridge Year and Test Year forecasts.
A77: 2 | B77: The "CCA Class" for fixed assets should agree with the CCA Class used for tax purposes in Tax Returns. Fixed Assets sub-components may be used where the underlying asset components are classified under multiple CCA Classes for tax purposes. If an applicant uses any different classes from those shown in the table, an explanation should be provided. (also see note 3).
A80: 3 | B80: The table may need to be customized for a utility's asset categories or for any new asset accounts announced or authorized by the Board.
A82: 4 | B82: The additions in column (E) must not include construction work in progress (CWIP).
A84: 5 | B84: Effective on the date of IFRS adoption, customer contributions will no longer be recorded in Account 1995 Contributions & Grants, but will be recorded in Account 2440, Deferred Revenues.
A86: 6 | B86: The applicant must ensure that all asset disposals have been clearly identified in the Chapter 2 Appendices for all historic, bridge and test years. Where a distributor for general financial reporting purposes under IFRS has accounted for the amount of gain or loss on the retirement of assets in a pool of like assets as a charge or credit to income, for reporting and rate application filings, the distributor shall reclassify such gains and losses as depreciation expense, and disclose the amount separately.

Sheet App.2-BA_FA Cont 2015 CND MIFRS
L1: File Number: | M1: =EBNUMBER -> EB-2018-0028
L2: Exhibit: | M2: 1
L3: Tab:
L4: Schedule:
L5: Page:
L7: Date: | M7: 2018-04-27
A9: Appendix 2-BA
A10: Fixed Asset Continuity Schedule 1
A11: Energy+ (Former Cambridge and North Dumfries Hydro Inc.)
E12: Accounting Standard | F12: MIFRS
E13: Year | F13: 2015
D15: Cost | J15: Accumulated Depreciation
A16: CCA Class 2 | B16: OEB Account 3 | C16: Description 3 | D16: Opening Balance | E16: Additions 4 | F16: Disposals 6 | G16: Closing Balance | I16: Opening Balance | J16: Additions | K16: Disposals 6 | L16: Closing Balance | M16: Net Book Value
A17: 12 | B17: 1611 | C17: Computer Software (Formally known as Account 1925) | D17: 1825664.58 | E17: 1360230.13 | F17: 0 | G17: =D17+E17+F17 -> 3185894.71 | I17: -552788.77 | J17: -685583.4 | K17: 0 | L17: =I17+J17+K17 -> -1238372.17 | M17: =G17+L17 -> 1947522.54
A18: CEC | B18: 1612 | C18: Land Rights (Formally known as Account 1906) | D18: 0 | E18: 0 | F18: 0 | G18: =D18+E18+F18 -> 0 | I18: 0 | J18: 0 | K18: 0 | L18: =I18+J18+K18 -> 0 | M18: =G18+L18 -> 0
A19: N/A | B19: 1805 | C19: Land | D19: 252923.22 | E19: 0 | F19: 0 | G19: =D19+E19+F19 -> 252923.22 | I19: 0 | J19: 0 | K19: 0 | L19: =I19+J19+K19 -> 0 | M19: =G19+L19 -> 252923.22
A20: 47 | B20: 1808 | C20: Buildings | D20: 905425.25 | E20: 9430 | F20: 0 | G20: =D20+E20+F20 -> 914855.25 | I20: -20555.44 | J20: -19908.36 | K20: 0 | L20: =I20+J20+K20 -> -40463.8 | M20: =G20+L20 -> 874391.45
A21: 13 | B21: 1810 | C21: Leasehold Improvements | D21: 0 | E21: 0 | F21: 0 | G21: 0 | I21: 0 | J21: 0 | K21: 0 | L21: 0 | M21: 0
A22: 47 | B22: 1815 | C22: Transformer Station Equipment >50 kV | D22: 6936254.1 | E22: 0 | F22: 0 | G22: 6936254.1 | I22: -367282.38 | J22: -367312.36 | K22: 0 | L22: -734594.74 | M22: 6201659.36
A23: 47 | B23: 1820 | C23: Distribution Station Equipment <50 kV | D23: 0 | E23: 0 | F23: 0 | G23: 0 | I23: 0 | J23: 0 | K23: 0 | L23: 0 | M23: 0
A24: 47 | B24: 1825 | C24: Storage Battery Equipment | D24: 0 | E24: 0 | F24: 0 | G24: 0 | I24: 0 | J24: 0 | K24: 0 | L24: 0 | M24: 0
A25: 47 | B25: 1830 | C25: Poles, Towers & Fixtures | D25: 18398816.3 | E25: 2949625.98 | F25: -373498 | G25: 20974944.28 | I25: 172104.32 | J25: -493519.24 | K25: 204866 | L25: -116548.92 | M25: 20858395.36
A26: 47 | B26: 1835 | C26: Overhead Conductors & Devices | D26: 22491702.65 | E26: 2199951.19 | F26: 0 | G26: 24691653.84 | I26: -308063.84 | J26: -673354.5 | K26: 0 | L26: -981418.34 | M26: 23710235.5
A27: 47 | B27: 1840 | C27: Underground Conduit | D27: 14915436.43 | E27: 1314977.35 | F27: 0 | G27: 16230413.78 | I27: -204691.57 | J27: -223253.36 | K27: 0 | L27: -427944.93 | M27: 15802468.85
A28: 47 | B28: 1845 | C28: Underground Conductors & Devices | D28: 22132645.68 | E28: 2249778.58 | F28: 0 | G28: 24382424.26 | I28: -490602.02 | J28: -564202.13 | K28: 0 | L28: -1054804.15 | M28: 23327620.11
A29: 47 | B29: 1850 | C29: Line Transformers | D29: 24374051.96 | E29: 2048339.49 | F29: -860274 | G29: 25562117.45 | I29: 23925.02 | J29: -671901.35 | K29: 721624 | L29: 73647.67 | M29: 25635765.12
A30: 47 | B30: 1855 | C30: Services (Overhead & Underground) | D30: 0 | E30: 0 | F30: 0 | G30: 0 | I30: 0 | J30: 0 | K30: 0 | L30: 0 | M30: 0
A31: 47 | C31: Meters | D31: 0 | G31: 0 | I31: 0 | L31: 0 | M31: 0
A32: 47 | B32: 1860 | C32: Meters | D32: 7786032.47 | E32: 193934.27 | F32: -46856 | G32: 7933110.74 | I32: -578914.78 | J32: -676816.85 | K32: 16848 | L32: -1238883.63 | M32: 6694227.11
A33: N/A | B33: 1905 | C33: Land | D33: 213796.91 | E33: 0 | F33: 0 | G33: 213796.91 | I33: 0 | J33: 0 | K33: 0 | L33: 0 | M33: 213796.91
A34: 47 | B34: 1908 | C34: Buildings & Fixtures | D34: 2116551.12 | E34: 83799.14 | F34: 0 | G34: 2200350.26 | I34: -167552.42 | J34: -161918.24 | K34: 0 | L34: -329470.66 | M34: 1870879.6
A35: 13 | B35: 1910 | C35: Leasehold Improvements | D35: 0 | E35: 24525.07 | F35: 0 | G35: 24525.07 | I35: 0 | J35: -8674.07 | K35: 0 | L35: -8674.07 | M35: 15851
A36: 8 | C36: Office Furniture & Equipment (10 years) | D36: 0 | G36: 0 | I36: 0 | L36: 0 | M36: 0
A37: 8 | B37: 1915 | C37: Office Furniture & Equipment | D37: 295993.33 | E37: 100812.5 | F37: 0 | G37: 396805.83 | I37: -34099.98 | J37: -40418.28 | K37: 0 | L37: -74518.26 | M37: 322287.57
A38: 10 | C38: Computer Equipment - Hardware | D38: 0 | G38: 0 | I38: 0 | L38: 0 | M38: 0
A39: 45 | C39: Computer Equip.-Hardware(Post Mar. 22/04) | D39: 0 | G39: 0 | I39: 0 | L39: 0 | M39: 0
A40: 45.1 | B40: 1920 | C40: Computer Equip.-Hardware | D40: 1177841.8 | E40: 225366.45 | F40: -13932 | G40: 1389276.25 | I40: -411465.09 | J40: -455572.33 | K40: 13932 | L40: -853105.42 | M40: 536170.83
A41: 10 | B41: 1930 | C41: Transportation Equipment | D41: 2082650.87 | E41: 596193.81 | F41: -521586.58 | G41: 2157258.1 | I41: -204818.73 | J41: -276839.15 | K41: 521586.58 | L41: 39928.7 | M41: 2197186.8
A42: 8 | B42: 1935 | C42: Stores Equipment | D42: 0 | E42: 14625 | F42: 0 | G42: 14625 | I42: 0 | J42: -731.25 | K42: 0 | L42: -731.25 | M42: 13893.75
A43: 8 | B43: 1940 | C43: Tools, Shop & Garage Equipment | D43: 455091.09 | E43: 45884.19 | F43: 0 | G43: 500975.28 | I43: -75744.95 | J43: -77339.67 | K43: 0 | L43: -153084.62 | M43: 347890.66
A44: 8 | B44: 1945 | C44: Measurement & Testing Equipment | D44: 0 | E44: 0 | F44: 0 | G44: 0 | I44: 0 | J44: 0 | K44: 0 | L44: 0 | M44: 0
A45: 8 | B45: 1950 | C45: Power Operated Equipment | D45: 0 | E45: 0 | F45: 0 | G45: 0 | I45: 0 | J45: 0 | K45: 0 | L45: 0 | M45: 0
A46: 8 | C46: Communications Equipment | D46: 0 | G46: 0 | I46: 0 | L46: 0 | M46: 0
A47: 8 | B47: 1955 | C47: Communication Equipment | D47: 0 | E47: 0 | F47: 0 | G47: 0 | I47: 0 | J47: 0 | K47: 0 | L47: 0 | M47: 0
A48: 8 | B48: 1960 | C48: Miscellaneous Equipment | D48: 0 | E48: 0 | F48: 0 | G48: 0 | I48: 0 | J48: 0 | K48: 0 | L48: 0 | M48: 0
A49: 47 | B49: 1970 | C49: Load Management Controls Customer Premises | D49: 0 | E49: 0 | F49: 0 | G49: 0 | I49: 0 | J49: 0 | K49: 0 | L49: 0 | M49: 0
A50: 47 | B50: 1975 | C50: Load Management Controls Utility Premises | D50: 0 | E50: 0 | F50: 0 | G50: 0 | I50: 0 | J50: 0 | K50: 0 | L50: 0 | M50: 0
A51: 47 | B51: 1980 | C51: System Supervisor Equipment | D51: 0 | E51: 0 | F51: 0 | G51: 0 | I51: 0 | J51: 0 | K51: 0 | L51: 0 | M51: 0
A52: 47 | B52: 1985 | C52: Miscellaneous Fixed Assets | D52: 0 | E52: 0 | F52: 0 | G52: 0 | I52: 0 | J52: 0 | K52: 0 | L52: 0 | M52: 0
A53: 47 | B53: 1990 | C53: Other Tangible Property | D53: 0 | E53: 0 | F53: 0 | G53: 0 | I53: 0 | J53: 0 | K53: 0 | L53: 0 | M53: 0
A54: 47 | B54: 1995 | C54: Contributions & Grants | D54: -15003887.75 | E54: 0 | F54: 0 | G54: -15003887.75 | I54: 406074.64 | J54: 430195 | K54: 0 | L54: 836269.64 | M54: -14167618.11
B55: 2005 | C55: Property under Finance Leases | D55: 0 | E55: 0 | F55: 0 | G55: 0 | I55: 0 | J55: 0 | K55: 0 | L55: 0 | M55: 0
B56: 2010 | C56: Electric Plant Purchased or Sold | D56: 0 | E56: 0 | F56: 0 | G56: 0 | I56: 0 | J56: 0 | K56: 0 | L56: 0 | M56: 0
A57: 47 | B57: 2440 | C57: Deferred Revenue5 | D57: -500448.87 | E57: -4206572 | F57: 0 | G57: -4707020.87 | I57: 5213 | J57: 54244 | K57: 0 | L57: 59457 | M57: -4647563.87
G58: 0 | L58: 0 | M58: 0
C59: Sub-Total | D59: =SUM(D17:D58) -> 110856541.1 | E59: =SUM(E17:E58) -> 9210901.15 | F59: =SUM(F17:F58) -> -1816146.58 | G59: =SUM(G17:G58) -> 118251295.7 | I59: =SUM(I17:I58) -> -2809262.99 | J59: =SUM(J17:J58) -> -4912905.54 | K59: =SUM(K17:K58) -> 1478856.58 | L59: =SUM(L17:L58) -> -6243311.95 | M59: =SUM(M17:M58) -> 112007983.8
C60: Less Socialized Renewable Energy Generation Investments (input as negative) | G60: =D60+E60+F60 -> 0 | L60: =I60+J60+K60 -> 0 | M60: =G60+L60 -> 0
C61: Less Other Non Rate-Regulated Utility Assets (input as negative) | G61: 0 | L61: 0 | M61: 0
C62: Total PP&E | D62: =SUM(D59:D61) -> 110856541.1 | E62: =SUM(E59:E61) -> 9210901.15 | F62: -1816146.58 | G62: 118251295.7 | I62: =SUM(I59:I61) -> -2809262.99 | J62: -4912905.54 | K62: 1478856.58 | L62: -6243311.95 | M62: 112007983.8
C63: Depreciation Expense adj. from gain or loss on the retirement of assets (pool of like assets), if applicable6
C64: Total | J64: =J62+J63 -> -4912905.54
I66: Less: Fully Allocated Depreciation
A67: 10 | C67: Transportation | I67: Transportation | K67: -276839.15
A68: 8 | C68: Stores Equipment | I68: Stores Equipment
I69: Removal Costs | K69: 457428
I70: Net Depreciation | K70: =-(J64-K67-K68-K69) -> 5093494.39
A72: Notes:
A74: 1 | B74: Tables in the format outlined above covering all fixed asset accounts should be submitted for the Test Year, Bridge Year and all relevant historical years. At a minimum , the applicant must provide data for the earlier of: 1) all historical years back to its last rebasing; or 2) at least three years of historical actuals, in addition to Bridge Year and Test Year forecasts.
A77: 2 | B77: The "CCA Class" for fixed assets should agree with the CCA Class used for tax purposes in Tax Returns. Fixed Assets sub-components may be used where the underlying asset components are classified under multiple CCA Classes for tax purposes. If an applicant uses any different classes from those shown in the table, an explanation should be provided. (also see note 3).
A80: 3 | B80: The table may need to be customized for a utility's asset categories or for any new asset accounts announced or authorized by the Board.
A82: 4 | B82: The additions in column (E) must not include construction work in progress (CWIP).
A84: 5 | B84: Effective on the date of IFRS adoption, customer contributions will no longer be recorded in Account 1995 Contributions & Grants, but will be recorded in Account 2440, Deferred Revenues.
A86: 6 | B86: The applicant must ensure that all asset disposals have been clearly identified in the Chapter 2 Appendices for all historic, bridge and test years. Where a distributor for general financial reporting purposes under IFRS has accounted for the amount of gain or loss on the retirement of assets in a pool of like assets as a charge or credit to income, for reporting and rate application filings, the distributor shall reclassify such gains and losses as depreciation expense, and disclose the amount separately.

Sheet App.2-BA_FA Cont E+ 2014CGAAP
L1: File Number: | M1: =EBNUMBER -> EB-2018-0028
L2: Exhibit: | M2: 1
L3: Tab:
L4: Schedule:
L5: Page:
L7: Date: | M7: 2018-04-27
A9: Appendix 2-BA
A10: Fixed Asset Continuity Schedule 1
A11: Energy+ Consolidated (Former Cambridge and North Dumfries Hydro Inc. and Brant County Power Inc.)
E12: Accounting Standard | F12: CGAAP
E13: Year | F13: 2014
D15: Cost | J15: Accumulated Depreciation
A16: CCA Class 2 | B16: OEB Account 3 | C16: Description 3 | D16: Opening Balance | E16: Additions 4 | F16: Disposals 6 | G16: Closing Balance | I16: Opening Balance | J16: Additions | K16: Disposals 6 | L16: Closing Balance | M16: Net Book Value
A17: 12 | B17: 1611 | C17: Computer Software (Formally known as Account 1925) | D17: 3524730 | E17: 948115.13 | F17: 0 | G17: =D17+E17+F17 -> 4472845.13 | I17: -2438148.989 | J17: -613532.001 | K17: 0 | L17: =I17+J17+K17 -> -3051680.99 | M17: =G17+L17 -> 1421164.14
A18: CEC | B18: 1612 | C18: Land Rights (Formally known as Account 1906) | D18: 0 | E18: 0 | F18: 0 | G18: =D18+E18+F18 -> 0 | I18: 0 | J18: 0 | K18: 0 | L18: =I18+J18+K18 -> 0 | M18: =G18+L18 -> 0
A19: N/A | B19: 1805 | C19: Land | D19: 347842.84 | E19: 0 | F19: 0 | G19: =D19+E19+F19 -> 347842.84 | I19: 0 | J19: 0 | K19: 0 | L19: =I19+J19+K19 -> 0 | M19: =G19+L19 -> 347842.84
A20: 47 | B20: 1808 | C20: Buildings | D20: 2002008.89 | E20: 0 | F20: 0 | G20: =D20+E20+F20 -> 2002008.89 | I20: -560085.6898 | J20: -34673.44 | K20: 0 | L20: =I20+J20+K20 -> -594759.1298 | M20: =G20+L20 -> 1407249.76
A21: 13 | B21: 1810 | C21: Leasehold Improvements | D21: 0 | E21: 0 | F21: 0 | G21: 0 | I21: 0 | J21: 0 | K21: 0 | L21: 0 | M21: 0
A22: 47 | B22: 1815 | C22: Transformer Station Equipment >50 kV | D22: 12563882.54 | E22: 0 | F22: 0 | G22: 12563882.54 | I22: -3613327.399 | J22: -421725.38 | K22: 0 | L22: -4035052.779 | M22: 8528829.761
A23: 47 | B23: 1820 | C23: Distribution Station Equipment <50 kV | D23: 124226.26 | E23: 0 | F23: 0 | G23: 124226.26 | I23: -124226.26 | J23: 0 | K23: 0 | L23: -124226.26 | M23: 0
A24: 47 | B24: 1825 | C24: Storage Battery Equipment | D24: 0 | E24: 0 | F24: 0 | G24: 0 | I24: 0 | J24: 0 | K24: 0 | L24: 0 | M24: 0
A25: 47 | B25: 1830 | C25: Poles, Towers & Fixtures | D25: 38751163.96 | E25: 2466212.55 | F25: 0 | G25: 41217376.51 | I25: -17224395.82 | J25: -657244.68 | K25: 477106 | L25: -17404534.5 | M25: 23812842.01
A26: 47 | B26: 1835 | C26: Overhead Conductors & Devices | D26: 43393276.51 | E26: 2381987.37 | F26: 0 | G26: 45775263.88 | I26: -19205610.83 | J26: -719375.5706 | K26: 319116 | L26: -19605870.4 | M26: 26169393.48
A27: 47 | B27: 1840 | C27: Underground Conduit | D27: 28334297.11 | E27: 561402.68 | F27: 0 | G27: 28895699.79 | I27: -13596716.97 | J27: -218534.57 | K27: 0 | L27: -13815251.54 | M27: 15080448.26
A28: 47 | B28: 1845 | C28: Underground Conductors & Devices | D28: 42791841.09 | E28: 1201122.44 | F28: 0 | G28: 43992963.53 | I28: -20424933.11 | J28: -560687.1934 | K28: 33404 | L28: -20952216.3 | M28: 23040747.23
A29: 47 | B29: 1850 | C29: Line Transformers | D29: 51736852.77 | E29: 1875605.65 | F29: 0 | G29: 53612458.42 | I29: -25207209.29 | J29: -762119.98 | K29: 142627 | L29: -25826702.27 | M29: 27785756.15
A30: 47 | B30: 1855 | C30: Services (Overhead & Underground) | D30: 2786109.98 | E30: 59973.45 | F30: 0 | G30: 2846083.43 | I30: -1406141.432 | J30: -49653 | K30: 0 | L30: -1455794.432 | M30: 1390288.998
A31: 47 | C31: Meters | D31: 0 | E31: 0 | F31: 0 | G31: 0 | I31: 0 | J31: 0 | K31: 0 | L31: 0 | M31: 0
A32: 47 | B32: 1860 | C32: Meters | D32: 12866744.36 | E32: 295526.61 | F32: 0 | G32: 13162270.97 | I32: -3344168.808 | J32: -882251.78 | K32: 0 | L32: -4226420.588 | M32: 8935850.379
A33: N/A | B33: 1905 | C33: Land | D33: 301591.91 | E33: 0 | F33: 0 | G33: 301591.91 | I33: 0 | J33: 0 | K33: 0 | L33: 0 | M33: 301591.91
A34: 47 | B34: 1908 | C34: Buildings & Fixtures | D34: 6098101.44 | E34: 229629.23 | F34: 0 | G34: 6327730.67 | I34: -3814221.734 | J34: -184100.42 | K34: 0 | L34: -3998322.154 | M34: 2329408.516
A35: 13 | B35: 1910 | C35: Leasehold Improvements | D35: 0 | E35: 0 | F35: 0 | G35: 0 | I35: 0 | J35: 0 | K35: 0 | L35: 0 | M35: 0
A36: 8 | C36: Office Furniture & Equipment (10 years) | D36: 0 | E36: 0 | F36: 0 | G36: 0 | I36: 0 | J36: 0 | K36: 0 | L36: 0 | M36: 0
A37: 8 | B37: 1915 | C37: Office Furniture & Equipment | D37: 958839.424 | E37: 51558.31 | F37: 0 | G37: 1010397.734 | I37: -652917.1385 | J37: -44657.98 | K37: 0 | L37: -697575.1185 | M37: 312822.6155
A38: 10 | C38: Computer Equipment - Hardware | D38: 0 | E38: 0 | F38: 0 | G38: 0 | I38: 0 | J38: 0 | K38: 0 | L38: 0 | M38: 0
A39: 45 | C39: Computer Equip.-Hardware(Post Mar. 22/04) | D39: 0 | E39: 0 | F39: 0 | G39: 0 | I39: 0 | J39: 0 | K39: 0 | L39: 0 | M39: 0
A40: 45.1 | B40: 1920 | C40: Computer Equip.-Hardware | D40: 4010165.6 | E40: 598258.37 | F40: -661156.32 | G40: 3947267.65 | I40: -2623102.253 | J40: -553836.71 | K40: 29498.62 | L40: -3147440.343 | M40: 799827.307
A41: 10 | B41: 1930 | C41: Transportation Equipment | D41: 5561706.08 | E41: 848073.62 | F41: -238754.42 | G41: 6171025.28 | I41: -3375384.619 | J41: -358563.817 | K41: 238754.42 | L41: -3495194.016 | M41: 2675831.264
A42: 8 | B42: 1935 | C42: Stores Equipment | D42: 97457.54 | E42: 0 | F42: 0 | G42: 97457.54 | I42: -96683.54 | J42: -516 | K42: 0 | L42: -97199.54 | M42: 258
A43: 8 | B43: 1940 | C43: Tools, Shop & Garage Equipment | D43: 1699543.163 | E43: 55128.97 | F43: 0 | G43: 1754672.133 | I43: -973997.888 | J43: -169744.95 | K43: 0 | L43: -1143742.838 | M43: 610929.295
A44: 8 | B44: 1945 | C44: Measurement & Testing Equipment | D44: 64529.154 | E44: 0 | F44: 0 | G44: 64529.154 | I44: -53367.96367 | J44: -3306.265 | K44: 0 | L44: -56674.22867 | M44: 7854.925333
A45: 8 | B45: 1950 | C45: Power Operated Equipment | D45: 2707.97 | E45: 12741.86 | F45: 0 | G45: 15449.83 | I45: -2699.67 | J45: -1672.086 | K45: 0 | L45: -4371.756 | M45: 11078.074
A46: 8 | C46: Communications Equipment | D46: 0 | E46: 0 | F46: 0 | G46: 0 | I46: 0 | J46: 0 | K46: 0 | L46: 0 | M46: 0
A47: 8 | B47: 1955 | C47: Communication Equipment | D47: 40579.902 | E47: 0 | F47: 0 | G47: 40579.902 | I47: -40067.513 | J47: -338 | K47: 0 | L47: -40405.513 | M47: 174.389
A48: 8 | B48: 1960 | C48: Miscellaneous Equipment | D48: 300309.24 | E48: 0 | F48: -125770.65 | G48: 174538.59 | I48: -67113.13472 | J48: -13074.02222 | K48: 34220 | L48: -45967.15694 | M48: 128571.4331
A49: 47 | B49: 1970 | C49: Load Management Controls Customer Premises | D49: 0 | E49: 0 | F49: 0 | G49: 0 | I49: 0 | J49: 0 | K49: 0 | L49: 0 | M49: 0
A50: 47 | B50: 1975 | C50: Load Management Controls Utility Premises | D50: 0 | E50: 0 | F50: 0 | G50: 0 | I50: 0 | J50: 0 | K50: 0 | L50: 0 | M50: 0
A51: 47 | B51: 1980 | C51: System Supervisor Equipment | D51: 714213.91 | E51: 0 | F51: 0 | G51: 714213.91 | I51: -714213.91 | J51: 0 | K51: 0 | L51: -714213.91 | M51: 0
A52: 47 | B52: 1985 | C52: Miscellaneous Fixed Assets | D52: 0 | E52: 0 | F52: 0 | G52: 0 | I52: 0 | J52: 0 | K52: 0 | L52: 0 | M52: 0
A53: 47 | B53: 1990 | C53: Other Tangible Property | D53: 0 | E53: 0 | F53: 0 | G53: 0 | I53: 0 | J53: 0 | K53: 0 | L53: 0 | M53: 0
A54: 47 | B54: 1995 | C54: Contributions & Grants | D54: -22085361.25 | E54: -756146.7 | F54: 0 | G54: -22841507.95 | I54: 5914949.705 | J54: 494243.64 | K54: 0 | L54: 6409193.345 | M54: -16432314.61
B55: 2005 | C55: Property Under Finance Leases | D55: 61873.21 | E55: 0 | F55: 0 | G55: 61873.21 | I55: -61873.21 | J55: 0 | K55: 0 | L55: =I55+J55+K55 -> -61873.21 | M55: =G55+L55 -> 0
B56: 2010 | C56: Electric Plant Purchased or Sold | D56: 41000 | E56: 0 | F56: 0 | G56: 41000 | I56: -14332.17391 | J56: -1213 | K56: 0 | L56: =I56+J56+K56 -> -15545.17391 | M56: =G56+L56 -> 25454.82609
A57: 47 | B57: 2440 | C57: Deferred Revenue5 | D57: 0 | E57: 0 | F57: 0 | G57: 0 | I57: 0 | J57: 0 | K57: 0 | L57: 0 | M57: 0
C59: Sub-Total | D59: =SUM(D17:D58) -> 237090233.6 | E59: =SUM(E17:E58) -> 10829189.54 | F59: =SUM(F17:F58) -> -1025681.39 | G59: =SUM(G17:G58) -> 246893741.8 | I59: =SUM(I17:I58) -> -113719989.6 | J59: =SUM(J17:J58) -> -5756577.205 | K59: =SUM(K17:K58) -> 1274726.04 | L59: =SUM(L17:L58) -> -118201840.8 | M59: =SUM(M17:M58) -> 128691900.9
C60: Less Socialized Renewable Energy Generation Investments (input as negative) | G60: =D60+E60+F60 -> 0 | L60: =I60+J60+K60 -> 0 | M60: =G60+L60 -> 0
C61: Less Other Non Rate-Regulated Utility Assets (input as negative) | G61: 0 | L61: 0 | M61: 0
C62: Total PP&E | D62: =SUM(D59:D61) -> 237090233.6 | E62: =SUM(E59:E61) -> 10829189.54 | F62: -1025681.39 | G62: 246893741.8 | I62: =SUM(I59:I61) -> -113719989.6 | J62: -5756577.205 | K62: 1274726.04 | L62: -118201840.8 | M62: 128691900.9
C63: Depreciation Expense adj. from gain or loss on the retirement of assets (pool of like assets), if applicable6
C64: Total | J64: =J62+J63 -> -5756577.205
I66: Less: Fully Allocated Depreciation
A67: 10 | C67: Transportation | I67: Transportation | K67: -358563.817
A68: 8 | C68: Stores Equipment | I68: Stores Equipment | K68: -112906.3732
I69: Stranded Meter Adjustment | K69: 312120
I70: Removal Costs | K70: 354855
I71: Net Depreciation | K71: =-(J64-K67-K68-K69-K70) -> 5952082.015
A73: Notes:
A75: 1 | B75: Tables in the format outlined above covering all fixed asset accounts should be submitted for the Test Year, Bridge Year and all relevant historical years. At a minimum , the applicant must provide data for the earlier of: 1) all historical years back to its last rebasing; or 2) at least three years of historical actuals, in addition to Bridge Year and Test Year forecasts.
A78: 2 | B78: The "CCA Class" for fixed assets should agree with the CCA Class used for tax purposes in Tax Returns. Fixed Assets sub-components may be used where the underlying asset components are classified under multiple CCA Classes for tax purposes. If an applicant uses any different classes from those shown in the table, an explanation should be provided. (also see note 3).
A81: 3 | B81: The table may need to be customized for a utility's asset categories or for any new asset accounts announced or authorized by the Board.
A83: 4 | B83: The additions in column (E) must not include construction work in progress (CWIP).
A85: 5 | B85: Effective on the date of IFRS adoption, customer contributions will no longer be recorded in Account 1995 Contributions & Grants, but will be recorded in Account 2440, Deferred Revenues.
A87: 6 | B87: The applicant must ensure that all asset disposals have been clearly identified in the Chapter 2 Appendices for all historic, bridge and test years. Where a distributor for general financial reporting purposes under IFRS has accounted for the amount of gain or loss on the retirement of assets in a pool of like assets as a charge or credit to income, for reporting and rate application filings, the distributor shall reclassify such gains and losses as depreciation expense, and disclose the amount separately.

Sheet App.2-BA_FA Cont E+ 2015CGAAP
L1: File Number: | M1: =EBNUMBER -> EB-2018-0028
L2: Exhibit: | M2: 1
L3: Tab:
L4: Schedule:
L5: Page:
L7: Date: | M7: 2018-04-27
A9: Appendix 2-BA
A10: Fixed Asset Continuity Schedule 1
A11: Energy+ Consolidated (Former Cambridge and North Dumfries Hydro Inc. and Brant County Power Inc.)
E12: Accounting Standard | F12: CGAAP
E13: Year | F13: 2015
D15: Cost | J15: Accumulated Depreciation
A16: CCA Class 2 | B16: OEB Account 3 | C16: Description 3 | D16: Opening Balance | E16: Additions 4 | F16: Disposals 6 | G16: Closing Balance | I16: Opening Balance | J16: Additions | K16: Disposals 6 | L16: Closing Balance | M16: Net Book Value
A17: 12 | B17: 1611 | C17: Computer Software (Formally known as Account 1925) | D17: 4472845.13 | E17: 1362425.74 | F17: 0 | G17: =D17+E17+F17 -> 5835270.87 | I17: -3051680.99 | J17: -746849.659 | K17: 0 | L17: =I17+J17+K17 -> -3798530.649 | M17: =G17+L17 -> 2036740.221
A18: CEC | B18: 1612 | C18: Land Rights (Formally known as Account 1906) | D18: 0 | E18: 0 | F18: 0 | G18: =D18+E18+F18 -> 0 | I18: 0 | J18: 0 | K18: 0 | L18: =I18+J18+K18 -> 0 | M18: =G18+L18 -> 0
A19: N/A | B19: 1805 | C19: Land | D19: 347842.84 | E19: 0 | F19: 0 | G19: =D19+E19+F19 -> 347842.84 | I19: 0 | J19: 0 | K19: 0 | L19: =I19+J19+K19 -> 0 | M19: =G19+L19 -> 347842.84
A20: 47 | B20: 1808 | C20: Buildings | D20: 2002008.89 | E20: 9430 | F20: 0 | G20: =D20+E20+F20 -> 2011438.89 | I20: -594759.1298 | J20: -34025.77923 | K20: 0 | L20: =I20+J20+K20 -> -628784.909 | M20: =G20+L20 -> 1382653.981
A21: 13 | B21: 1810 | C21: Leasehold Improvements | D21: 0 | E21: 0 | F21: 0 | G21: 0 | I21: 0 | J21: 0 | K21: 0 | L21: 0 | M21: 0
A22: 47 | B22: 1815 | C22: Transformer Station Equipment >50 kV | D22: 12563882.54 | E22: 385941.95 | F22: 0 | G22: 12949824.49 | I22: -4035052.779 | J22: -426041.1639 | K22: 0 | L22: -4461093.942 | M22: 8488730.548
A23: 47 | B23: 1820 | C23: Distribution Station Equipment <50 kV | D23: 124226.26 | E23: 0 | F23: 0 | G23: 124226.26 | I23: -124226.26 | J23: 0 | K23: 0 | L23: -124226.26 | M23: 0
A24: 47 | B24: 1825 | C24: Storage Battery Equipment | D24: 0 | E24: 0 | F24: 0 | G24: 0 | I24: 0 | J24: 0 | K24: 0 | L24: 0 | M24: 0
A25: 47 | B25: 1830 | C25: Poles, Towers & Fixtures | D25: 41217376.51 | E25: 3614590.65 | F25: 0 | G25: 44831967.16 | I25: -17404534.5 | J25: -727444.3486 | K25: 0 | L25: -18131978.85 | M25: 26699988.31
A26: 47 | B26: 1835 | C26: Overhead Conductors & Devices | D26: 45775263.88 | E26: 2801780.81 | F26: 0 | G26: 48577044.69 | I26: -19605870.4 | J26: -773213.1676 | K26: 0 | L26: -20379083.57 | M26: 28197961.12
A27: 47 | B27: 1840 | C27: Underground Conduit | D27: 28895699.79 | E27: 1322950.01 | F27: 0 | G27: 30218649.8 | I27: -13815251.54 | J27: -237821.02 | K27: 0 | L27: -14053072.56 | M27: 16165577.25
A28: 47 | B28: 1845 | C28: Underground Conductors & Devices | D28: 43992963.53 | E28: 2314665.82 | F28: 0 | G28: 46307629.35 | I28: -20952216.3 | J28: -602471.1261 | K28: 0 | L28: -21554687.43 | M28: 24752941.92
A29: 47 | B29: 1850 | C29: Line Transformers | D29: 53612458.42 | E29: 2460359.6 | F29: 0 | G29: 56072818.02 | I29: -25826702.27 | J29: -805420.6134 | K29: 0 | L29: -26632122.89 | M29: 29440695.13
A30: 47 | B30: 1855 | C30: Services (Overhead & Underground) | D30: 2846083.43 | E30: 71241.03 | F30: 0 | G30: 2917324.46 | I30: -1455794.432 | J30: -51033.52553 | K30: 0 | L30: -1506827.958 | M30: 1410496.502
A31: 47 | C31: Meters | D31: 0 | E31: 0 | F31: 0 | G31: 0 | I31: 0 | J31: 0 | K31: 0 | L31: 0 | M31: 0
A32: 47 | B32: 1860 | C32: Meters | D32: 13162270.97 | E32: 242967.19 | F32: 0 | G32: 13405238.16 | I32: -4226420.588 | J32: -888959.3768 | K32: 0 | L32: -5115379.965 | M32: 8289858.193
A33: N/A | B33: 1905 | C33: Land | D33: 301591.91 | E33: 0 | F33: 0 | G33: 301591.91 | I33: 0 | J33: 0 | K33: 0 | L33: 0 | M33: 301591.91
A34: 47 | B34: 1908 | C34: Buildings & Fixtures | D34: 6327730.67 | E34: 90179.14 | F34: 0 | G34: 6417909.81 | I34: -3998322.154 | J34: -178174.3097 | K34: 0 | L34: -4176496.464 | M34: 2241413.346
A35: 13 | B35: 1910 | C35: Leasehold Improvements | D35: 0 | E35: 24525.07 | F35: 0 | G35: 24525.07 | I35: 0 | J35: -8674.07 | K35: 0 | L35: -8674.07 | M35: 15851
A36: 8 | C36: Office Furniture & Equipment (10 years) | D36: 0 | E36: 0 | F36: 0 | G36: 0 | I36: 0 | J36: 0 | K36: 0 | L36: 0 | M36: 0
A37: 8 | B37: 1915 | C37: Office Furniture & Equipment | D37: 1010397.734 | E37: 107442.5 | F37: 0 | G37: 1117840.234 | I37: -697575.1185 | J37: -50954.094 | K37: 0 | L37: -748529.2125 | M37: 369311.0215
A38: 10 | C38: Computer Equipment - Hardware | D38: 0 | E38: 0 | F38: 0 | G38: 0 | I38: 0 | J38: 0 | K38: 0 | L38: 0 | M38: 0
A39: 45 | C39: Computer Equip.-Hardware(Post Mar. 22/04) | D39: 0 | E39: 0 | F39: 0 | G39: 0 | I39: 0 | J39: 0 | K39: 0 | L39: 0 | M39: 0
A40: 45.1 | B40: 1920 | C40: Computer Equip.-Hardware | D40: 3947267.65 | E40: 227886.65 | F40: -13932 | G40: 4161222.3 | I40: -3147440.343 | J40: -468078.555 | K40: 13932 | L40: -3601586.898 | M40: 559635.402
A41: 10 | B41: 1930 | C41: Transportation Equipment | D41: 6171025.28 | E41: 596193.81 | F41: -521586.58 | G41: 6245632.51 | I41: -3495194.016 | J41: -417100.114 | K41: 521586.58 | L41: -3390707.55 | M41: 2854924.96
A42: 8 | B42: 1935 | C42: Stores Equipment | D42: 97457.54 | E42: 14625 | F42: 0 | G42: 112082.54 | I42: -97199.54 | J42: -989.25 | K42: 0 | L42: -98188.79 | M42: 13893.75
A43: 8 | B43: 1940 | C43: Tools, Shop & Garage Equipment | D43: 1754672.133 | E43: 66210.53 | F43: -343008 | G43: 1477874.663 | I43: -1143742.838 | J43: -87348.1475 | K43: 161985 | L43: -1069105.985 | M43: 408768.6775
A44: 8 | B44: 1945 | C44: Measurement & Testing Equipment | D44: 64529.154 | E44: 0 | F44: 0 | G44: 64529.154 | I44: -56674.22867 | J44: -11306.265 | K44: 0 | L44: -67980.49367 | M44: -3451.339667
A45: 8 | B45: 1950 | C45: Power Operated Equipment | D45: 15449.83 | E45: 0 | F45: 0 | G45: 15449.83 | I45: -4371.756 | J45: -2946.28 | K45: 0 | L45: -7318.036 | M45: 8131.794
A46: 8 | C46: Communications Equipment | D46: 0 | E46: 0 | F46: 0 | G46: 0 | I46: 0 | J46: 0 | K46: 0 | L46: 0 | M46: 0
A47: 8 | B47: 1955 | C47: Communication Equipment | D47: 40579.902 | E47: 0 | F47: 0 | G47: 40579.902 | I47: -40405.513 | J47: -8058.38 | K47: 0 | L47: -48463.893 | M47: -7883.991
A48: 8 | B48: 1960 | C48: Miscellaneous Equipment | D48: 174538.59 | E48: 179 | F48: 197293 | G48: 372010.59 | I48: -45967.15694 | J48: -103677.2075 | K48: -142963 | L48: -292607.3644 | M48: 79403.22556
A49: 47 | B49: 1970 | C49: Load Management Controls Customer Premises | D49: 0 | E49: 0 | F49: 0 | G49: 0 | I49: 0 | J49: 0 | K49: 0 | L49: 0 | M49: 0
A50: 47 | B50: 1975 | C50: Load Management Controls Utility Premises | D50: 0 | E50: 0 | F50: 0 | G50: 0 | I50: 0 | J50: 0 | K50: 0 | L50: 0 | M50: 0
A51: 47 | B51: 1980 | C51: System Supervisor Equipment | D51: 714213.91 | E51: 0 | F51: 0 | G51: 714213.91 | I51: -714213.91 | J51: 0 | K51: 0 | L51: -714213.91 | M51: 0
A52: 47 | B52: 1985 | C52: Miscellaneous Fixed Assets | D52: 0 | E52: 0 | F52: 0 | G52: 0 | I52: 0 | J52: 0 | K52: 0 | L52: 0 | M52: 0
A53: 47 | B53: 1990 | C53: Other Tangible Property | D53: 0 | E53: 0 | F53: 0 | G53: 0 | I53: 0 | J53: 0 | K53: 0 | L53: 0 | M53: 0
A54: 47 | B54: 1995 | C54: Contributions & Grants | D54: -22841507.95 | E54: -4496480.64 | F54: 0 | G54: -27337988.59 | I54: 6409193.345 | J54: 578307.228 | K54: 0 | L54: 6987500.573 | M54: -20350488.02
B55: 2005 | C55: Property Under Finance Leases | D55: 61873.21 | E55: 0 | F55: 0 | G55: 61873.21 | I55: -61873.21 | J55: 0 | K55: 0 | L55: -61873.21 | M55: 0
B56: 2010 | C56: Electric Plant Purchased or Sold | D56: 41000 | E56: 0 | F56: 0 | G56: 41000 | I56: -15545.17391 | J56: -1212.173913 | K56: 0 | L56: -16757.34783 | M56: 24242.65217
A57: 47 | B57: 2440 | C57: Deferred Revenue5 | D57: 0 | E57: 0 | F57: 0 | G57: 0 | I57: 0 | J57: 0 | K57: 0 | L57: 0 | M57: 0
C59: Sub-Total | D59: =SUM(D17:D58) -> 246893741.8 | E59: =SUM(E17:E58) -> 11217113.86 | F59: =SUM(F17:F58) -> -681233.58 | G59: =SUM(G17:G58) -> 257429622 | I59: =SUM(I17:I58) -> -118201840.8 | J59: =SUM(J17:J58) -> -6053491.399 | K59: =SUM(K17:K58) -> 554540.58 | L59: =SUM(L17:L58) -> -123700791.6 | M59: =SUM(M17:M58) -> 133728830.4
C60: Less Socialized Renewable Energy Generation Investments (input as negative) | G60: =D60+E60+F60 -> 0 | L60: =I60+J60+K60 -> 0 | M60: =G60+L60 -> 0
C61: Less Other Non Rate-Regulated Utility Assets (input as negative) | G61: 0 | L61: 0 | M61: 0
C62: Total PP&E | D62: =SUM(D59:D61) -> 246893741.8 | E62: =SUM(E59:E61) -> 11217113.86 | F62: -681233.58 | G62: 257429622 | I62: =SUM(I59:I61) -> -118201840.8 | J62: -6053491.399 | K62: 554540.58 | L62: -123700791.6 | M62: 133728830.4
C63: Depreciation Expense adj. from gain or loss on the retirement of assets (pool of like assets), if applicable6
C64: Total | J64: =J62+J63 -> -6053491.399
I66: Less: Fully Allocated Depreciation
A67: 10 | C67: Transportation | I67: Transportation | K67: -417100.114
A68: 8 | C68: Stores Equipment | I68: Stores Equipment
I69: Net Depreciation | K69: =-(J64-K67) -> 5636391.285
A71: Notes:
A73: 1 | B73: Tables in the format outlined above covering all fixed asset accounts should be submitted for the Test Year, Bridge Year and all relevant historical years. At a minimum , the applicant must provide data for the earlier of: 1) all historical years back to its last rebasing; or 2) at least three years of historical actuals, in addition to Bridge Year and Test Year forecasts.
A76: 2 | B76: The "CCA Class" for fixed assets should agree with the CCA Class used for tax purposes in Tax Returns. Fixed Assets sub-components may be used where the underlying asset components are classified under multiple CCA Classes for tax purposes. If an applicant uses any different classes from those shown in the table, an explanation should be provided. (also see note 3).
A79: 3 | B79: The table may need to be customized for a utility's asset categories or for any new asset accounts announced or authorized by the Board.
A81: 4 | B81: The additions in column (E) must not include construction work in progress (CWIP).
A83: 5 | B83: Effective on the date of IFRS adoption, customer contributions will no longer be recorded in Account 1995 Contributions & Grants, but will be recorded in Account 2440, Deferred Revenues.
A85: 6 | B85: The applicant must ensure that all asset disposals have been clearly identified in the Chapter 2 Appendices for all historic, bridge and test years. Where a distributor for general financial reporting purposes under IFRS has accounted for the amount of gain or loss on the retirement of assets in a pool of like assets as a charge or credit to income, for reporting and rate application filings, the distributor shall reclassify such gains and losses as depreciation expense, and disclose the amount separately.

Sheet App.2-BA_FA Cont E+ 2016CGAAP
L1: File Number: | M1: =EBNUMBER -> EB-2018-0028
L2: Exhibit: | M2: 1
L3: Tab:
L4: Schedule:
L5: Page:
L7: Date: | M7: 2018-04-27
A9: Appendix 2-BA
A10: Fixed Asset Continuity Schedule 1
A11: Energy+ Consolidated (Former Cambridge and North Dumfries Hydro Inc. and Brant County Power Inc.)
E12: Accounting Standard | F12: CGAAP
E13: Year | F13: 2016
D15: Cost | J15: Accumulated Depreciation
A16: CCA Class 2 | B16: OEB Account 3 | C16: Description 3 | D16: Opening Balance | E16: Additions 4 | F16: Disposals 6 | G16: Closing Balance | I16: Opening Balance | J16: Additions | K16: Disposals 6 | L16: Closing Balance | M16: Net Book Value
A17: 12 | B17: 1611 | C17: Computer Software (Formally known as Account 1925) | D17: 5835270.87 | E17: 1069385.75 | F17: 0 | G17: =D17+E17+F17 -> 6904656.62 | I17: -3798530.649 | J17: -839876.36 | K17: 0 | L17: =I17+J17+K17 -> -4638407.009 | M17: =G17+L17 -> 2266249.611
A18: CEC | B18: 1612 | C18: Land Rights (Formally known as Account 1906) | D18: 0 | E18: 0 | F18: 0 | G18: =D18+E18+F18 -> 0 | I18: 0 | J18: 0 | K18: 0 | L18: =I18+J18+K18 -> 0 | M18: =G18+L18 -> 0
A19: N/A | B19: 1805 | C19: Land | D19: 347842.84 | E19: 0 | F19: 0 | G19: =D19+E19+F19 -> 347842.84 | I19: 0 | J19: 0 | K19: 0 | L19: =I19+J19+K19 -> 0 | M19: =G19+L19 -> 347842.84
A20: 47 | B20: 1808 | C20: Buildings | D20: 2011438.89 | E20: 20 | F20: 0 | G20: =D20+E20+F20 -> 2011458.89 | I20: -628784.909 | J20: -30957.11 | K20: 0 | L20: =I20+J20+K20 -> -659742.019 | M20: =G20+L20 -> 1351716.871
A21: 13 | B21: 1810 | C21: Leasehold Improvements | D21: 0 | E21: 0 | F21: 0 | G21: 0 | I21: 0 | J21: 0 | K21: 0 | L21: 0 | M21: 0
A22: 47 | B22: 1815 | C22: Transformer Station Equipment >50 kV | D22: 12949824.49 | E22: 61985 | F22: 0 | G22: 13011809.49 | I22: -4461093.942 | J22: -433366.22 | K22: 0 | L22: -4894460.162 | M22: 8117349.328
A23: 47 | B23: 1820 | C23: Distribution Station Equipment <50 kV | D23: 124226.26 | E23: 0 | F23: 0 | G23: 124226.26 | I23: -124226.26 | J23: 0 | K23: 0 | L23: -124226.26 | M23: 0
A24: 47 | B24: 1825 | C24: Storage Battery Equipment | D24: 0 | E24: 0 | F24: 0 | G24: 0 | I24: 0 | J24: 0 | K24: 0 | L24: 0 | M24: 0
A25: 47 | B25: 1830 | C25: Poles, Towers & Fixtures | D25: 44831967.16 | E25: 4001764.08 | F25: 0 | G25: 48833731.24 | I25: -18131978.85 | J25: -454413.7452 | K25: 0 | L25: -18586392.6 | M25: 30247338.64
A26: 47 | B26: 1835 | C26: Overhead Conductors & Devices | D26: 48577044.69 | E26: 3652752 | F26: 0 | G26: 52229796.69 | I26: -20379083.57 | J26: -815866.4421 | K26: 0 | L26: -21194950.01 | M26: 31034846.68
A27: 47 | B27: 1840 | C27: Underground Conduit | D27: 30218649.8 | E27: 1641358.07 | F27: 0 | G27: 31860007.87 | I27: -14053072.56 | J27: -233372.79 | K27: 0 | L27: -14286445.35 | M27: 17573562.53
A28: 47 | B28: 1845 | C28: Underground Conductors & Devices | D28: 46307629.35 | E28: 2241115.3 | F28: 0 | G28: 48548744.65 | I28: -21554687.43 | J28: -611389.7621 | K28: 0 | L28: -22166077.19 | M28: 26382667.46
A29: 47 | B29: 1850 | C29: Line Transformers | D29: 56072818.02 | E29: 2420999.46 | F29: 0 | G29: 58493817.48 | I29: -26632122.89 | J29: -695097.7917 | K29: 0 | L29: -27327220.68 | M29: 31166596.8
A30: 47 | B30: 1855 | C30: Services (Overhead & Underground) | D30: 2917324.46 | E30: 0 | F30: 0 | G30: 2917324.46 | I30: -1506827.958 | J30: -8451.98 | K30: 0 | L30: -1515279.938 | M30: 1402044.522
A31: 47 | C31: Meters | D31: 0 | E31: 0 | F31: 0 | G31: 0 | I31: 0 | J31: 0 | K31: 0 | L31: 0 | M31: 0
A32: 47 | B32: 1860 | C32: Meters | D32: 13405238.16 | E32: 266978.65 | F32: 0 | G32: 13672216.81 | I32: -5115379.965 | J32: -1114981.93 | K32: 0 | L32: -6230361.895 | M32: 7441854.913
A33: N/A | B33: 1905 | C33: Land | D33: 301591.91 | E33: 0 | F33: -168.5 | G33: 301423.41 | I33: 0 | J33: 0 | K33: 0 | L33: 0 | M33: 301423.41
A34: 47 | B34: 1908 | C34: Buildings & Fixtures | D34: 6417909.81 | E34: 26749.71 | F34: 0 | G34: 6444659.52 | I34: -4176496.464 | J34: -204937.19 | K34: 0 | L34: -4381433.654 | M34: 2063225.866
A35: 13 | B35: 1910 | C35: Leasehold Improvements | D35: 24525.07 | E35: 0 | F35: 0 | G35: 24525.07 | I35: -8674.07 | J35: -15851 | K35: 0 | L35: -24525.07 | M35: 0
A36: 8 | C36: Office Furniture & Equipment (10 years) | D36: 0 | E36: 0 | F36: 0 | G36: 0 | I36: 0 | J36: 0 | K36: 0 | L36: 0 | M36: 0
A37: 8 | B37: 1915 | C37: Office Furniture & Equipment | D37: 1117840.234 | E37: 31289.46 | F37: 0 | G37: 1149129.694 | I37: -748529.2125 | J37: -60456.11 | K37: 0 | L37: -808985.3225 | M37: 340144.3715
A38: 10 | C38: Computer Equipment - Hardware | D38: 0 | E38: 0 | F38: 0 | G38: 0 | I38: 0 | J38: 0 | K38: 0 | L38: 0 | M38: 0
A39: 45 | C39: Computer Equip.-Hardware(Post Mar. 22/04) | D39: 0 | E39: 0 | F39: 0 | G39: 0 | I39: 0 | J39: 0 | K39: 0 | L39: 0 | M39: 0
A40: 45.1 | B40: 1920 | C40: Computer Equip.-Hardware | D40: 4161222.3 | E40: 191363.81 | F40: -35921.88 | G40: 4316664.23 | I40: -3601586.898 | J40: -370474.83 | K40: 35921.88 | L40: -3936139.848 | M40: 380524.382
A41: 10 | B41: 1930 | C41: Transportation Equipment | D41: 6245632.51 | E41: 417159.07 | F41: -118115.13 | G41: 6544676.45 | I41: -3390707.55 | J41: -335577.99 | K41: 103990.88 | L41: -3622294.66 | M41: 2922381.79
A42: 8 | B42: 1935 | C42: Stores Equipment | D42: 112082.54 | E42: 0 | F42: 0 | G42: 112082.54 | I42: -98188.79 | J42: -1462.5 | K42: 0 | L42: -99651.29 | M42: 12431.25
A43: 8 | B43: 1940 | C43: Tools, Shop & Garage Equipment | D43: 1477874.663 | E43: 87827.43 | F43: 0 | G43: 1565702.093 | I43: -1069105.985 | J43: -112983.63 | K43: 0 | L43: -1182089.615 | M43: 383612.4775
A44: 8 | B44: 1945 | C44: Measurement & Testing Equipment | D44: 64529.154 | E44: 0 | F44: 0 | G44: 64529.154 | I44: -67980.49367 | J44: 3553.23 | K44: 0 | L44: -64427.26367 | M44: 101.8903333
A45: 8 | B45: 1950 | C45: Power Operated Equipment | D45: 15449.83 | E45: 0 | F45: 0 | G45: 15449.83 | I45: -7318.036 | J45: -1768.38 | K45: 0 | L45: -9086.416 | M45: 6363.414
A46: 8 | C46: Communications Equipment | D46: 0 | E46: 0 | F46: 0 | G46: 0 | I46: 0 | J46: 0 | K46: 0 | L46: 0 | M46: 0
A47: 8 | B47: 1955 | C47: Communication Equipment | D47: 40579.9 | E47: 0 | F47: 0 | G47: 40579.9 | I47: -48463.89 | J47: 7883.99 | K47: 0 | L47: -40579.9 | M47: 0
A48: 8 | B48: 1960 | C48: Miscellaneous Equipment | D48: 372010.59 | E48: 0 | F48: 0 | G48: 372010.59 | I48: -292607.3644 | J48: -8567.92 | K48: 0 | L48: -301175.2844 | M48: 70835.30556
A49: 47 | B49: 1970 | C49: Load Management Controls Customer Premises | D49: 0 | E49: 0 | F49: 0 | G49: 0 | I49: 0 | J49: 0 | K49: 0 | L49: 0 | M49: 0
A50: 47 | B50: 1975 | C50: Load Management Controls Utility Premises | D50: 0 | E50: 0 | F50: 0 | G50: 0 | I50: 0 | J50: 0 | K50: 0 | L50: 0 | M50: 0
A51: 47 | B51: 1980 | C51: System Supervisor Equipment | D51: 714213.91 | E51: 0 | F51: 0 | G51: 714213.91 | I51: -714213.91 | J51: 0 | K51: 0 | L51: -714213.91 | M51: 0
A52: 47 | B52: 1985 | C52: Miscellaneous Fixed Assets | D52: 0 | E52: 0 | F52: 0 | G52: 0 | I52: 0 | J52: 0 | K52: 0 | L52: 0 | M52: 0
A53: 47 | B53: 1990 | C53: Other Tangible Property | D53: 0 | E53: 0 | F53: 0 | G53: 0 | I53: 0 | J53: 0 | K53: 0 | L53: 0 | M53: 0
A54: 47 | B54: 1995 | C54: Contributions & Grants | D54: -27337988.59 | E54: 63478.01 | F54: 0 | G54: -27274510.58 | I54: 6987500.573 | J54: 376444.8736 | K54: 0 | L54: 7363945.446 | M54: -19910565.13
B55: 2005 | C55: Property Under Finance Leases | D55: 61873.21 | E55: 0 | F55: 0 | G55: 61873.21 | I55: -61873.21 | J55: 0 | K55: 0 | L55: -61873.21 | M55: 0
B56: 2010 | C56: Electric Plant Purchased or Sold | D56: 41000 | E56: 0 | F56: -26668 | G56: 14332 | I56: -16757 | J56: 0 | K56: 2425 | L56: -14332 | M56: 0
A57: 47 | B57: 2440 | C57: Deferred Revenue5 | D57: 0 | E57: -2826535 | F57: 0 | G57: -2826535 | I57: 0 | J57: 146349 | K57: 0 | L57: 146349 | M57: -2680186
C59: Sub-Total | D59: =SUM(D17:D58) -> 257429622 | E59: =SUM(E17:E58) -> 13347690.8 | F59: =SUM(F17:F58) -> -180873.51 | G59: =SUM(G17:G58) -> 270596439.3 | I59: =SUM(I17:I58)-1 -> -123700792.3 | J59: =SUM(J17:J58)+1 -> -5815621.588 | K59: =SUM(K17:K58) -> 142337.76 | L59: =SUM(L17:L58)-1 -> -129374077.1 | M59: =SUM(M17:M58) -> 141222363.2
C60: Less Socialized Renewable Energy Generation Investments (input as negative) | G60: =D60+E60+F60 -> 0 | L60: =I60+J60+K60 -> 0 | M60: =G60+L60 -> 0
C61: Less Other Non Rate-Regulated Utility Assets (input as negative) | G61: 0 | L61: 0 | M61: 0
C62: Total PP&E | D62: =SUM(D59:D61) -> 257429622 | E62: =SUM(E59:E61) -> 13347690.8 | F62: -180873.51 | G62: 270596439.3 | I62: =SUM(I59:I61) -> -123700792.3 | J62: -5815621.588 | K62: 142337.76 | L62: -129374077.1 | M62: 141222363.2
C63: Depreciation Expense adj. from gain or loss on the retirement of assets (pool of like assets), if applicable6
C64: Total | J64: =J62+J63 -> -5815621.588
I66: Less: Fully Allocated Depreciation
A67: 10 | C67: Transportation | I67: Transportation | K67: -335577.99
A68: 8 | C68: Stores Equipment | I68: Stores Equipment | K68: 0
I69: Removal Costs | K69: 511155
I70: Deferred Revenue incl. in Other Revenue | K70: 146349
I71: Conversion Adjustments | K71: -23387
I72: Net Depreciation | K72: =-(J64-K67-K68-K69-K70-K71) -> 6114160.598
A74: Notes:
A76: 1 | B76: Tables in the format outlined above covering all fixed asset accounts should be submitted for the Test Year, Bridge Year and all relevant historical years. At a minimum , the applicant must provide data for the earlier of: 1) all historical years back to its last rebasing; or 2) at least three years of historical actuals, in addition to Bridge Year and Test Year forecasts.
A79: 2 | B79: The "CCA Class" for fixed assets should agree with the CCA Class used for tax purposes in Tax Returns. Fixed Assets sub-components may be used where the underlying asset components are classified under multiple CCA Classes for tax purposes. If an applicant uses any different classes from those shown in the table, an explanation should be provided. (also see note 3).
A82: 3 | B82: The table may need to be customized for a utility's asset categories or for any new asset accounts announced or authorized by the Board.
A84: 4 | B84: The additions in column (E) must not include construction work in progress (CWIP).
A86: 5 | B86: Effective on the date of IFRS adoption, customer contributions will no longer be recorded in Account 1995 Contributions & Grants, but will be recorded in Account 2440, Deferred Revenues.
A88: 6 | B88: The applicant must ensure that all asset disposals have been clearly identified in the Chapter 2 Appendices for all historic, bridge and test years. Where a distributor for general financial reporting purposes under IFRS has accounted for the amount of gain or loss on the retirement of assets in a pool of like assets as a charge or credit to income, for reporting and rate application filings, the distributor shall reclassify such gains and losses as depreciation expense, and disclose the amount separately.

Sheet NBV2014 Adj Info MIFRS E+
L1: File Number: | M1: =EBNUMBER -> EB-2018-0028
L2: Exhibit: | M2: 1
L3: Tab:
L4: Schedule:
L5: Page:
L7: Date: | M7: 2018-04-27
A9: Appendix 2-BA
A10: Fixed Asset Continuity Schedule 1
A11: Energy+ Consolidated (Former Cambridge and North Dumfries Hydro Inc. and Brant County Power Inc.)
E12: Accounting Standard | F12: CGAAP
E13: Year | F13: 2014
D14: Under IFRS, As of January 1, 2014, the NBV of the Assets became the Cost Basis and Acc. Amortization was set to NIL.
D15: Former Brant | H15: Former CND | L15: CONSOLIDATED
A16: CCA Class 2 | B16: OEB Account 3 | C16: Description 3 | D16: Cost | E16: Acc. Amort | F16: NBV | H16: Cost | I16: Acc. Amort | J16: NBV | L16: Cost | M16: Acc. Amort | N16: NBV
A17: 12 | B17: 1611 | C17: Computer Software (Formally known as Account 1925) | D17: 0 | E17: -439108.859 | F17: -439108.969 | H17: 3524730.11 | I17: -1999040.13 | J17: 1525689.98 | L17: =D17+H17 -> 3524730.11 | M17: =E17+I17 -> -2438148.989 | N17: =L17+M17 -> 1086581.121
A18: CEC | B18: 1612 | C18: Land Rights (Formally known as Account 1906) | D18: 0 | E18: 0 | F18: 0 | H18: 0 | I18: 0 | J18: 0 | L18: =D18+H18 -> 0 | M18: 0 | N18: =L18+M18 -> 0
A19: N/A | B19: 1805 | C19: Land | D19: 94919.62 | E19: 0 | F19: 94919.62 | H19: 252923.22 | I19: 0 | J19: 252923.22 | L19: 347842.84 | M19: 0 | N19: 347842.84
A20: 47 | B20: 1808 | C20: Buildings | D20: 811811.76 | E20: -275313.8098 | F20: 536497.9502 | H20: 1190197.13 | I20: -284771.88 | J20: 905425.25 | L20: 2002008.89 | M20: -560085.6898 | N20: 1441923.2
A21: 13 | B21: 1810 | C21: Leasehold Improvements | D21: 0 | E21: 0 | F21: 0 | H21: 0 | I21: 0 | J21: 0 | L21: 0 | M21: 0 | N21: 0
A22: 47 | B22: 1815 | C22: Transformer Station Equipment >50 kV | D22: 2510109 | E22: -495807.9586 | F22: 2014301.041 | H22: 10053773.54 | I22: -3117519.44 | J22: 6936254.1 | L22: 12563882.54 | M22: -3613327.399 | N22: 8950555.141
A23: 47 | B23: 1820 | C23: Distribution Station Equipment <50 kV | D23: 124226.26 | E23: -124226.26 | F23: 0 | H23: 0 | I23: 0 | J23: 0 | L23: 124226.26 | M23: -124226.26 | N23: 0
A24: 47 | B24: 1825 | C24: Storage Battery Equipment | D24: 0 | E24: 0 | F24: 0 | H24: 0 | I24: 0 | J24: 0 | L24: 0 | M24: 0 | N24: 0
A25: 47 | B25: 1830 | C25: Poles, Towers & Fixtures | D25: 7224298.04 | E25: -2504061.945 | F25: 4720236.095 | H25: 31526865.92 | I25: -14720333.88 | J25: 16806532.04 | L25: 38751163.96 | M25: -17224395.82 | N25: 21526768.14
A26: 47 | B26: 1835 | C26: Overhead Conductors & Devices | D26: 5762837.73 | E26: -1902770.789 | F26: 3860066.941 | H26: 37630438.78 | I26: -17302840.04 | J26: 20327598.74 | L26: 43393276.51 | M26: -19205610.83 | N26: 24187665.68
A27: 47 | B27: 1840 | C27: Underground Conduit | D27: 605550.164 | E27: -272053.7657 | F27: 333496.3983 | H27: 27728746.95 | I27: -13324663.2 | J27: 14404083.75 | L27: 28334297.11 | M27: -13596716.97 | N27: 14737580.15
A28: 47 | B28: 1845 | C28: Underground Conductors & Devices | D28: 2547838.86 | E28: -1234321.597 | F28: 1313517.263 | H28: 40244002.23 | I28: -19190611.51 | J28: 21053390.72 | L28: 42791841.09 | M28: -20424933.11 | N28: 22366907.98
A29: 47 | B29: 1850 | C29: Line Transformers | D29: 5497858.62 | E29: -2292165.793 | F29: 3205692.827 | H29: 46238994.15 | I29: -22915043.5 | J29: 23323950.65 | L29: 51736852.77 | M29: -25207209.29 | N29: 26529643.48
A30: 47 | B30: 1855 | C30: Services (Overhead & Underground) | D30: 2786109.98 | E30: -1406141.432 | F30: 1379968.548 | H30: 0 | I30: 0 | J30: 0 | L30: 2786109.98 | M30: -1406141.432 | N30: 1379968.548
A31: 47 | C31: Meters | D31: 0 | E31: 0 | F31: 0 | H31: 0 | I31: 0 | J31: 0 | L31: 0 | M31: 0 | N31: 0
A32: 47 | B32: 1860 | C32: Meters | D32: 2702135.658 | E32: -910135.7682 | F32: 1791999.889 | H32: 10164608.7 | I32: -2434033.04 | J32: 7730575.66 | L32: 12866744.36 | M32: -3344168.808 | N32: 9522575.549
A33: N/A | B33: 1905 | C33: Land | D33: 87795 | E33: 0 | F33: 87795 | H33: 213796.91 | I33: 0 | J33: 213796.91 | L33: 301591.91 | M33: 0 | N33: 301591.91
A34: 47 | B34: 1908 | C34: Buildings & Fixtures | D34: 522773.52 | E34: -125815.7045 | F34: 396957.8155 | H34: 5575327.92 | I34: -3688406.03 | J34: 1886921.89 | L34: 6098101.44 | M34: -3814221.734 | N34: 2283879.705
A35: 13 | B35: 1910 | C35: Leasehold Improvements | D35: 0 | E35: 0 | F35: 0 | H35: 0 | I35: 0 | J35: 0 | L35: 0 | M35: 0 | N35: 0
A36: 8 | C36: Office Furniture & Equipment (10 years) | D36: 0 | E36: 0 | F36: 0 | H36: 0 | I36: 0 | J36: 0 | L36: 0 | M36: 0 | N36: 0
A37: 8 | B37: 1915 | C37: Office Furniture & Equipment | D37: 186657.124 | E37: -125169.8585 | F37: 61487.2655 | H37: 772182.3 | I37: -527747.28 | J37: 244435.02 | L37: 958839.424 | M37: -652917.1385 | N37: 305922.2855
A38: 10 | C38: Computer Equipment - Hardware | D38: 0 | E38: 0 | F38: 0 | H38: 0 | I38: 0 | J38: 0 | L38: 0 | M38: 0 | N38: 0
A39: 45 | C39: Computer Equip.-Hardware(Post Mar. 22/04) | D39: 0 | E39: 0 | F39: 0 | H39: 0 | I39: 0 | J39: 0 | L39: 0 | M39: 0 | N39: 0
A40: 45.1 | B40: 1920 | C40: Computer Equip.-Hardware | D40: 1494590.3 | E40: -728720.543 | F40: 765869.757 | H40: 2515575.3 | I40: -1894381.71 | J40: 621193.59 | L40: 4010165.6 | M40: -2623102.253 | N40: 1387063.347
A41: 10 | B41: 1930 | C41: Transportation Equipment | D41: 1200282.7 | E41: -659868.1992 | F41: 540414.5008 | H41: 4361423.38 | I41: -2715516.42 | J41: 1645906.96 | L41: 5561706.08 | M41: -3375384.619 | N41: 2186321.461
A42: 8 | B42: 1935 | C42: Stores Equipment | D42: 3728.58 | E42: -2954.58 | F42: 774 | H42: 93728.96 | I42: -93728.96 | J42: 0 | L42: 97457.54 | M42: -96683.54 | N42: 774
A43: 8 | B43: 1940 | C43: Tools, Shop & Garage Equipment | D43: 547913.013 | E43: -239578.368 | F43: 308334.645 | H43: 1151630.15 | I43: -734419.52 | J43: 417210.63 | L43: 1699543.163 | M43: -973997.888 | N43: 725545.275
A44: 8 | B44: 1945 | C44: Measurement & Testing Equipment | D44: 64529.154 | E44: -53367.96367 | F44: 11161.19033 | H44: 0 | I44: 0 | J44: 0 | L44: 64529.154 | M44: -53367.96367 | N44: 11161.19033
A45: 8 | B45: 1950 | C45: Power Operated Equipment | D45: 2707.97 | E45: -2699.67 | F45: 8.3 | H45: 0 | I45: 0 | J45: 0 | L45: 2707.97 | M45: -2699.67 | N45: 8.3
A46: 8 | C46: Communications Equipment | D46: 0 | E46: 0 | F46: 0 | H46: 0 | I46: 0 | J46: 0 | L46: 0 | M46: 0 | N46: 0
A47: 8 | B47: 1955 | C47: Communication Equipment | D47: 40579.902 | E47: -40067.513 | F47: 512.389 | H47: 0 | I47: 0 | J47: 0 | L47: 40579.902 | M47: -40067.513 | N47: 512.389
A48: 8 | B48: 1960 | C48: Miscellaneous Equipment | D48: 300309.24 | E48: -67113.13472 | F48: 233196.1053 | H48: 0 | I48: 0 | J48: 0 | L48: 300309.24 | M48: -67113.13472 | N48: 233196.1053
A49: 47 | B49: 1970 | C49: Load Management Controls Customer Premises | D49: 0 | E49: 0 | F49: 0 | H49: 0 | I49: 0 | J49: 0 | L49: 0 | M49: 0 | N49: 0
A50: 47 | B50: 1975 | C50: Load Management Controls Utility Premises | D50: 0 | E50: 0 | F50: 0 | H50: 0 | I50: 0 | J50: 0 | L50: 0 | M50: 0 | N50: 0
A51: 47 | B51: 1980 | C51: System Supervisor Equipment | D51: 0 | E51: 0 | F51: 0 | H51: 714213.91 | I51: -714213.91 | J51: 0 | L51: 714213.91 | M51: -714213.91 | N51: 0
A52: 47 | B52: 1985 | C52: Miscellaneous Fixed Assets | D52: 0 | E52: 0 | F52: 0 | H52: 0 | I52: 0 | J52: 0 | L52: 0 | M52: 0 | N52: 0
A53: 47 | B53: 1990 | C53: Other Tangible Property | D53: 0 | E53: 0 | F53: 0 | H53: 0 | I53: 0 | J53: 0 | L53: 0 | M53: 0 | N53: 0
A54: 47 | B54: 1995 | C54: Contributions & Grants | D54: -1946053.95 | E54: 779530.1548 | F54: -1166523.795 | H54: -20139307.3 | I54: 5135419.55 | J54: -15003887.75 | L54: -22085361.25 | M54: 5914949.705 | N54: -16170411.55
B55: 2005 | C55: Property Under Finance Leases | D55: 0 | E55: 0 | F55: 0 | H55: 61873.2 | I55: -61873.2 | J55: 0 | L55: 61873.2 | M55: -61873.2 | N55: 0
B56: 2010 | C56: Electric Plant Purchased or Sold | D56: 41000 | E56: -14332.17391 | F56: 26667.82609 | H56: 0 | I56: 0 | J56: 0 | L56: 41000 | M56: -14332.17391 | N56: 26667.82609
A57: 47 | B57: 2440 | C57: Deferred Revenue5 | D57: 0 | E57: 0 | F57: 0 | H57: 0 | I57: 0 | J57: 0 | L57: 0 | M57: 0 | N57: 0
C59: Sub-Total | D59: =SUM(D17:D58) -> 33214508.24 | E59: =SUM(E17:E58) -> -13136265.53 | F59: =SUM(F17:F58)-1 -> 20078241.6 | H59: =SUM(H17:H58) -> 203875725.5 | I59: =SUM(I17:I58) -> -100583724.1 | J59: =SUM(J17:J58) -> 103292001.4 | L59: =SUM(L17:L58) -> 237090233.7 | M59: =SUM(M17:M58) -> -113719989.6 | N59: =SUM(N17:N58) -> 123370244.1
C60: Less Socialized Renewable Energy Generation Investments (input as negative)
C61: Less Other Non Rate-Regulated Utility Assets (input as negative)
C62: Total PP&E | D62: =SUM(D59:D61) -> 33214508.24 | E62: =SUM(E59:E61) -> -13136265.53 | F62: =SUM(F59:F61) -> 20078241.6 | H62: =SUM(H59:H61) -> 203875725.5 | I62: =SUM(I59:I61) -> -100583724.1 | J62: =SUM(J59:J61) -> 103292001.4 | L62: =SUM(L59:L61) -> 237090233.7 | M62: =SUM(M59:M61) -> -113719989.6 | N62: =SUM(N59:N61) -> 123370244.1
A64: Notes:
A66: 1 | B66: Tables in the format outlined above covering all fixed asset accounts should be submitted for the Test Year, Bridge Year and all relevant historical years. At a minimum , the applicant must provide data for the earlier of: 1) all historical years back to its last rebasing; or 2) at least three years of historical actuals, in addition to Bridge Year and Test Year forecasts.
A69: 2 | B69: The "CCA Class" for fixed assets should agree with the CCA Class used for tax purposes in Tax Returns. Fixed Assets sub-components may be used where the underlying asset components are classified under multiple CCA Classes for tax purposes. If an applicant uses any different classes from those shown in the table, an explanation should be provided. (also see note 3).
A72: 3 | B72: The table may need to be customized for a utility's asset categories or for any new asset accounts announced or authorized by the Board.
A74: 4 | B74: The additions in column (E) must not include construction work in progress (CWIP).
A76: 5 | B76: Effective on the date of IFRS adoption, customer contributions will no longer be recorded in Account 1995 Contributions & Grants, but will be recorded in Account 2440, Deferred Revenues.
A78: 6 | B78: The applicant must ensure that all asset disposals have been clearly identified in the Chapter 2 Appendices for all historic, bridge and test years. Where a distributor for general financial reporting purposes under IFRS has accounted for the amount of gain or loss on the retirement of assets in a pool of like assets as a charge or credit to income, for reporting and rate application filings, the distributor shall reclassify such gains and losses as depreciation expense, and disclose the amount separately.

Sheet App.2-BA_FA Cont E+ 2014MIFRS
L1: File Number: | M1: =EBNUMBER -> EB-2018-0028
L2: Exhibit: | M2: 1
L3: Tab:
L4: Schedule:
L5: Page:
L7: Date: | M7: 2018-04-27
A9: Appendix 2-BA
A10: Fixed Asset Continuity Schedule 1
A11: Energy+ Consolidated (Former Cambridge and North Dumfries Hydro Inc. and Brant County Power Inc.)
E12: Accounting Standard | F12: MIFRS
E13: Year | F13: 2014 | G13: RESTATED MIFRS
D15: Cost | J15: Accumulated Depreciation
A16: CCA Class 2 | B16: OEB Account 3 | C16: Description 3 | D16: Opening Balance | E16: Additions 4 | F16: Disposals 6 | G16: Closing Balance | I16: Opening Balance | J16: Additions | K16: Disposals 6 | L16: Closing Balance | M16: Net Book Value
A17: 12 | B17: 1611 | C17: Computer Software (Formally known as Account 1925) | D17: 1086581.011 | E17: 948115.13 | F17: 0 | G17: =D17+E17+F17 -> 2034696.141 | I17: 0 | J17: -613532.001 | K17: 0 | L17: =I17+J17+K17 -> -613532.001 | M17: =G17+L17 -> 1421164.14
A18: CEC | B18: 1612 | C18: Land Rights (Formally known as Account 1906) | D18: 0 | E18: 0 | F18: 0 | G18: =D18+E18+F18 -> 0 | I18: 0 | J18: 0 | K18: 0 | L18: =I18+J18+K18 -> 0 | M18: =G18+L18 -> 0
A19: N/A | B19: 1805 | C19: Land | D19: 347842.84 | E19: 0 | F19: 0 | G19: =D19+E19+F19 -> 347842.84 | I19: 0 | J19: 0 | K19: 0 | L19: =I19+J19+K19 -> 0 | M19: =G19+L19 -> 347842.84
A20: 47 | B20: 1808 | C20: Buildings | D20: 1441923.2 | E20: 0 | F20: 0 | G20: =D20+E20+F20 -> 1441923.2 | I20: 0 | J20: -34673.44 | K20: 0 | L20: =I20+J20+K20 -> -34673.44 | M20: =G20+L20 -> 1407249.76
A21: 13 | B21: 1810 | C21: Leasehold Improvements | D21: 0 | E21: 0 | F21: 0 | G21: 0 | I21: 0 | J21: 0 | K21: 0 | L21: 0 | M21: 0
A22: 47 | B22: 1815 | C22: Transformer Station Equipment >50 kV | D22: 8950555.141 | E22: 0 | F22: 0 | G22: 8950555.141 | I22: 0 | J22: -421725.38 | K22: 0 | L22: -421725.38 | M22: 8528829.761
A23: 47 | B23: 1820 | C23: Distribution Station Equipment <50 kV | D23: 0 | E23: 0 | F23: 0 | G23: 0 | I23: 0 | J23: 0 | K23: 0 | L23: 0 | M23: 0
A24: 47 | B24: 1825 | C24: Storage Battery Equipment | D24: 0 | E24: 0 | F24: 0 | G24: 0 | I24: 0 | J24: 0 | K24: 0 | L24: 0 | M24: 0
A25: 47 | B25: 1830 | C25: Poles, Towers & Fixtures | D25: 21526768.14 | E25: 2466212.55 | F25: -248310 | G25: 23744670.69 | I25: 0 | J25: -657244.68 | K25: 613644 | L25: -43600.68 | M25: 23701070.01
A26: 47 | B26: 1835 | C26: Overhead Conductors & Devices | D26: 24187665.68 | E26: 2381987.37 | F26: 0 | G26: 26569653.05 | I26: 0 | J26: -719375.5706 | K26: 319116 | L26: -400259.5706 | M26: 26169393.48
A27: 47 | B27: 1840 | C27: Underground Conduit | D27: 14737580.15 | E27: 561402.68 | F27: 0 | G27: 15298982.83 | I27: 0 | J27: -218534.57 | K27: 0 | L27: -218534.57 | M27: 15080448.26
A28: 47 | B28: 1845 | C28: Underground Conductors & Devices | D28: 22366907.98 | E28: 1201122.44 | F28: 0 | G28: 23568030.42 | I28: 0 | J28: -560687.1934 | K28: 33404 | L28: -527283.1934 | M28: 23040747.23
A29: 47 | B29: 1850 | C29: Line Transformers | D29: 26529643.48 | E29: 1875605.65 | F29: -617504 | G29: 27787745.13 | I29: 0 | J29: -762119.98 | K29: 660275 | L29: -101844.98 | M29: 27685900.15
A30: 47 | B30: 1855 | C30: Services (Overhead & Underground) | D30: 1379968.548 | E30: 59973.45 | F30: 0 | G30: 1439941.998 | I30: 0 | J30: -49653 | K30: 0 | L30: -49653 | M30: 1390288.998
A31: 47 | B31: 1860 | C31: Meters | D31: 9522575.549 | E31: 295526.61 | F31: -221915 | G31: 9596187.159 | I31: 0 | J31: -882251.78 | K31: 95321 | L31: -786930.78 | M31: 8809256.379
A32: N/A | B32: 1905 | C32: Land | D32: 301591.91 | E32: 0 | F32: 0 | G32: 301591.91 | I32: 0 | J32: 0 | K32: 0 | L32: 0 | M32: 301591.91
A33: 47 | B33: 1908 | C33: Buildings & Fixtures | D33: 2283879.706 | E33: 229629.23 | F33: 0 | G33: 2513508.936 | I33: 0 | J33: -184100.42 | K33: 0 | L33: -184100.42 | M33: 2329408.516
A34: 13 | B34: 1910 | C34: Leasehold Improvements | D34: 0 | E34: 0 | F34: 0 | G34: 0 | I34: 0 | J34: 0 | K34: 0 | L34: 0 | M34: 0
A35: 8 | C35: Office Furniture & Equipment | D35: 0 | E35: 0 | F35: 0 | G35: 0 | I35: 0 | J35: 0 | K35: 0 | L35: 0 | M35: 0
A36: 8 | B36: 1915 | C36: Office Furniture & Equipment | D36: 305922.2855 | E36: 51558.31 | F36: 0 | G36: 357480.5955 | I36: 0 | J36: -44657.98 | K36: 0 | L36: -44657.98 | M36: 312822.6155
A37: 10 | C37: Computer Equipment - Hardware | D37: 0 | E37: 0 | F37: 0 | G37: 0 | I37: 0 | J37: 0 | K37: 0 | L37: 0 | M37: 0
A38: 45 | C38: Computer Equip.-Hardware(Post Mar. 22/04) | D38: 0 | E38: 0 | F38: 0 | G38: 0 | I38: 0 | J38: 0 | K38: 0 | L38: 0 | M38: 0
A39: 45.1 | B39: 1920 | C39: Computer Equip.-Hardware | D39: 1387063.347 | E39: 598258.37 | F39: -661156.32 | G39: 1324165.397 | I39: 0 | J39: -553836.71 | K39: 29498.62 | L39: -524338.09 | M39: 799827.307
A40: 10 | B40: 1930 | C40: Transportation Equipment | D40: 2186321.461 | E40: 848073.62 | F40: -238754.42 | G40: 2795640.661 | I40: 0 | J40: -358563.817 | K40: 238754.42 | L40: -119809.397 | M40: 2675831.264
A41: 8 | B41: 1935 | C41: Stores Equipment | D41: 774 | E41: 0 | F41: 0 | G41: 774 | I41: 0 | J41: -516 | K41: 0 | L41: -516 | M41: 258
A42: 8 | B42: 1940 | C42: Tools, Shop & Garage Equipment | D42: 725545.275 | E42: 55128.97 | F42: 0 | G42: 780674.245 | I42: 0 | J42: -169744.95 | K42: 0 | L42: -169744.95 | M42: 610929.295
A43: 8 | B43: 1945 | C43: Measurement & Testing Equipment | D43: 11161.19033 | E43: 0 | F43: 0 | G43: 11161.19033 | I43: 0 | J43: -3306.265 | K43: 0 | L43: -3306.265 | M43: 7854.925333
A44: 8 | B44: 1950 | C44: Power Operated Equipment | D44: 8.3 | E44: 12741.86 | F44: 0 | G44: 12750.16 | I44: 0 | J44: -1672.086 | K44: 0 | L44: -1672.086 | M44: 11078.074
A45: 8 | C45: Communications Equipment | D45: 0 | E45: 0 | F45: 0 | G45: 0 | I45: 0 | J45: 0 | K45: 0 | L45: 0 | M45: 0
A46: 8 | B46: 1955 | C46: Communication Equipment | D46: 512.389 | E46: 0 | F46: 0 | G46: 512.389 | I46: 0 | J46: -338 | K46: 0 | L46: -338 | M46: 174.389
A47: 8 | B47: 1960 | C47: Miscellaneous Equipment | D47: 233196.1053 | E47: 0 | F47: -125770.65 | G47: 107425.4553 | I47: 0 | J47: -13074.02222 | K47: 34220 | L47: 21145.97778 | M47: 128571.4331
